Workbook

Sheet U12組合せ
B1: ＪＦＡ Ｕ-１２サッカーリーグ2018（in栃木） 宇河地域リーグ戦（後期）
B2: ブロック別 組合せ・日程 ・ 会場一覧
D3: Ａ ブロック | F3: Ｂ ブロック | H3: Ｃ ブロック | J3: Ｄ ブロック | L3: 備 考
D4: （10チーム） | F4: （９チーム） | H4: （９チーム） | J4: （９チーム）
L5: ﾌﾞﾛｯｸ責任者チーム
L6: 会場チーム
L7: シード１
L8: シード２
L9: 複数ｴﾝﾄﾘｰ チーム
B10: 1 | D10: 石井ＦＣ | F10: 姿川第一ＦＣ | H10: 清原ＳＳＳ | J10: 上河内ＪＳＣ
B11: 2 | D11: 細谷ＳＣ | F11: 宝木キッカーズ | H11: ＦＣみらい Ｐ | J11: 上三川ＳＣ
B12: 3 | D12: ＦＣみらい Ｖ | F12: ｕｎｉｏｎ ｓｃ | H12: 雀宮ＦＣ | J12: 緑が丘ＹＦＣ
B13: 4 | D13: 岡西ＦＣ | F13: 河内ＳＣジュベニール | H13: ＳＵＧＡＯ ＳＣ | J13: 泉ＦＣ宇都宮
B14: 5 | D14: ＦＣグランディール宇都宮 | F14: 昭和・戸祭ＳＣ | H14: Ｓ４スペランツァ | J14: 国本ＪＳＣ
B15: 6 | D15: ＦＣグラシアス | F15: サウス宇都宮ＳＣ | H15: 宇都宮北部ＦＣトレ | J15: 本郷北ＦＣ
B16: 7 | D16: 岡本ＦＣ | F16: ＦＣ Ｒｉｓｏ | H16: 上三川ＦＣ | J16: ＦＣペンサーレ
B17: 8 | D17: シャルムグランツＳＣ | F17: 富士見ＳＳＳ | H17: クラブチェルビアット | J17: ブラッドレスＳＳ
B18: 9 | D18: カテット白沢ＳＳ | F18: 豊郷ＪＦＣ宇都宮 | H18: ＦＣブロケード | J18: ともぞうＳＣ・Ｂ
B19: 10 | D19: ＦＣアリーバ
B20: 2018-09-02 | C20: 日 | D20: １節 | E20: 白沢Ａ | F20: １節 | G20: 石井５ | H20: １節 | I20: 清原南小 | J20: １節 | K20: 本郷北小
E21: A | G21: B123＋B456 | I21: C123＋C456 | K21: D123＋D456
E22: 白沢Ｂ | G22: 白沢Ｂ | I22: 石井６ | K22: 石井６
E23: A＋B789 | G23: A＋B789 | I23: C789＋D789 | K23: C789＋D789
B24: 2018-09-08 | C24: 土 | D24: ２節 | E24: 石井１ | F24: ２節 | G24: 石井３ B147＋B369 | H24: ２節 | I24: 石井４ | J24: ２節 | K24: 石井６
E25: A | I25: C147＋C369 | K25: D147＋D369
E26: 石井２ | I26: 石井５ | K26: 石井５
E27: A | I27: C258＋D258 | K27: C258＋D258
B28: 2018-09-09 | C28: 日 | D28: ３節 | E28: 白沢Ａ | F28: ３節 | G28: 新田小 | H28: ３節 | I28: 石井５ | J28: ３節 | K28: 石井６
E29: A | G29: B159＋B267 | I29: C159＋C267 | K29: D159＋D267
E30: 白沢Ｂ | G30: 白沢Ｂ | I30: 陽南小 | K30: 陽南小
E31: A＋B348 | G31: A＋B348 | I31: C348＋D348 | K31: C348＋D348
B32: 2018-09-16 | C32: 日 | D32: ４節 | E32: 白沢Ａ | F32: ４節 | G32: 姿川第一小 | H32: ４節 | I32: 横川東小 C249＋C357 | J32: ４節 | K32: 石井５
E33: A | G33: B168＋B249 | K33: D
E34: 白沢Ｂ | G34: 白沢Ｂ | K34: 石井６
E35: A＋B357 | G35: A＋B357 | K35: D
B36: 2018-09-17 | C36: 祝：月 | D36: ５節 | E36: 平出Ａ | F36: 未 消化 | G36: 平出Ｂ
E37: A | G37: B258＋C168またはA＋B258＋C168
B39: Ａ ブロック 運営責任者 | D39: 長谷川 洋 （中部地区副代表） 岡西ＦＣ | G39: 〒３２９－１１０５ 宇都宮市中岡本町3713－239 ham-hase@pa2.so-net.ne.jp | K39: 連絡先
K40: ０９０-８８４６-９３１２
B42: Ｂ ブロック 運営責任者 | D42: 渡部 広信 （西部地区副代表） 姿一ＦＣ | G42: 〒３２１－０１５８ 宇都宮市西川田本町４－１０－６ sugaichifc@gmail.com | K42: 連絡先
K43: ０９０-３３１３-７０４７
B45: Ｃ ブロック 運営責任者 | D45: 氷室 康一 （東部地区代表） 清原ＳＳＳ | G45: 〒３２１－３２３２ 宇都宮市氷室町１７８８－２ k.himuro.128@xrj.biglobe.ne.jp | K45: 連絡先
K46: ０９０-１４５７-２０６５
B48: Ｄ ブロック 運営責任者 | D48: 鈴木 義則 （上三川地区代表） 本郷北ＦＣ | G48: 〒329－0607 河内郡上三川町西汗 1746-67 spw66ny9@arrow.ocn.ne.jp | K48: 連絡先
K49: ０９０-２４７９-３７５９

Sheet U12対戦スケジュール
A1: ＪＦＡ U-12サッカーリーグ2018（in栃木） 宇河地域リーグ戦（後期）
A2: 対戦スケジュール
A4: 【 第１節 】 ９／２（日）
A5: ブロック | B5: Ａ | D5: Ａ ＋ Ｂ（７８９） | F5: Ｂ(１２３) ＋ Ｂ(４５６)
A6: 会 場 | B6: 白沢Ａ | D6: 白沢Ｂ | F6: 石井５
A7: 会場担当 | B7: 岡西ＦＣ | D7: カテット白沢ＳＳ | F7: 姿川第一ＦＣ
A8: ① 9:00 | B8: 1-2 | C8: 5/6/6/5 | D8: A3-A4 | E8: B7/B8/B8/B7 | F8: 1-2 | G8: 4/5/5/4
A9: ② 9:50 | B9: 5-6 | C9: 1/2/2/1 | D9: B7-B8 | E9: A3/A4/A3/A3 | F9: 4-5 | G9: 1/2/2/1
A10: ③10:40 | B10: 7-8 | C10: 2/3/3/2 | D10: A9-A10 | E10: B9/B7/B7/B9 | F10: 3-1 | G10: 6/4/4/6
A11: ④11:30 | B11: 2-3 | C11: 7/8/8/7 | D11: B9-B7 | E11: A9/A10/A10/A9 | F11: 6-4 | G11: 3/1/1/3
A12: ⑤12:20 | B12: 10-1 | C12: 4/5/5/4 | D12: A6-A7 | E12: B8/B9/B9/B8 | F12: 2-3 | G12: 5/6/6/5
A13: ⑥13:10 | B13: 4-5 | C13: 8/9/9/8 | D13: B8-B9 | E13: A6/A7/A7/A6 | F13: 5-6 | G13: 2/3/3/2
A14: ⑦14:00 | B14: 8-9 | C14: 10/1/1/10
A16: ブロック | B16: Ｃ(１２３) ＋ Ｃ(４５６) | D16: Ｃ(７８９) ＋ Ｄ(７８９) | F16: Ｄ(１２３) ＋ Ｄ(４５６)
A17: 会 場 | B17: 清原南小 | D17: 石井６ | F17: 本郷北小
A18: 会場担当 | B18: 清原ＳＳＳ | D18: ＦＣブロケード | F18: 本郷北ＦＣ
A19: ① 9:00 | B19: 1-2 | C19: 4/5/5/4 | D19: C7-C8 | E19: D7/D8/D8/D7 | F19: 1-2 | G19: 4/5/5/4
A20: ② 9:50 | B20: 4-5 | C20: 1/2/2/1 | D20: D7-D8 | E20: C7/C8/C8/C7 | F20: 4-5 | G20: 1/2/2/1
A21: ③10:40 | B21: 3-1 | C21: 6/4/4/6 | D21: C9-C7 | E21: D9/D7/D7/D9 | F21: 3-1 | G21: 6/4/4/6
A22: ④11:30 | B22: 6-4 | C22: 3/1/1/3 | D22: D9-D7 | E22: C9/C7/C7/C9 | F22: 6-4 | G22: 3/1/1/3
A23: ⑤12:20 | B23: 2-3 | C23: 5/6/6/5 | D23: C8-C9 | E23: D8/D9/D9/D8 | F23: 2-3 | G23: 5/6/6/5
A24: ⑥13:10 | B24: 5-6 | C24: 2/3/3/2 | D24: D8-D9 | E24: C8/C9/C9/C8 | F24: 5-6 | G24: 2/3/3/2
A26: 【 第２節 】 ９／８（土） 富士見ＳＳＳ(B8)は不参加
A27: ブロック | B27: Ａ | F27: Ｂ(１４７) ＋ Ｂ(３６９)
A28: 会 場 | B28: 石井１ | D28: 石井２ | F28: 石井３
A29: 会場担当 | B29: ＦＣアリーバ | D29: 石井ＦＣ | F29: 豊郷ＪＦＣ宇都宮
A30: ① 9:00 | B30: 2-4 | C30: 8/10/10/8 | D30: 5-7 | E30: 1/3/3/1 | F30: 9-3 | G30: 7/1/1/7
A31: ② 9:50 | B31: 8-10 | C31: 4/6/6/4 | D31: 1-3 | E31: 7/9/9/7 | F31: 7-1 | G31: 9/3/3/9
A32: ③10:40 | B32: 4-6 | C32: 10/2/2/10 | D32: 7-9 | E32: 3/5/5/3 | F32: 6-9 | G32: 4/7/7/4
A33: ④11:30 | B33: 10-2 | C33: 6/8/8/6 | D33: 3-5 | E33: 9/1/1/9 | F33: 4-7 | G33: 6/9/9/6
A34: ⑤12:20 | B34: 6-8 | C34: 2/4/4/2 | D34: 9-1 | E34: 5/7/7/5 | F34: 3-6 | G34: 1/4/4/1
A35: ⑥13:10 | F35: 1-4 | G35: 3/6/6/3
A37: ブロック | B37: Ｃ(１４７) ＋ Ｃ(３６９) | D37: Ｃ(２５８) ＋ Ｄ(２５８) | F37: Ｄ(１４７) ＋ Ｄ(３６９)
A38: 会 場 | B38: 石井４ | D38: 石井５ | F38: 石井６
A39: 会場担当 | B39: 宇都宮北部ＦＣトレ | D39: Ｓ４スペランツァ | F39: 上河内ＪＳＣ
A40: ① 9:00 | B40: 9-3 | C40: 7/1/1/7 | D40: C8-C2 | E40: D8/D2/D2/D8 | F40: 9-3 | G40: 7/1/1/7
A41: ② 9:50 | B41: 7-1 | C41: 9/3/3/9 | D41: D8-D2 | E41: C8/C2/C2/C8 | F41: 7-1 | G41: 9/3/3/9
A42: ③10:40 | B42: 6-9 | C42: 4/7/7/4 | D42: C5-C8 | E42: D5/D8/D8/D5 | F42: 6-9 | G42: 4/7/7/4
A43: ④11:30 | B43: 4-7 | C43: 6/9/9/6 | D43: D5-D8 | E43: C5/C8/C8/C5 | F43: 4-7 | G43: 6/9/9/6
A44: ⑤12:20 | B44: 3-6 | C44: 1/4/4/1 | D44: C2-C5 | E44: D2/D5/D5/D2 | F44: 3-6 | G44: 1/4/4/1
A45: ⑥13:10 | B45: 1-4 | C45: 3/6/6/3 | D45: D2-D5 | E45: C2/C5/C5/C2 | F45: 1-4 | G45: 3/6/6/3
A47: 【 第３節 】 ９／９（日）
A48: ブロック | B48: Ａ | D48: Ａ ＋ Ｂ（３４８） | F48: Ｂ(１５９) ＋ Ｂ(２６７)
A49: 会 場 | B49: 白沢Ａ | D49: 白沢Ｂ | F49: 新田小
A50: 会場担当 | B50: 細谷ＳＣ | D50: ＦＣグランディール宇都宮 | F50: サウス宇都宮ＳＣ
A51: ① 9:00 | B51: 2-5 | C51: 10/3/3/10 | D51: A6-A9 | E51: B4/B8/B8/B4 | F51: 6-7 | G51: 5/9/9/5
A52: ② 9:50 | B52: 10-3 | C52: 2/5/5/2 | D52: B4-B8 | E52: A6/A9/A9/A6 | F52: 5-9 | G52: 6/7/7/6
A53: ③10:40 | B53: 4-7 | C53: 9/2/2/9 | D53: A8-A1 | E53: B3/B4/B4/B3 | F53: 2-6 | G53: 1/5/5/1
A54: ④11:30 | B54: 9-2 | C54: 4/7/7/4 | D54: B3-B4 | E54: A8/A1/A1/A8 | F54: 1-5 | G54: 2/6/6/2
A55: ⑤12:20 | B55: 7-10 | C55: 3/6/6/3 | D55: A5-A8 | E55: B8/B3/B3/B8 | F55: 7-2 | G55: 9/1/1/9
A56: ⑥13:10 | B56: 3-6 | C56: 1/4/4/1 | D56: B8-B3 | E56: A5/A8/A8/A5 | F56: 9-1 | G56: 7/2/2/7
A57: ⑦14:00 | B57: 1-4 | C57: 7/10/10/7
A59: ブロック | B59: Ｃ(１５９) ＋ Ｃ(２６７) | D59: Ｃ(３４８) ＋ Ｄ(３４８) | F59: Ｄ(１５９) ＋ Ｄ(２６７)
A60: 会 場 | B60: 石井５ | D60: 陽南小 | F60: 石井６
A61: 会場担当 | B61: 清原ＳＳＳ | D61: 緑が丘ＹＦＣ | F61: 国本ＪＳＣ
A62: ① 9:00 | B62: 6-7 | C62: 5/9/9/5 | D62: C4-C8 | E62: D4/D8/D8/D4 | F62: 6-7 | G62: 5/9/9/5
A63: ② 9:50 | B63: 5-9 | C63: 6/7/7/6 | D63: D4-D8 | E63: C4/C8/C8/C4 | F63: 5-9 | G63: 6/7/7/6
A64: ③10:40 | B64: 2-6 | C64: 1/5/5/1 | D64: C3-C4 | E64: D3/D4/D4/D3 | F64: 2-6 | G64: 1/5/5/1
A65: ④11:30 | B65: 1-5 | C65: 2/6/6/2 | D65: D3-D4 | E65: C3/C4/C4/C3 | F65: 1-5 | G65: 2/6/6/2
A66: ⑤12:20 | B66: 7-2 | C66: 9/1/1/9 | D66: C8-C3 | E66: D8/D3/D3/D8 | F66: 7-2 | G66: 9/1/1/9
A67: ⑥13:10 | B67: 9-1 | C67: 7/2/2/7 | D67: D8-D3 | E67: C8/C3/C3/C8 | F67: 9-1 | G67: 7/2/2/7
A69: 【 第４節 】 ９／１６（日） シャルムグランツＳＣ(A8)と
A70: 北部ＦＣトレ(C6)は不参加
A71: ブロック | B71: Ａ | D71: Ａ ＋ Ｂ（３５７） | F71: Ｂ(１６８) ＋ Ｂ(２４９)
A72: 会 場 | B72: 白沢Ａ | D72: 白沢Ｂ | F72: 姿川第一小
A73: 会場担当 | B73: 岡本ＦＣ | D73: ＦＣみらいＶ | F73: 姿川第一ＦＣ
A74: ① 9:00 | B74: 2-6 | C74: 4/1/1/4 | D74: A3-A7 | E74: B3/B5/B5/B3 | F74: 1-6 | G74: 2/4/4/2
A75: ② 9:50 | B75: 4-8 | C75: 2/6/6/2 | D75: B3-B5 | E75: A3/A7/A7/A3 | F75: 2-4 | G75: 1/6/6/1
A76: ③10:40 | B76: 6-10 | C76: 7/1/1/7 | D76: A5-A9 | E76: B7/B3/B3/B7 | F76: 8-1 | G76: 9/2/2/9
A77: ④11:30 | B77: 7-1 | C77: 6/10/10/6 | D77: B7-B3 | E77: A5/A9/A9/A5 | F77: 9-2 | G77: 8/1/1/8
A78: ⑤12:20 | B78: 8-2 | C78: 10/4/4/10 | D78: A9-A3 | E78: B5/B7/B7/B5 | F78: 6-8 | G78: 4/9/9/4
A79: ⑥13:10 | B79: 10-4 | C79: 1/5/5/1 | D79: B5-B7 | E79: A9/A3/A3/A9 | F79: 4-9 | G79: 6/8/8/6
A80: ⑦14:00 | B80: 1-5 | C80: 10/2/2/10
A82: ブロック | B82: Ｃ(２４９) ＋ Ｃ(３５７) | D82: Ｄ
A83: 会 場 | B83: 横川東小 | D83: 石井５ | F83: 石井６
A84: 会場担当 | B84: ＦＣみらい Ｐ | D84: ＦＣペンサーレ | F84: 上三川ＳＣ
A85: ① 9:00 | B85: 2-4 | C85: 3/5/5/3 | D85: 3-5 | E85: 8/2/2/8 | F85: 1-6 | G85: 9/7/7/9
A86: ② 9:50 | B86: 3-5 | C86: 2/4/4/2 | F86: 2-4 | G86: 3/1/1/3
A87: ③10:40 | B87: 9-2 | C87: 7/3/3/7 | D87: 7-3 | E87: 6/4/4/6 | F87: 8-1 | G87: 2/5/5/2
A88: ④11:30 | B88: 7-3 | C88: 9/2/2/9 | F88: 9-2 | G88: 7/8/8/7
A89: ⑤12:20 | B89: 4-9 | C89: 5/7/7/5 | D89: 5-7 | E89: 1/9/9/1 | F89: 6-8 | G89: 4/3/3/4
A90: ⑥13:10 | B90: 5-7 | C90: 4/9/9/4 | F90: 4-9 | G90: 5/6/6/5
A92: 【 第５節 】 ９／１７（祝：月）
A93: ブロック | B93: Ａ | D93: B(２５８) ＋ Ｃ(１６８)
A94: 会 場 | B94: 平出Ａ | D94: 平出Ｂ
A95: 会場担当 | B95: シャルムグランツＳＣ | D95: 昭和戸祭SC
A96: ① 9:00 | B96: 2-7 | C96: 3/8/8/3 | D96: B8-B2 | E96: C1/C6/C6/C1
A97: ② 9:50 | B97: 3-8 | C97: 2/7/7/2 | D97: C1-C6 | E97: B8/B2/B2/B8
A98: ③10:40 | B98: 4-9 | C98: 5/10/10/5 | D98: B5-B8 | E98: C8/C1/C1/C8
A99: ④11:30 | B99: 8-2 | C99: 10/4/4/10 | D99: C8-C1 | E99: B5/B8/B8/B5
A100: ⑤12:20 | B100: 5-10 | C100: 1/6/6/1 | D100: B2-B5 | E100: C6/C8/C8/C6
A101: ⑥13:10 | B101: 1-6 | C101: 4/9/9/4 | D101: C6-C8 | E101: B2/B5/B5/B2
A102: ⑦14:00 | B102: 4-8 | C102: 2/6/6/2

Sheet ●

Sheet Ａブロック対戦表
A1: ＪＦＡ U-12サッカーリーグ2018（in栃木） 宇河地域リーグ戦（後期） Ａブロック | AR1: ＪＦＡ U-12サッカーリーグ2018（in栃木） 宇河地域リーグ戦（後期） Ａ・Ｂブロック
C3: 会場 | G3: =U12対戦スケジュール!B6 -> 白沢Ａ | P3: 会場担当 | T3: =U12対戦スケジュール!B7 -> 岡西ＦＣ | AC3: 開催日 | AG3: 2018-09-02 | AT3: 会場 | AX3: =U12対戦スケジュール!D6 -> 白沢Ｂ | BG3: 会場担当 | BK3: =U12対戦スケジュール!D7 -> カテット白沢ＳＳ | BT3: 開催日 | BX3: 2018-09-02
C5: 1 | E5: =U12組合せ!$D10 -> 石井ＦＣ | Q5: 6 | S5: =U12組合せ!$D15 -> ＦＣグラシアス | AT5: A1 | AV5: =U12組合せ!$D10 -> 石井ＦＣ | BH5: A6 | BJ5: =U12組合せ!$D15 -> ＦＣグラシアス | BV5: B7 | BX5: =U12組合せ!F16 -> ＦＣ Ｒｉｓｏ
C6: 2 | E6: =U12組合せ!$D11 -> 細谷ＳＣ | Q6: 7 | S6: =U12組合せ!$D16 -> 岡本ＦＣ | AT6: A2 | AV6: =U12組合せ!$D11 -> 細谷ＳＣ | BH6: A7 | BJ6: =U12組合せ!$D16 -> 岡本ＦＣ | BV6: B8 | BX6: =U12組合せ!F17 -> 富士見ＳＳＳ
C7: 3 | E7: =U12組合せ!$D12 -> ＦＣみらい Ｖ | Q7: 8 | S7: =U12組合せ!$D17 -> シャルムグランツＳＣ | AT7: A3 | AV7: =U12組合せ!$D12 -> ＦＣみらい Ｖ | BH7: A8 | BJ7: =U12組合せ!$D17 -> シャルムグランツＳＣ | BV7: B9 | BX7: =U12組合せ!F18 -> 豊郷ＪＦＣ宇都宮
C8: 4 | E8: =U12組合せ!$D13 -> 岡西ＦＣ | Q8: 9 | S8: =U12組合せ!$D18 -> カテット白沢ＳＳ | AT8: A4 | AV8: =U12組合せ!$D13 -> 岡西ＦＣ | BH8: A9 | BJ8: =U12組合せ!$D18 -> カテット白沢ＳＳ
C9: 5 | E9: =U12組合せ!$D14 -> ＦＣグランディール宇都宮 | Q9: 10 | S9: =U12組合せ!$D19 -> ＦＣアリーバ | AT9: A5 | AV9: =U12組合せ!$D14 -> ＦＣグランディール宇都宮 | BH9: A10 | BJ9: =U12組合せ!$D19 -> ＦＣアリーバ
B11: 【試合時間：２０分-５分-２０分】 | AS11: 【試合時間：２０分-５分-２０分】
C12: 試合開始 | F12: 監督サイン | J12: チーム名 | Q12: 得点 | X12: チーム名 | AE12: 監督サイン | AI12: 主審／副審／副審／４審 | AT12: 試合開始 | AW12: 監督サイン | BA12: チーム名 | BH12: 得点 | BO12: チーム名 | BV12: 監督サイン | BZ12: 主審／副審／副審／４審
B13: 1 | C13: 09:00:00 | J13: =E5 -> 石井ＦＣ | Q13: =IF(OR(S13="",S14=""),"",S13+S14) -> 2 | S13: 0 | T13: － | U13: 1 | V13: =IF(OR(U13="",U14=""),"",U13+U14) -> 2 | X13: =E6 -> 細谷ＳＣ | AI13: =DBCS(INDIRECT("U12対戦スケジュール!C"&(ROW()-1)/2+2)) -> ５／６／６／５ | AS13: 1 | AT13: 09:00:00 | BA13: =AV7 -> ＦＣみらい Ｖ | BH13: =IF(OR(BJ13="",BJ14=""),"",BJ13+BJ14) -> 1 | BJ13: 1 | BK13: － | BL13: 1 | BM13: =IF(OR(BL13="",BL14=""),"",BL13+BL14) -> 3 | BO13: =AV8 -> 岡西ＦＣ | BZ13: =DBCS(INDIRECT("U12対戦スケジュール!e"&(ROW()-1)/2+2)) -> Ｂ７／Ｂ８／Ｂ８／Ｂ７
S14: 2 | T14: － | U14: 1 | BJ14: 0 | BK14: － | BL14: 2
B15: 2 | C15: 09:50:00 | D15: 10:30:00 | J15: =E9 -> ＦＣグランディール宇都宮 | Q15: =IF(OR(S15="",S16=""),"",S15+S16) -> 1 | S15: 1 | T15: － | U15: 2 | V15: =IF(OR(U15="",U16=""),"",U15+U16) -> 4 | X15: =S5 -> ＦＣグラシアス | AI15: =DBCS(INDIRECT("U12対戦スケジュール!C"&(ROW()-1)/2+2)) -> １／２／２／１ | AS15: 2 | AT15: 09:50:00 | AU15: 10:30:00 | BA15: =BX5 -> ＦＣ Ｒｉｓｏ | BH15: =IF(OR(BJ15="",BJ16=""),"",BJ15+BJ16) -> 6 | BJ15: 4 | BK15: － | BL15: 0 | BM15: =IF(OR(BL15="",BL16=""),"",BL15+BL16) -> 0 | BO15: =BX6 -> 富士見ＳＳＳ | BZ15: =DBCS(INDIRECT("U12対戦スケジュール!e"&(ROW()-1)/2+2)) -> Ａ３／Ａ４／Ａ３／Ａ３
S16: 0 | T16: － | U16: 2 | BJ16: 2 | BK16: － | BL16: 0
B17: 3 | C17: 10:40:00 | J17: =S6 -> 岡本ＦＣ | Q17: =IF(OR(S17="",S18=""),"",S17+S18) -> 1 | S17: 1 | T17: － | U17: 1 | V17: =IF(OR(U17="",U18=""),"",U17+U18) -> 3 | X17: =S7 -> シャルムグランツＳＣ | AI17: =DBCS(INDIRECT("U12対戦スケジュール!C"&(ROW()-1)/2+2)) -> ２／３／３／２ | AS17: 3 | AT17: 10:40:00 | BA17: =BJ8 -> カテット白沢ＳＳ | BH17: =IF(OR(BJ17="",BJ18=""),"",BJ17+BJ18) -> 1 | BJ17: 1 | BK17: － | BL17: 0 | BM17: =IF(OR(BL17="",BL18=""),"",BL17+BL18) -> 0 | BO17: =BJ9 -> ＦＣアリーバ | BZ17: =DBCS(INDIRECT("U12対戦スケジュール!e"&(ROW()-1)/2+2)) -> Ｂ９／Ｂ７／Ｂ７／Ｂ９
S18: 0 | T18: － | U18: 2 | BJ18: 0 | BK18: － | BL18: 0
B19: 4 | C19: 11:30:00 | D19: 10:30:00 | J19: =E6 -> 細谷ＳＣ | Q19: =IF(OR(S19="",S20=""),"",S19+S20) -> 5 | S19: 2 | T19: － | U19: 0 | V19: =IF(OR(U19="",U20=""),"",U19+U20) -> 0 | X19: =E7 -> ＦＣみらい Ｖ | AI19: =DBCS(INDIRECT("U12対戦スケジュール!C"&(ROW()-1)/2+2)) -> ７／８／８／７ | AS19: 4 | AT19: 11:30:00 | AU19: 10:30:00 | BA19: =BX7 -> 豊郷ＪＦＣ宇都宮 | BH19: =IF(OR(BJ19="",BJ20=""),"",BJ19+BJ20) -> 2 | BJ19: 1 | BK19: － | BL19: 0 | BM19: =IF(OR(BL19="",BL20=""),"",BL19+BL20) -> 0 | BO19: =BX5 -> ＦＣ Ｒｉｓｏ | BZ19: =DBCS(INDIRECT("U12対戦スケジュール!e"&(ROW()-1)/2+2)) -> Ａ９／Ａ１０／Ａ１０／Ａ９
S20: 3 | T20: － | U20: 0 | BJ20: 1 | BK20: － | BL20: 0
B21: 5 | C21: 12:20:00 | J21: =S9 -> ＦＣアリーバ | Q21: =IF(OR(S21="",S22=""),"",S21+S22) -> 0 | S21: 0 | T21: － | U21: 0 | V21: =IF(OR(U21="",U22=""),"",U21+U22) -> 1 | X21: =E5 -> 石井ＦＣ | AI21: =DBCS(INDIRECT("U12対戦スケジュール!C"&(ROW()-1)/2+2)) -> ４／５／５／４ | AS21: 5 | AT21: 12:20:00 | BA21: =BJ5 -> ＦＣグラシアス | BH21: =IF(OR(BJ21="",BJ22=""),"",BJ21+BJ22) -> 4 | BJ21: 2 | BK21: － | BL21: 0 | BM21: =IF(OR(BL21="",BL22=""),"",BL21+BL22) -> 1 | BO21: =BJ6 -> 岡本ＦＣ | BZ21: =DBCS(INDIRECT("U12対戦スケジュール!e"&(ROW()-1)/2+2)) -> Ｂ８／Ｂ９／Ｂ９／Ｂ８
S22: 0 | T22: － | U22: 1 | BJ22: 2 | BK22: － | BL22: 1
B23: 6 | C23: 13:10:00 | D23: 10:30:00 | J23: =E8 -> 岡西ＦＣ | Q23: =IF(OR(S23="",S24=""),"",S23+S24) -> 1 | S23: 1 | T23: － | U23: 2 | V23: =IF(OR(U23="",U24=""),"",U23+U24) -> 7 | X23: =E9 -> ＦＣグランディール宇都宮 | AI23: =DBCS(INDIRECT("U12対戦スケジュール!C"&(ROW()-1)/2+2)) -> ８／９／９／８ | AS23: 6 | AT23: 13:10:00 | AU23: 10:30:00 | BA23: =BX6 -> 富士見ＳＳＳ | BH23: =IF(OR(BJ23="",BJ24=""),"",BJ23+BJ24) -> 0 | BJ23: 0 | BK23: － | BL23: 3 | BM23: =IF(OR(BL23="",BL24=""),"",BL23+BL24) -> 5 | BO23: =BX7 -> 豊郷ＪＦＣ宇都宮 | BZ23: =DBCS(INDIRECT("U12対戦スケジュール!e"&(ROW()-1)/2+2)) -> Ａ６／Ａ７／Ａ７／Ａ６
S24: 0 | T24: － | U24: 5 | BJ24: 0 | BK24: － | BL24: 2
B25: 7 | C25: 14:00:00 | D25: 10:30:00 | J25: =S7 -> シャルムグランツＳＣ | Q25: =IF(OR(S25="",S26=""),"",S25+S26) -> 0 | S25: 0 | T25: － | U25: 1 | V25: =IF(OR(U25="",U26=""),"",U25+U26) -> 6 | X25: =S8 -> カテット白沢ＳＳ | AI25: =DBCS(INDIRECT("U12対戦スケジュール!C"&(ROW()-1)/2+2)) -> １０／１／１／１０ | AS25: 7 | AT25: 14:00:00 | AU25: 10:30:00 | BH25: =IF(OR(BJ25="",BJ26=""),"",BJ25+BJ26) ->  | BK25: － | BM25: =IF(OR(BL25="",BL26=""),"",BL25+BL26) ->  | BZ25: =DBCS(INDIRECT("U12対戦スケジュール!e"&(ROW()-1)/2+2)) -> 
S26: 0 | T26: － | U26: 5 | BK26: －
D28: 警告／退場 | J28: チーム名 | R28: 氏名 | AA28: 番号 | AD28: 理由 | AU28: 警告／退場 | BA28: チーム名 | BI28: 氏名 | BR28: 番号 | BU28: 理由
D29: 警告 退場 | AU29: 警告 退場
D30: 警告 退場 | AU30: 警告 退場
D31: 警告 退場 | AU31: 警告 退場
A32: ＪＦＡ U-12サッカーリーグ2018（in栃木） 宇河地域リーグ戦（後期） Ａブロック | AR32: ＪＦＡ U-12サッカーリーグ2018（in栃木） 宇河地域リーグ戦（後期） Ａブロック
C34: 会場 | G34: =U12対戦スケジュール!B28 -> 石井１ | P34: 会場担当 | T34: =U12対戦スケジュール!B29 -> ＦＣアリーバ | AC34: 開催日 | AG34: 2018-09-08 | AT34: 会場 | AX34: =U12対戦スケジュール!D28 -> 石井２ | BG34: 会場担当 | BK34: =U12対戦スケジュール!D29 -> 石井ＦＣ | BT34: 開催日 | BX34: 2018-09-08
C36: 1 | E36: =U12組合せ!$D10 -> 石井ＦＣ | Q36: 6 | S36: =U12組合せ!$D15 -> ＦＣグラシアス | AT36: 1 | AV36: =U12組合せ!$D10 -> 石井ＦＣ | BH36: 6 | BJ36: =U12組合せ!$D15 -> ＦＣグラシアス
C37: 2 | E37: =U12組合せ!$D11 -> 細谷ＳＣ | Q37: 7 | S37: =U12組合せ!$D16 -> 岡本ＦＣ | AT37: 2 | AV37: =U12組合せ!$D11 -> 細谷ＳＣ | BH37: 7 | BJ37: =U12組合せ!$D16 -> 岡本ＦＣ
C38: 3 | E38: =U12組合せ!$D12 -> ＦＣみらい Ｖ | Q38: 8 | S38: =U12組合せ!$D17 -> シャルムグランツＳＣ | AT38: 3 | AV38: =U12組合せ!$D12 -> ＦＣみらい Ｖ | BH38: 8 | BJ38: =U12組合せ!$D17 -> シャルムグランツＳＣ
C39: 4 | E39: =U12組合せ!$D13 -> 岡西ＦＣ | Q39: 9 | S39: =U12組合せ!$D18 -> カテット白沢ＳＳ | AT39: 4 | AV39: =U12組合せ!$D13 -> 岡西ＦＣ | BH39: 9 | BJ39: =U12組合せ!$D18 -> カテット白沢ＳＳ
C40: 5 | E40: =U12組合せ!$D14 -> ＦＣグランディール宇都宮 | Q40: 10 | S40: =U12組合せ!$D19 -> ＦＣアリーバ | AT40: 5 | AV40: =U12組合せ!$D14 -> ＦＣグランディール宇都宮 | BH40: 10 | BJ40: =U12組合せ!$D19 -> ＦＣアリーバ
B42: 【試合時間：２０分-５分-２０分】 | AS42: 【試合時間：２０分-５分-２０分】
C43: 試合開始 | F43: 監督サイン | J43: チーム名 | Q43: 得点 | X43: チーム名 | AE43: 監督サイン | AI43: 主審／副審／副審／４審 | AT43: 試合開始 | AW43: 監督サイン | BA43: チーム名 | BH43: 得点 | BO43: チーム名 | BV43: 監督サイン | BZ43: 主審／副審／副審／４審
B44: 1 | C44: 09:00:00 | J44: =E37 -> 細谷ＳＣ | Q44: =IF(OR(S44="",S45=""),"",S44+S45) -> 13 | S44: 7 | T44: － | U44: 1 | V44: =IF(OR(U44="",U45=""),"",U44+U45) -> 1 | X44: =E39 -> 岡西ＦＣ | AI44: =DBCS(INDIRECT("U12対戦スケジュール!C"&(ROW()/2+8))) -> ８／１０／１０／８ | AS44: 1 | AT44: 09:00:00 | BA44: =AV40 -> ＦＣグランディール宇都宮 | BH44: =IF(OR(BJ44="",BJ45=""),"",BJ44+BJ45) -> 2 | BJ44: 0 | BK44: － | BL44: 0 | BM44: =IF(OR(BL44="",BL45=""),"",BL44+BL45) -> 0 | BO44: =BJ37 -> 岡本ＦＣ | BZ44: =DBCS(INDIRECT("U12対戦スケジュール!e"&(ROW()/2+8))) -> １／３／３／１
S45: 6 | T45: － | U45: 0 | BJ45: 2 | BK45: － | BL45: 0
B46: 2 | C46: 09:50:00 | D46: 10:30:00 | J46: =S38 -> シャルムグランツＳＣ | Q46: =IF(OR(S46="",S47=""),"",S46+S47) -> 0 | S46: 0 | T46: － | U46: 3 | V46: =IF(OR(U46="",U47=""),"",U46+U47) -> 4 | X46: =S40 -> ＦＣアリーバ | AI46: =DBCS(INDIRECT("U12対戦スケジュール!C"&(ROW()/2+8))) -> ４／６／６／４ | AS46: 2 | AT46: 09:50:00 | AU46: 10:30:00 | BA46: =AV36 -> 石井ＦＣ | BH46: =IF(OR(BJ46="",BJ47=""),"",BJ46+BJ47) -> 7 | BJ46: 6 | BK46: － | BL46: 0 | BM46: =IF(OR(BL46="",BL47=""),"",BL46+BL47) -> 0 | BO46: =AV38 -> ＦＣみらい Ｖ | BZ46: =DBCS(INDIRECT("U12対戦スケジュール!e"&(ROW()/2+8))) -> ７／９／９／７
S47: 0 | T47: － | U47: 1 | BJ47: 1 | BK47: － | BL47: 0
B48: 3 | C48: 10:40:00 | J48: =E39 -> 岡西ＦＣ | Q48: =IF(OR(S48="",S49=""),"",S48+S49) -> 0 | S48: 0 | T48: － | U48: 3 | V48: =IF(OR(U48="",U49=""),"",U48+U49) -> 8 | X48: =S36 -> ＦＣグラシアス | AI48: =DBCS(INDIRECT("U12対戦スケジュール!C"&(ROW()/2+8))) -> １０／２／２／１０ | AS48: 3 | AT48: 10:40:00 | BA48: =BJ37 -> 岡本ＦＣ | BH48: =IF(OR(BJ48="",BJ49=""),"",BJ48+BJ49) -> 0 | BJ48: 0 | BK48: － | BL48: 5 | BM48: =IF(OR(BL48="",BL49=""),"",BL48+BL49) -> 5 | BO48: =BJ39 -> カテット白沢ＳＳ | BZ48: =DBCS(INDIRECT("U12対戦スケジュール!e"&(ROW()/2+8))) -> ３／５／５／３
S49: 0 | T49: － | U49: 5 | BJ49: 0 | BK49: － | BL49: 0
B50: 4 | C50: 11:30:00 | D50: 10:30:00 | J50: =S40 -> ＦＣアリーバ | Q50: =IF(OR(S50="",S51=""),"",S50+S51) -> 0 | S50: 0 | T50: － | U50: 1 | V50: =IF(OR(U50="",U51=""),"",U50+U51) -> 3 | X50: =E37 -> 細谷ＳＣ | AI50: =DBCS(INDIRECT("U12対戦スケジュール!C"&(ROW()/2+8))) -> ６／８／８／６ | AS50: 4 | AT50: 11:30:00 | AU50: 10:30:00 | BA50: =AV38 -> ＦＣみらい Ｖ | BH50: =IF(OR(BJ50="",BJ51=""),"",BJ50+BJ51) -> 0 | BJ50: 0 | BK50: － | BL50: 2 | BM50: =IF(OR(BL50="",BL51=""),"",BL50+BL51) -> 5 | BO50: =AV40 -> ＦＣグランディール宇都宮 | BZ50: =DBCS(INDIRECT("U12対戦スケジュール!e"&(ROW()/2+8))) -> ９／１／１／９
S51: 0 | T51: － | U51: 2 | BJ51: 0 | BK51: － | BL51: 3
B52: 5 | C52: 12:20:00 | J52: =S36 -> ＦＣグラシアス | Q52: =IF(OR(S52="",S53=""),"",S52+S53) -> 4 | S52: 2 | T52: － | U52: 1 | V52: =IF(OR(U52="",U53=""),"",U52+U53) -> 2 | X52: =S38 -> シャルムグランツＳＣ | AI52: =DBCS(INDIRECT("U12対戦スケジュール!C"&(ROW()/2+8))) -> ２／４／４／２ | AS52: 5 | AT52: 12:20:00 | BA52: =BJ39 -> カテット白沢ＳＳ | BH52: =IF(OR(BJ52="",BJ53=""),"",BJ52+BJ53) -> 0 | BJ52: 0 | BK52: － | BL52: 1 | BM52: =IF(OR(BL52="",BL53=""),"",BL52+BL53) -> 2 | BO52: =AV36 -> 石井ＦＣ | BZ52: =DBCS(INDIRECT("U12対戦スケジュール!e"&(ROW()/2+8))) -> ５／７／７／５
S53: 2 | T53: － | U53: 1 | BJ53: 0 | BK53: － | BL53: 1
B54: 6 | C54: 13:10:00 | D54: 10:30:00 | Q54: =IF(OR(S54="",S55=""),"",S54+S55) ->  | T54: － | V54: =IF(OR(U54="",U55=""),"",U54+U55) ->  | AS54: 6 | AT54: 13:10:00 | AU54: 10:30:00 | BH54: =IF(OR(BJ54="",BJ55=""),"",BJ54+BJ55) ->  | BK54: － | BM54: =IF(OR(BL54="",BL55=""),"",BL54+BL55) -> 
T55: － | BK55: －
B56: 7 | C56: 14:00:00 | D56: 10:30:00 | Q56: =IF(OR(S56="",S57=""),"",S56+S57) ->  | T56: － | V56: =IF(OR(U56="",U57=""),"",U56+U57) ->  | AS56: 7 | AT56: 14:00:00 | AU56: 10:30:00 | BH56: =IF(OR(BJ56="",BJ57=""),"",BJ56+BJ57) ->  | BK56: － | BM56: =IF(OR(BL56="",BL57=""),"",BL56+BL57) -> 
T57: － | BK57: －
D59: 警告／退場 | J59: チーム名 | R59: 氏名 | AA59: 番号 | AD59: 理由 | AU59: 警告／退場 | BA59: チーム名 | BI59: 氏名 | BR59: 番号 | BU59: 理由
D60: 警告 退場 | AU60: 警告 退場
D61: 警告 退場 | AU61: 警告 退場
D62: 警告 退場 | AU62: 警告 退場
A63: ＪＦＡ U-12サッカーリーグ2018（in栃木） 宇河地域リーグ戦（後期） Ａブロック | AR63: ＪＦＡ U-12サッカーリーグ2018（in栃木） 宇河地域リーグ戦（後期） Ａ・Ｂブロック
C65: 会場 | G65: =U12対戦スケジュール!B49 -> 白沢Ａ | P65: 会場担当 | T65: =U12対戦スケジュール!B50 -> 細谷ＳＣ | AC65: 開催日 | AG65: 2018-09-09 | AR65: B | AT65: 会場 | AX65: =U12対戦スケジュール!D49 -> 白沢Ｂ | BG65: 会場担当 | BK65: =U12対戦スケジュール!D50 -> ＦＣグランディール宇都宮 | BT65: 開催日 | BX65: 2018-09-09
C67: 1 | E67: =U12組合せ!$D10 -> 石井ＦＣ | Q67: 6 | S67: =U12組合せ!$D15 -> ＦＣグラシアス | AT67: 1 | AV67: =U12組合せ!$D10 -> 石井ＦＣ | BH67: 6 | BJ67: =U12組合せ!$D15 -> ＦＣグラシアス | BV67: B3 | BX67: =U12組合せ!F12 -> ｕｎｉｏｎ ｓｃ
C68: 2 | E68: =U12組合せ!$D11 -> 細谷ＳＣ | Q68: 7 | S68: =U12組合せ!$D16 -> 岡本ＦＣ | AT68: 2 | AV68: =U12組合せ!$D11 -> 細谷ＳＣ | BH68: 7 | BJ68: =U12組合せ!$D16 -> 岡本ＦＣ | BV68: B4 | BX68: =U12組合せ!F13 -> 河内ＳＣジュベニール
C69: 3 | E69: =U12組合せ!$D12 -> ＦＣみらい Ｖ | Q69: 8 | S69: =U12組合せ!$D17 -> シャルムグランツＳＣ | AT69: 3 | AV69: =U12組合せ!$D12 -> ＦＣみらい Ｖ | BH69: 8 | BJ69: =U12組合せ!$D17 -> シャルムグランツＳＣ | BV69: B8 | BX69: =U12組合せ!F17 -> 富士見ＳＳＳ
C70: 4 | E70: =U12組合せ!$D13 -> 岡西ＦＣ | Q70: 9 | S70: =U12組合せ!$D18 -> カテット白沢ＳＳ | AT70: 4 | AV70: =U12組合せ!$D13 -> 岡西ＦＣ | BH70: 9 | BJ70: =U12組合せ!$D18 -> カテット白沢ＳＳ
C71: 5 | E71: =U12組合せ!$D14 -> ＦＣグランディール宇都宮 | Q71: 10 | S71: =U12組合せ!$D19 -> ＦＣアリーバ | AT71: 5 | AV71: =U12組合せ!$D14 -> ＦＣグランディール宇都宮 | BH71: 10 | BJ71: =U12組合せ!$D19 -> ＦＣアリーバ
B73: 【試合時間：２０分-５分-２０分】 | AS73: 【試合時間：２０分-５分-２０分】
C74: 試合開始 | F74: 監督サイン | J74: チーム名 | Q74: 得点 | X74: チーム名 | AE74: 監督サイン | AI74: 主審／副審／副審／４審 | AT74: 試合開始 | AW74: 監督サイン | BA74: チーム名 | BH74: 得点 | BO74: チーム名 | BV74: 監督サイン | BZ74: 主審／副審／副審／４審
B75: 1 | C75: 09:00:00 | J75: =E68 -> 細谷ＳＣ | Q75: =IF(OR(S75="",S76=""),"",S75+S76) -> 6 | S75: 2 | T75: － | U75: 0 | V75: =IF(OR(U75="",U76=""),"",U75+U76) -> 1 | X75: =E71 -> ＦＣグランディール宇都宮 | AI75: =DBCS(INDIRECT("U12対戦スケジュール!C"&(ROW()-1)/2+14)) -> １０／３／３／１０ | AS75: 1 | AT75: 09:00:00 | BA75: =BJ67 -> ＦＣグラシアス | BH75: =IF(OR(BJ75="",BJ76=""),"",BJ75+BJ76) -> 1 | BJ75: 0 | BK75: － | BL75: 3 | BM75: =IF(OR(BL75="",BL76=""),"",BL75+BL76) -> 5 | BO75: =BJ70 -> カテット白沢ＳＳ | BZ75: =DBCS(INDIRECT("U12対戦スケジュール!e"&(ROW()-1)/2+14)) -> Ｂ４／Ｂ８／Ｂ８／Ｂ４
S76: 4 | T76: － | U76: 1 | BJ76: 1 | BK76: － | BL76: 2
B77: 2 | C77: 09:50:00 | D77: 10:30:00 | J77: =S71 -> ＦＣアリーバ | Q77: =IF(OR(S77="",S78=""),"",S77+S78) -> 5 | S77: 2 | T77: － | U77: 0 | V77: =IF(OR(U77="",U78=""),"",U77+U78) -> 0 | X77: =E69 -> ＦＣみらい Ｖ | AI77: =DBCS(INDIRECT("U12対戦スケジュール!C"&(ROW()-1)/2+14)) -> ２／５／５／２ | AS77: 2 | AT77: 09:50:00 | AU77: 10:30:00 | BA77: =BX68 -> 河内ＳＣジュベニール | BH77: =IF(OR(BJ77="",BJ78=""),"",BJ77+BJ78) -> 0 | BJ77: 0 | BK77: － | BL77: 0 | BM77: =IF(OR(BL77="",BL78=""),"",BL77+BL78) -> 0 | BO77: =BX69 -> 富士見ＳＳＳ | BZ77: =DBCS(INDIRECT("U12対戦スケジュール!e"&(ROW()-1)/2+14)) -> Ａ６／Ａ９／Ａ９／Ａ６
S78: 3 | T78: － | U78: 0 | BJ78: 0 | BK78: － | BL78: 0
B79: 3 | C79: 10:40:00 | J79: =E70 -> 岡西ＦＣ | Q79: =IF(OR(S79="",S80=""),"",S79+S80) -> 2 | S79: 1 | T79: － | U79: 2 | V79: =IF(OR(U79="",U80=""),"",U79+U80) -> 2 | X79: =S68 -> 岡本ＦＣ | AI79: =DBCS(INDIRECT("U12対戦スケジュール!C"&(ROW()-1)/2+14)) -> ９／２／２／９ | AS79: 3 | AT79: 10:40:00 | BA79: =BJ69 -> シャルムグランツＳＣ | BH79: =IF(OR(BJ79="",BJ80=""),"",BJ79+BJ80) -> 2 | BJ79: 0 | BK79: － | BL79: 3 | BM79: =IF(OR(BL79="",BL80=""),"",BL79+BL80) -> 4 | BO79: =AV67 -> 石井ＦＣ | BZ79: =DBCS(INDIRECT("U12対戦スケジュール!e"&(ROW()-1)/2+14)) -> Ｂ３／Ｂ４／Ｂ４／Ｂ３
S80: 1 | T80: － | U80: 0 | BJ80: 2 | BK80: － | BL80: 1
B81: 4 | C81: 11:30:00 | D81: 10:30:00 | J81: =S70 -> カテット白沢ＳＳ | Q81: =IF(OR(S81="",S82=""),"",S81+S82) -> 3 | S81: 1 | T81: － | U81: 1 | V81: =IF(OR(U81="",U82=""),"",U81+U82) -> 1 | X81: =E68 -> 細谷ＳＣ | AI81: =DBCS(INDIRECT("U12対戦スケジュール!C"&(ROW()-1)/2+14)) -> ４／７／７／４ | AS81: 4 | AT81: 11:30:00 | AU81: 10:30:00 | BA81: =BX67 -> ｕｎｉｏｎ ｓｃ | BH81: =IF(OR(BJ81="",BJ82=""),"",BJ81+BJ82) -> 3 | BJ81: 3 | BK81: － | BL81: 0 | BM81: =IF(OR(BL81="",BL82=""),"",BL81+BL82) -> 1 | BO81: =BX68 -> 河内ＳＣジュベニール | BZ81: =DBCS(INDIRECT("U12対戦スケジュール!e"&(ROW()-1)/2+14)) -> Ａ８／Ａ１／Ａ１／Ａ８
S82: 2 | T82: － | U82: 0 | BJ82: 0 | BK82: － | BL82: 1
B83: 5 | C83: 12:20:00 | J83: =S68 -> 岡本ＦＣ | Q83: =IF(OR(S83="",S84=""),"",S83+S84) -> 1 | S83: 1 | T83: － | U83: 3 | V83: =IF(OR(U83="",U84=""),"",U83+U84) -> 3 | X83: =S71 -> ＦＣアリーバ | AI83: =DBCS(INDIRECT("U12対戦スケジュール!C"&(ROW()-1)/2+14)) -> ３／６／６／３ | AS83: 5 | AT83: 12:20:00 | BA83: =AV71 -> ＦＣグランディール宇都宮 | BH83: =IF(OR(BJ83="",BJ84=""),"",BJ83+BJ84) -> 1 | BJ83: 0 | BK83: － | BL83: 0 | BM83: =IF(OR(BL83="",BL84=""),"",BL83+BL84) -> 0 | BO83: =BJ69 -> シャルムグランツＳＣ | BZ83: =DBCS(INDIRECT("U12対戦スケジュール!e"&(ROW()-1)/2+14)) -> Ｂ８／Ｂ３／Ｂ３／Ｂ８
S84: 0 | T84: － | U84: 0 | BJ84: 1 | BK84: － | BL84: 0
B85: 6 | C85: 13:10:00 | D85: 10:30:00 | J85: =E69 -> ＦＣみらい Ｖ | Q85: =IF(OR(S85="",S86=""),"",S85+S86) -> 0 | S85: 0 | T85: － | U85: 4 | V85: =IF(OR(U85="",U86=""),"",U85+U86) -> 8 | X85: =S67 -> ＦＣグラシアス | AI85: =DBCS(INDIRECT("U12対戦スケジュール!C"&(ROW()-1)/2+14)) -> １／４／４／１ | AS85: 6 | AT85: 13:10:00 | AU85: 10:30:00 | BA85: =BX69 -> 富士見ＳＳＳ | BH85: =IF(OR(BJ85="",BJ86=""),"",BJ85+BJ86) -> 0 | BJ85: 0 | BK85: － | BL85: 0 | BM85: =IF(OR(BL85="",BL86=""),"",BL85+BL86) -> 4 | BO85: =BX67 -> ｕｎｉｏｎ ｓｃ | BZ85: =DBCS(INDIRECT("U12対戦スケジュール!e"&(ROW()-1)/2+14)) -> Ａ５／Ａ８／Ａ８／Ａ５
S86: 0 | T86: － | U86: 4 | BJ86: 0 | BK86: － | BL86: 4
B87: 7 | C87: 14:00:00 | D87: 10:30:00 | J87: =E67 -> 石井ＦＣ | Q87: =IF(OR(S87="",S88=""),"",S87+S88) -> 10 | S87: 7 | T87: － | U87: 0 | V87: =IF(OR(U87="",U88=""),"",U87+U88) -> 0 | X87: =E70 -> 岡西ＦＣ | AI87: =DBCS(INDIRECT("U12対戦スケジュール!C"&(ROW()-1)/2+14)) -> ７／１０／１０／７ | AS87: 7 | AT87: 14:00:00 | AU87: 10:30:00 | BH87: =IF(OR(BJ87="",BJ88=""),"",BJ87+BJ88) ->  | BK87: － | BM87: =IF(OR(BL87="",BL88=""),"",BL87+BL88) ->  | BZ87: =DBCS(INDIRECT("U12対戦スケジュール!e"&(ROW()-1)/2+14)) -> 
S88: 3 | T88: － | U88: 0 | BK88: －
D90: 警告／退場 | J90: チーム名 | R90: 氏名 | AA90: 番号 | AD90: 理由 | AU90: 警告／退場 | BA90: チーム名 | BI90: 氏名 | BR90: 番号 | BU90: 理由
D91: 警告 退場 | J91: =E71 -> ＦＣグランディール宇都宮 | R91: 西坂 知紋 | AA91: 4 | AD91: ＧＫのﾊﾟﾝﾄｷｯｸの前に立ち遅らせた | AU91: 警告 退場
D92: 警告 退場 | J92: =S68 -> 岡本ＦＣ | R92: 石川 真士 | AA92: 11 | AD92: 相手に対しての肘打ち | AU92: 警告 退場
D93: 警告 退場 | J93: =S70 -> カテット白沢ＳＳ | R93: 辻元 陽 | AA93: 33 | AD93: 故意のハンドリング | AU93: 警告 退場
A94: ＪＦＡ U-12サッカーリーグ2018（in栃木） 宇河地域リーグ戦（後期） Ａブロック | AR94: ＪＦＡ U-12サッカーリーグ2018（in栃木） 宇河地域リーグ戦（後期） Ａ・Ｂブロック
C96: 会場 | G96: =U12対戦スケジュール!B72 -> 白沢Ａ | P96: 会場担当 | T96: =U12対戦スケジュール!B73 -> 岡本ＦＣ | AC96: 開催日 | AG96: 2018-09-16 | AT96: 会場 | AX96: =U12対戦スケジュール!D72 -> 白沢Ｂ | BG96: 会場担当 | BK96: =U12対戦スケジュール!D73 -> ＦＣみらいＶ | BT96: 開催日 | BX96: 2018-09-16
C98: 1 | E98: =U12組合せ!$D10 -> 石井ＦＣ | Q98: 6 | S98: =U12組合せ!$D15 -> ＦＣグラシアス | AT98: 1 | AV98: =U12組合せ!$D10 -> 石井ＦＣ | BH98: 6 | BJ98: =U12組合せ!$D15 -> ＦＣグラシアス | BV98: B3 | BX98: =U12組合せ!F12 -> ｕｎｉｏｎ ｓｃ
C99: 2 | E99: =U12組合せ!$D11 -> 細谷ＳＣ | Q99: 7 | S99: =U12組合せ!$D16 -> 岡本ＦＣ | AT99: 2 | AV99: =U12組合せ!$D11 -> 細谷ＳＣ | BH99: 7 | BJ99: =U12組合せ!$D16 -> 岡本ＦＣ | BV99: B5 | BX99: =U12組合せ!F14 -> 昭和・戸祭ＳＣ
C100: 3 | E100: =U12組合せ!$D12 -> ＦＣみらい Ｖ | Q100: 8 | S100: =U12組合せ!$D17 -> シャルムグランツＳＣ | AT100: 3 | AV100: =U12組合せ!$D12 -> ＦＣみらい Ｖ | BH100: 8 | BJ100: =U12組合せ!$D17 -> シャルムグランツＳＣ | BV100: B7 | BX100: =U12組合せ!F16 -> ＦＣ Ｒｉｓｏ
C101: 4 | E101: =U12組合せ!$D13 -> 岡西ＦＣ | Q101: 9 | S101: =U12組合せ!$D18 -> カテット白沢ＳＳ | AT101: 4 | AV101: =U12組合せ!$D13 -> 岡西ＦＣ | BH101: 9 | BJ101: =U12組合せ!$D18 -> カテット白沢ＳＳ
C102: 5 | E102: =U12組合せ!$D14 -> ＦＣグランディール宇都宮 | Q102: 10 | S102: =U12組合せ!$D19 -> ＦＣアリーバ | AT102: 5 | AV102: =U12組合せ!$D14 -> ＦＣグランディール宇都宮 | BH102: 10 | BJ102: =U12組合せ!$D19 -> ＦＣアリーバ
B104: 【試合時間：２０分-５分-２０分】 | AS104: 【試合時間：２０分-５分-２０分】
C105: 試合開始 | F105: 監督サイン | J105: チーム名 | Q105: 得点 | X105: チーム名 | AE105: 監督サイン | AI105: 主審／副審／副審／４審 | AT105: 試合開始 | AW105: 監督サイン | BA105: チーム名 | BH105: 得点 | BO105: チーム名 | BV105: 監督サイン | BZ105: 主審／副審／副審／４審
B106: 1 | C106: 09:00:00 | J106: =E99 -> 細谷ＳＣ | Q106: =IF(OR(S106="",S107=""),"",S106+S107) -> 2 | S106: 0 | T106: － | U106: 0 | V106: =IF(OR(U106="",U107=""),"",U106+U107) -> 0 | X106: =S98 -> ＦＣグラシアス | AI106: =DBCS(INDIRECT("U12対戦スケジュール!ｃ"&(ROW()/2+21))) -> ４／１／１／４ | AS106: 1 | AT106: 09:00:00 | BA106: =AV100 -> ＦＣみらい Ｖ | BH106: =IF(OR(BJ106="",BJ107=""),"",BJ106+BJ107) -> 0 | BJ106: 0 | BK106: － | BL106: 2 | BM106: =IF(OR(BL106="",BL107=""),"",BL106+BL107) -> 2 | BO106: =BJ99 -> 岡本ＦＣ | BZ106: =DBCS(INDIRECT("U12対戦スケジュール!e"&(ROW()/2+21))) -> Ｂ３／Ｂ５／Ｂ５／Ｂ３
S107: 2 | T107: － | U107: 0 | BJ107: 0 | BK107: － | BL107: 0
B108: 2 | C108: 09:50:00 | D108: 10:30:00 | J108: =E101 -> 岡西ＦＣ | Q108: =IF(OR(S108="",S109=""),"",S108+S109) ->  | T108: － | V108: =IF(OR(U108="",U109=""),"",U108+U109) ->  | X108: =S100 -> シャルムグランツＳＣ | AI108: =DBCS(INDIRECT("U12対戦スケジュール!ｃ"&(ROW()/2+21))) -> ２／６／６／２ | AS108: 2 | AT108: 09:50:00 | AU108: 10:30:00 | BA108: =BX98 -> ｕｎｉｏｎ ｓｃ | BH108: =IF(OR(BJ108="",BJ109=""),"",BJ108+BJ109) -> 1 | BJ108: 0 | BK108: － | BL108: 1 | BM108: =IF(OR(BL108="",BL109=""),"",BL108+BL109) -> 2 | BO108: =BX99 -> 昭和・戸祭ＳＣ | BZ108: =DBCS(INDIRECT("U12対戦スケジュール!e"&(ROW()/2+21))) -> Ａ３／Ａ７／Ａ７／Ａ３
T109: － | BJ109: 1 | BK109: － | BL109: 1
B110: 3 | C110: 10:40:00 | J110: =S98 -> ＦＣグラシアス | Q110: =IF(OR(S110="",S111=""),"",S110+S111) -> 2 | S110: 1 | T110: － | U110: 1 | V110: =IF(OR(U110="",U111=""),"",U110+U111) -> 5 | X110: =S102 -> ＦＣアリーバ | AI110: =DBCS(INDIRECT("U12対戦スケジュール!ｃ"&(ROW()/2+21))) -> ７／１／１／７ | AS110: 3 | AT110: 10:40:00 | BA110: =AV102 -> ＦＣグランディール宇都宮 | BH110: =IF(OR(BJ110="",BJ111=""),"",BJ110+BJ111) -> 0 | BJ110: 0 | BK110: － | BL110: 2 | BM110: =IF(OR(BL110="",BL111=""),"",BL110+BL111) -> 3 | BO110: =BJ101 -> カテット白沢ＳＳ | BZ110: =DBCS(INDIRECT("U12対戦スケジュール!e"&(ROW()/2+21))) -> Ｂ７／Ｂ３／Ｂ３／Ｂ７
S111: 1 | T111: － | U111: 4 | BJ111: 0 | BK111: － | BL111: 1
B112: 4 | C112: 11:30:00 | D112: 10:30:00 | J112: =S99 -> 岡本ＦＣ | Q112: =IF(OR(S112="",S113=""),"",S112+S113) -> 0 | S112: 0 | T112: － | U112: 0 | V112: =IF(OR(U112="",U113=""),"",U112+U113) -> 2 | X112: =E98 -> 石井ＦＣ | AI112: =DBCS(INDIRECT("U12対戦スケジュール!ｃ"&(ROW()/2+21))) -> ６／１０／１０／６ | AS112: 4 | AT112: 11:30:00 | AU112: 10:30:00 | BA112: =BX100 -> ＦＣ Ｒｉｓｏ | BH112: =IF(OR(BJ112="",BJ113=""),"",BJ112+BJ113) -> 3 | BJ112: 2 | BK112: － | BL112: 0 | BM112: =IF(OR(BL112="",BL113=""),"",BL112+BL113) -> 0 | BO112: =BX98 -> ｕｎｉｏｎ ｓｃ | BZ112: =DBCS(INDIRECT("U12対戦スケジュール!e"&(ROW()/2+21))) -> Ａ５／Ａ９／Ａ９／Ａ５
S113: 0 | T113: － | U113: 2 | BJ113: 1 | BK113: － | BL113: 0
B114: 5 | C114: 12:20:00 | J114: =S100 -> シャルムグランツＳＣ | Q114: =IF(OR(S114="",S115=""),"",S114+S115) ->  | T114: － | V114: =IF(OR(U114="",U115=""),"",U114+U115) ->  | X114: =E99 -> 細谷ＳＣ | AI114: =DBCS(INDIRECT("U12対戦スケジュール!ｃ"&(ROW()/2+21))) -> １０／４／４／１０ | AS114: 5 | AT114: 12:20:00 | BA114: =BJ101 -> カテット白沢ＳＳ | BH114: =IF(OR(BJ114="",BJ115=""),"",BJ114+BJ115) -> 7 | BJ114: 3 | BK114: － | BL114: 0 | BM114: =IF(OR(BL114="",BL115=""),"",BL114+BL115) -> 1 | BO114: =AV100 -> ＦＣみらい Ｖ | BZ114: =DBCS(INDIRECT("U12対戦スケジュール!e"&(ROW()/2+21))) -> Ｂ５／Ｂ７／Ｂ７／Ｂ５
T115: － | BJ115: 4 | BK115: － | BL115: 1
B116: 6 | C116: 13:10:00 | D116: 10:30:00 | J116: =S102 -> ＦＣアリーバ | Q116: =IF(OR(S116="",S117=""),"",S116+S117) -> 8 | S116: 2 | T116: － | U116: 0 | V116: =IF(OR(U116="",U117=""),"",U116+U117) -> 0 | X116: =E101 -> 岡西ＦＣ | AI116: =DBCS(INDIRECT("U12対戦スケジュール!ｃ"&(ROW()/2+21))) -> １／５／５／１ | AS116: 6 | AT116: 13:10:00 | AU116: 10:30:00 | BA116: =BX99 -> 昭和・戸祭ＳＣ | BH116: =IF(OR(BJ116="",BJ117=""),"",BJ116+BJ117) -> 0 | BJ116: 0 | BK116: － | BL116: 3 | BM116: =IF(OR(BL116="",BL117=""),"",BL116+BL117) -> 3 | BO116: =BX100 -> ＦＣ Ｒｉｓｏ | BZ116: =DBCS(INDIRECT("U12対戦スケジュール!e"&(ROW()/2+21))) -> Ａ９／Ａ３／Ａ３／Ａ９
S117: 6 | T117: － | U117: 0 | BJ117: 0 | BK117: － | BL117: 0
B118: 7 | C118: 14:00:00 | D118: 10:30:00 | J118: =E98 -> 石井ＦＣ | Q118: =IF(OR(S118="",S119=""),"",S118+S119) -> 2 | S118: 0 | T118: － | U118: 0 | V118: =IF(OR(U118="",U119=""),"",U118+U119) -> 0 | X118: =E102 -> ＦＣグランディール宇都宮 | AI118: =DBCS(INDIRECT("U12対戦スケジュール!ｃ"&(ROW()/2+21))) -> １０／２／２／１０ | AS118: 7 | AT118: 14:00:00 | AU118: 10:30:00 | BH118: =IF(OR(BJ118="",BJ119=""),"",BJ118+BJ119) ->  | BK118: － | BM118: =IF(OR(BL118="",BL119=""),"",BL118+BL119) -> 
S119: 2 | T119: － | U119: 0 | BK119: －
D121: 警告／退場 | J121: チーム名 | R121: 氏名 | AA121: 番号 | AD121: 理由 | AU121: 警告／退場 | BA121: チーム名 | BI121: 氏名 | BR121: 番号 | BU121: 理由
D122: 警告 退場 | AU122: 警告 退場
D123: 警告 退場 | AU123: 警告 退場
D124: 警告 退場 | AU124: 警告 退場
A125: ＪＦＡ U-12サッカーリーグ2018（in栃木） 宇河地域リーグ戦（後期） Ａブロック
C127: 会場 | G127: =U12対戦スケジュール!B94 -> 平出Ａ | P127: 会場担当 | T127: シャルムグランツＳＣ | AC127: 開催日 | AG127: 2018-09-17
C129: 1 | E129: =U12組合せ!$D10 -> 石井ＦＣ | Q129: 6 | S129: =U12組合せ!$D15 -> ＦＣグラシアス
C130: 2 | E130: =U12組合せ!$D11 -> 細谷ＳＣ | Q130: 7 | S130: =U12組合せ!$D16 -> 岡本ＦＣ
C131: 3 | E131: =U12組合せ!$D12 -> ＦＣみらい Ｖ | Q131: 8 | S131: =U12組合せ!$D17 -> シャルムグランツＳＣ
C132: 4 | E132: =U12組合せ!$D13 -> 岡西ＦＣ | Q132: 9 | S132: =U12組合せ!$D18 -> カテット白沢ＳＳ
C133: 5 | E133: =U12組合せ!$D14 -> ＦＣグランディール宇都宮 | Q133: 10 | S133: =U12組合せ!$D19 -> ＦＣアリーバ
B135: 【試合時間：２０分-５分-２０分】
C136: 試合開始 | F136: 監督サイン | J136: チーム名 | Q136: 得点 | X136: チーム名 | AE136: 監督サイン | AI136: 主審／副審／副審／４審
B137: 1 | C137: 09:00:00 | J137: =E130 -> 細谷ＳＣ | Q137: =IF(OR(S137="",S138=""),"",S137+S138) -> 8 | S137: 2 | T137: － | U137: 0 | V137: =IF(OR(U137="",U138=""),"",U137+U138) -> 0 | X137: =S130 -> 岡本ＦＣ | AI137: =DBCS(INDIRECT("U12対戦スケジュール!C"&(ROW()-1)/2+28)) -> ３／８／８／３
S138: 6 | T138: － | U138: 0
B139: 2 | C139: 09:50:00 | D139: 10:30:00 | J139: =E131 -> ＦＣみらい Ｖ | Q139: =IF(OR(S139="",S140=""),"",S139+S140) -> 0 | S139: 0 | T139: － | U139: 1 | V139: =IF(OR(U139="",U140=""),"",U139+U140) -> 3 | X139: =S131 -> シャルムグランツＳＣ | AI139: =DBCS(INDIRECT("U12対戦スケジュール!C"&(ROW()-1)/2+28)) -> ２／７／７／２
S140: 0 | T140: － | U140: 2
B141: 3 | C141: 10:40:00 | J141: =E132 -> 岡西ＦＣ | Q141: =IF(OR(S141="",S142=""),"",S141+S142) -> 0 | S141: 0 | T141: － | U141: 5 | V141: =IF(OR(U141="",U142=""),"",U141+U142) -> 9 | X141: =S132 -> カテット白沢ＳＳ | AI141: =DBCS(INDIRECT("U12対戦スケジュール!C"&(ROW()-1)/2+28)) -> ５／１０／１０／５
S142: 0 | T142: － | U142: 4
B143: 4 | C143: 11:30:00 | D143: 10:30:00 | J143: =S131 -> シャルムグランツＳＣ | Q143: =IF(OR(S143="",S144=""),"",S143+S144) -> 0 | S143: 0 | T143: － | U143: 4 | V143: =IF(OR(U143="",U144=""),"",U143+U144) -> 10 | X143: =E130 -> 細谷ＳＣ | AI143: =DBCS(INDIRECT("U12対戦スケジュール!C"&(ROW()-1)/2+28)) -> １０／４／４／１０
S144: 0 | T144: － | U144: 6
B145: 5 | C145: 12:20:00 | J145: =E133 -> ＦＣグランディール宇都宮 | Q145: =IF(OR(S145="",S146=""),"",S145+S146) -> 2 | S145: 2 | T145: － | U145: 2 | V145: =IF(OR(U145="",U146=""),"",U145+U146) -> 2 | X145: =S133 -> ＦＣアリーバ | AI145: =DBCS(INDIRECT("U12対戦スケジュール!C"&(ROW()-1)/2+28)) -> １／６／６／１
S146: 0 | T146: － | U146: 0
B147: 6 | C147: 13:10:00 | D147: 10:30:00 | J147: =E129 -> 石井ＦＣ | Q147: =IF(OR(S147="",S148=""),"",S147+S148) -> 1 | S147: 0 | T147: － | U147: 0 | V147: =IF(OR(U147="",U148=""),"",U147+U148) -> 2 | X147: =S129 -> ＦＣグラシアス | AI147: =DBCS(INDIRECT("U12対戦スケジュール!C"&(ROW()-1)/2+28)) -> ４／９／９／４
S148: 1 | T148: － | U148: 2
B149: 7 | C149: 14:00:00 | D149: 10:30:00 | J149: =E132 -> 岡西ＦＣ | Q149: =IF(OR(S149="",S150=""),"",S149+S150) -> 2 | S149: 1 | T149: － | U149: 3 | V149: =IF(OR(U149="",U150=""),"",U149+U150) -> 4 | X149: =S131 -> シャルムグランツＳＣ | AI149: =DBCS(INDIRECT("U12対戦スケジュール!C"&(ROW()-1)/2+28)) -> ２／６／６／２
S150: 1 | T150: － | U150: 1
D152: 警告／退場 | J152: チーム名 | R152: 氏名 | AA152: 番号 | AD152: 理由
D153: 警告 退場
D154: 警告 退場
D155: 警告 退場

Sheet Ｂブロック対戦表
A1: ＪＦＡ U-12サッカーリーグ2018（in栃木） 宇河地域リーグ戦（後期） Ｂブロック
C3: 会場 | G3: =U12対戦スケジュール!F6 -> 石井５ | P3: 会場担当 | T3: =U12対戦スケジュール!F7 -> 姿川第一ＦＣ | AC3: 開催日 | AG3: 2018-09-02
C5: 1 | E5: =U12組合せ!$F$10 -> 姿川第一ＦＣ | Q5: 2 | S5: =U12組合せ!$F$11 -> 宝木キッカーズ | AE5: 3 | AG5: =U12組合せ!$F$12 -> ｕｎｉｏｎ ｓｃ
C6: 4 | E6: =U12組合せ!$F$13 -> 河内ＳＣジュベニール | Q6: 5 | S6: =U12組合せ!$F$14 -> 昭和・戸祭ＳＣ | AE6: 6 | AG6: =U12組合せ!$F$15 -> サウス宇都宮ＳＣ
C7: 7 | E7: =U12組合せ!$F$16 -> ＦＣ Ｒｉｓｏ | Q7: 8 | S7: =U12組合せ!$F$17 -> 富士見ＳＳＳ | AE7: 9 | AG7: =U12組合せ!$F$18 -> 豊郷ＪＦＣ宇都宮
B11: 【試合時間：２０分-５分-２０分】
C12: 試合開始 | F12: 監督サイン | J12: チーム名 | Q12: 得点 | X12: チーム名 | AE12: 監督サイン | AI12: 主審／副審／副審／４審
B13: 1 | C13: 09:00:00 | J13: =E5 -> 姿川第一ＦＣ | Q13: =IF(OR(S13="",S14=""),"",S13+S14) -> 1 | S13: 1 | T13: － | U13: 0 | V13: =IF(OR(U13="",U14=""),"",U13+U14) -> 0 | X13: =S5 -> 宝木キッカーズ | AI13: =DBCS(INDIRECT("U12対戦スケジュール!g"&(ROW()-1)/2+2)) -> ４／５／５／４
S14: 0 | T14: － | U14: 0
B15: 2 | C15: 09:50:00 | D15: 10:30:00 | J15: =E6 -> 河内ＳＣジュベニール | Q15: =IF(OR(S15="",S16=""),"",S15+S16) -> 0 | S15: 0 | T15: － | U15: 1 | V15: =IF(OR(U15="",U16=""),"",U15+U16) -> 2 | X15: =S6 -> 昭和・戸祭ＳＣ | AI15: =DBCS(INDIRECT("U12対戦スケジュール!g"&(ROW()-1)/2+2)) -> １／２／２／１
S16: 0 | T16: － | U16: 1
B17: 3 | C17: 10:40:00 | J17: =AG5 -> ｕｎｉｏｎ ｓｃ | Q17: =IF(OR(S17="",S18=""),"",S17+S18) -> 2 | S17: 0 | T17: － | U17: 0 | V17: =IF(OR(U17="",U18=""),"",U17+U18) -> 0 | X17: =E5 -> 姿川第一ＦＣ | AI17: =DBCS(INDIRECT("U12対戦スケジュール!g"&(ROW()-1)/2+2)) -> ６／４／４／６
S18: 2 | T18: － | U18: 0
B19: 4 | C19: 11:30:00 | D19: 10:30:00 | J19: =AG6 -> サウス宇都宮ＳＣ | Q19: =IF(OR(S19="",S20=""),"",S19+S20) -> 5 | S19: 4 | T19: － | U19: 0 | V19: =IF(OR(U19="",U20=""),"",U19+U20) -> 0 | X19: =E6 -> 河内ＳＣジュベニール | AI19: =DBCS(INDIRECT("U12対戦スケジュール!g"&(ROW()-1)/2+2)) -> ３／１／１／３
S20: 1 | T20: － | U20: 0
B21: 5 | C21: 12:20:00 | J21: =S5 -> 宝木キッカーズ | Q21: =IF(OR(S21="",S22=""),"",S21+S22) -> 2 | S21: 2 | T21: － | U21: 2 | V21: =IF(OR(U21="",U22=""),"",U21+U22) -> 4 | X21: =AG5 -> ｕｎｉｏｎ ｓｃ | AI21: =DBCS(INDIRECT("U12対戦スケジュール!g"&(ROW()-1)/2+2)) -> ５／６／６／５
S22: 0 | T22: － | U22: 2
B23: 6 | C23: 13:10:00 | D23: 10:30:00 | J23: =S6 -> 昭和・戸祭ＳＣ | Q23: =IF(OR(S23="",S24=""),"",S23+S24) -> 1 | S23: 0 | T23: － | U23: 0 | V23: =IF(OR(U23="",U24=""),"",U23+U24) -> 0 | X23: =AG6 -> サウス宇都宮ＳＣ | AI23: =DBCS(INDIRECT("U12対戦スケジュール!g"&(ROW()-1)/2+2)) -> ２／３／３／２
S24: 1 | T24: － | U24: 0
B25: 7 | C25: 14:00:00 | D25: 10:30:00 | Q25: =IF(OR(S25="",S26=""),"",S25+S26) ->  | T25: － | V25: =IF(OR(U25="",U26=""),"",U25+U26) ->  | AI25: =DBCS(INDIRECT("U12対戦スケジュール!e"&(ROW()-1)/2+2)) -> 
T26: －
D28: 警告／退場 | J28: チーム名 | R28: 氏名 | AA28: 番号 | AD28: 理由
D29: 警告 退場
D30: 警告 退場
D31: 警告 退場
A32: ＪＦＡ U-12サッカーリーグ2018（in栃木） 宇河地域リーグ戦（後期） Ｂブロック
C34: 会場 | G34: 石井No３ | P34: 会場担当 | T34: 豊郷ＪＦＣ宇都宮 | AC34: 開催日 | AG34: 2018-09-08
C36: 1 | E36: =U12組合せ!$F$10 -> 姿川第一ＦＣ | Q36: 2 | S36: =U12組合せ!$F$11 -> 宝木キッカーズ | AE36: 3 | AG36: =U12組合せ!$F$12 -> ｕｎｉｏｎ ｓｃ
C37: 4 | E37: =U12組合せ!$F$13 -> 河内ＳＣジュベニール | Q37: 5 | S37: =U12組合せ!$F$14 -> 昭和・戸祭ＳＣ | AE37: 6 | AG37: =U12組合せ!$F$15 -> サウス宇都宮ＳＣ
C38: 7 | E38: =U12組合せ!$F$16 -> ＦＣ Ｒｉｓｏ | Q38: 8 | S38: =U12組合せ!$F$17 -> 富士見ＳＳＳ | AE38: 9 | AG38: =U12組合せ!$F$18 -> 豊郷ＪＦＣ宇都宮
B42: 【試合時間：２０分-５分-２０分】
C43: 試合開始 | F43: 監督サイン | J43: チーム名 | Q43: 得点 | X43: チーム名 | AE43: 監督サイン | AI43: 主審／副審／副審／４審
B44: 1 | C44: 09:00:00 | J44: =AG38 -> 豊郷ＪＦＣ宇都宮 | Q44: =IF(OR(S44="",S45=""),"",S44+S45) -> 2 | S44: 2 | T44: － | U44: 0 | V44: =IF(OR(U44="",U45=""),"",U44+U45) -> 0 | X44: =AG36 -> ｕｎｉｏｎ ｓｃ | AI44: =DBCS(INDIRECT("U12対戦スケジュール!g"&(ROW()/2+8))) -> ７／１／１／７
S45: 0 | T45: － | U45: 0
B46: 2 | C46: 09:50:00 | D46: 10:30:00 | J46: =E38 -> ＦＣ Ｒｉｓｏ | Q46: =IF(OR(S46="",S47=""),"",S46+S47) -> 2 | S46: 2 | T46: － | U46: 0 | V46: =IF(OR(U46="",U47=""),"",U46+U47) -> 0 | X46: =E36 -> 姿川第一ＦＣ | AI46: =DBCS(INDIRECT("U12対戦スケジュール!g"&(ROW()/2+8))) -> ９／３／３／９
S47: 0 | T47: － | U47: 0
B48: 3 | C48: 10:40:00 | J48: =AG37 -> サウス宇都宮ＳＣ | Q48: =IF(OR(S48="",S49=""),"",S48+S49) -> 0 | S48: 0 | T48: － | U48: 0 | V48: =IF(OR(U48="",U49=""),"",U48+U49) -> 0 | X48: =AG38 -> 豊郷ＪＦＣ宇都宮 | AI48: =DBCS(INDIRECT("U12対戦スケジュール!g"&(ROW()/2+8))) -> ４／７／７／４
S49: 0 | T49: － | U49: 0
B50: 4 | C50: 11:30:00 | D50: 10:30:00 | J50: =E37 -> 河内ＳＣジュベニール | Q50: =IF(OR(S50="",S51=""),"",S50+S51) -> 0 | S50: 0 | T50: － | U50: 0 | V50: =IF(OR(U50="",U51=""),"",U50+U51) -> 1 | X50: =E38 -> ＦＣ Ｒｉｓｏ | AI50: =DBCS(INDIRECT("U12対戦スケジュール!g"&(ROW()/2+8))) -> ６／９／９／６
S51: 0 | T51: － | U51: 1
B52: 5 | C52: 12:20:00 | J52: =AG36 -> ｕｎｉｏｎ ｓｃ | Q52: =IF(OR(S52="",S53=""),"",S52+S53) -> 2 | S52: 1 | T52: － | U52: 0 | V52: =IF(OR(U52="",U53=""),"",U52+U53) -> 0 | X52: =AG37 -> サウス宇都宮ＳＣ | AI52: =DBCS(INDIRECT("U12対戦スケジュール!g"&(ROW()/2+8))) -> １／４／４／１
S53: 1 | T53: － | U53: 0
B54: 6 | C54: 13:10:00 | D54: 10:30:00 | J54: =E36 -> 姿川第一ＦＣ | Q54: =IF(OR(S54="",S55=""),"",S54+S55) -> 3 | S54: 1 | T54: － | U54: 0 | V54: =IF(OR(U54="",U55=""),"",U54+U55) -> 0 | X54: =E37 -> 河内ＳＣジュベニール | AI54: =DBCS(INDIRECT("U12対戦スケジュール!g"&(ROW()/2+8))) -> ３／６／６／３
S55: 2 | T55: － | U55: 0
B56: 7 | C56: 14:00:00 | D56: 10:30:00 | Q56: =IF(OR(S56="",S57=""),"",S56+S57) ->  | T56: － | V56: =IF(OR(U56="",U57=""),"",U56+U57) -> 
T57: －
D59: 警告／退場 | J59: チーム名 | R59: 氏名 | AA59: 番号 | AD59: 理由
D60: 警告 退場
D61: 警告 退場
D62: 警告 退場
A63: ＪＦＡ U-12サッカーリーグ2018（in栃木） 宇河地域リーグ戦（後期） Ｂブロック
C65: 会場 | G65: =U12対戦スケジュール!F49 -> 新田小 | P65: 会場担当 | T65: =U12対戦スケジュール!F50 -> サウス宇都宮ＳＣ | AC65: 開催日 | AG65: 2018-09-09
C67: 1 | E67: =U12組合せ!$F$10 -> 姿川第一ＦＣ | Q67: 2 | S67: =U12組合せ!$F$11 -> 宝木キッカーズ | AE67: 3 | AG67: =U12組合せ!$F$12 -> ｕｎｉｏｎ ｓｃ
C68: 4 | E68: =U12組合せ!$F$13 -> 河内ＳＣジュベニール | Q68: 5 | S68: =U12組合せ!$F$14 -> 昭和・戸祭ＳＣ | AE68: 6 | AG68: =U12組合せ!$F$15 -> サウス宇都宮ＳＣ
C69: 7 | E69: =U12組合せ!$F$16 -> ＦＣ Ｒｉｓｏ | Q69: 8 | S69: =U12組合せ!$F$17 -> 富士見ＳＳＳ | AE69: 9 | AG69: =U12組合せ!$F$18 -> 豊郷ＪＦＣ宇都宮
B73: 【試合時間：２０分-５分-２０分】
C74: 試合開始 | F74: 監督サイン | J74: チーム名 | Q74: 得点 | X74: チーム名 | AE74: 監督サイン | AI74: 主審／副審／副審／４審
B75: 1 | C75: 09:00:00 | J75: =AG68 -> サウス宇都宮ＳＣ | Q75: =IF(OR(S75="",S76=""),"",S75+S76) -> 0 | S75: 0 | T75: － | U75: 2 | V75: =IF(OR(U75="",U76=""),"",U75+U76) -> 3 | X75: =E69 -> ＦＣ Ｒｉｓｏ | AI75: =DBCS(INDIRECT("U12対戦スケジュール!g"&(ROW()-1)/2+14)) -> ５／９／９／５
S76: 0 | T76: － | U76: 1
B77: 2 | C77: 09:50:00 | D77: 10:30:00 | J77: =S68 -> 昭和・戸祭ＳＣ | Q77: =IF(OR(S77="",S78=""),"",S77+S78) -> 0 | S77: 0 | T77: － | U77: 2 | V77: =IF(OR(U77="",U78=""),"",U77+U78) -> 4 | X77: =AG69 -> 豊郷ＪＦＣ宇都宮 | AI77: =DBCS(INDIRECT("U12対戦スケジュール!g"&(ROW()-1)/2+14)) -> ６／７／７／６
S78: 0 | T78: － | U78: 2
B79: 3 | C79: 10:40:00 | J79: =S67 -> 宝木キッカーズ | Q79: =IF(OR(S79="",S80=""),"",S79+S80) -> 3 | S79: 1 | T79: － | U79: 1 | V79: =IF(OR(U79="",U80=""),"",U79+U80) -> 2 | X79: =AG68 -> サウス宇都宮ＳＣ | AI79: =DBCS(INDIRECT("U12対戦スケジュール!g"&(ROW()-1)/2+14)) -> １／５／５／１
S80: 2 | T80: － | U80: 1
B81: 4 | C81: 11:30:00 | D81: 10:30:00 | J81: =E67 -> 姿川第一ＦＣ | Q81: =IF(OR(S81="",S82=""),"",S81+S82) -> 0 | S81: 0 | T81: － | U81: 0 | V81: =IF(OR(U81="",U82=""),"",U81+U82) -> 0 | X81: =S68 -> 昭和・戸祭ＳＣ | AI81: =DBCS(INDIRECT("U12対戦スケジュール!g"&(ROW()-1)/2+14)) -> ２／６／６／２
S82: 0 | T82: － | U82: 0
B83: 5 | C83: 12:20:00 | J83: =E69 -> ＦＣ Ｒｉｓｏ | Q83: =IF(OR(S83="",S84=""),"",S83+S84) -> 4 | S83: 2 | T83: － | U83: 0 | V83: =IF(OR(U83="",U84=""),"",U83+U84) -> 0 | X83: =S67 -> 宝木キッカーズ | AI83: =DBCS(INDIRECT("U12対戦スケジュール!g"&(ROW()-1)/2+14)) -> ９／１／１／９
S84: 2 | T84: － | U84: 0
B85: 6 | C85: 13:10:00 | D85: 10:30:00 | J85: =AG69 -> 豊郷ＪＦＣ宇都宮 | Q85: =IF(OR(S85="",S86=""),"",S85+S86) -> 5 | S85: 3 | T85: － | U85: 0 | V85: =IF(OR(U85="",U86=""),"",U85+U86) -> 0 | X85: =E67 -> 姿川第一ＦＣ | AI85: =DBCS(INDIRECT("U12対戦スケジュール!g"&(ROW()-1)/2+14)) -> ７／２／２／７
S86: 2 | T86: － | U86: 0
B87: 7 | C87: 14:00:00 | D87: 10:30:00 | Q87: =IF(OR(S87="",S88=""),"",S87+S88) ->  | T87: － | V87: =IF(OR(U87="",U88=""),"",U87+U88) ->  | AI87: =DBCS(INDIRECT("U12対戦スケジュール!g"&(ROW()-1)/2+14)) -> 
T88: －
D90: 警告／退場 | J90: チーム名 | R90: 氏名 | AA90: 番号 | AD90: 理由
D91: 警告 退場 | J91: =S67 -> 宝木キッカーズ | R91: 大久保 史弥 | AA91: 6 | AD91: チャージング
D92: 警告 退場
D93: 警告 退場
A94: ＪＦＡ U-12サッカーリーグ2018（in栃木） 宇河地域リーグ戦（後期） Ｂブロック
C96: 会場 | G96: =U12対戦スケジュール!F72 -> 姿川第一小 | P96: 会場担当 | T96: =U12対戦スケジュール!F73 -> 姿川第一ＦＣ | AC96: 開催日 | AG96: 2018-09-16
C98: 1 | E98: =U12組合せ!$F$10 -> 姿川第一ＦＣ | Q98: 2 | S98: =U12組合せ!$F$11 -> 宝木キッカーズ | AE98: 3 | AG98: =U12組合せ!$F$12 -> ｕｎｉｏｎ ｓｃ
C99: 4 | E99: =U12組合せ!$F$13 -> 河内ＳＣジュベニール | Q99: 5 | S99: =U12組合せ!$F$14 -> 昭和・戸祭ＳＣ | AE99: 6 | AG99: =U12組合せ!$F$15 -> サウス宇都宮ＳＣ
C100: 7 | E100: =U12組合せ!$F$16 -> ＦＣ Ｒｉｓｏ | Q100: 8 | S100: =U12組合せ!$F$17 -> 富士見ＳＳＳ | AE100: 9 | AG100: =U12組合せ!$F$18 -> 豊郷ＪＦＣ宇都宮
B104: 【試合時間：２０分-５分-２０分】
C105: 試合開始 | F105: 監督サイン | J105: チーム名 | Q105: 得点 | X105: チーム名 | AE105: 監督サイン | AI105: 主審／副審／副審／４審
B106: 1 | C106: 09:00:00 | J106: =E98 -> 姿川第一ＦＣ | Q106: =IF(OR(S106="",S107=""),"",S106+S107) -> 1 | S106: 0 | T106: － | U106: 0 | V106: =IF(OR(U106="",U107=""),"",U106+U107) -> 2 | X106: =AG99 -> サウス宇都宮ＳＣ | AI106: =DBCS(INDIRECT("U12対戦スケジュール!g"&(ROW()/2+21))) -> ２／４／４／２
S107: 1 | T107: － | U107: 2
B108: 2 | C108: 09:50:00 | D108: 10:30:00 | J108: =S98 -> 宝木キッカーズ | Q108: =IF(OR(S108="",S109=""),"",S108+S109) -> 1 | S108: 1 | T108: － | U108: 0 | V108: =IF(OR(U108="",U109=""),"",U108+U109) -> 0 | X108: =E99 -> 河内ＳＣジュベニール | AI108: =DBCS(INDIRECT("U12対戦スケジュール!g"&(ROW()/2+21))) -> １／６／６／１
S109: 0 | T109: － | U109: 0
B110: 3 | C110: 10:40:00 | J110: =S100 -> 富士見ＳＳＳ | Q110: =IF(OR(S110="",S111=""),"",S110+S111) -> 1 | S110: 0 | T110: － | U110: 0 | V110: =IF(OR(U110="",U111=""),"",U110+U111) -> 0 | X110: =J106 -> 姿川第一ＦＣ | AI110: =DBCS(INDIRECT("U12対戦スケジュール!g"&(ROW()/2+21))) -> ９／２／２／９
S111: 1 | T111: － | U111: 0
B112: 4 | C112: 11:30:00 | D112: 10:30:00 | J112: =AG100 -> 豊郷ＪＦＣ宇都宮 | Q112: =IF(OR(S112="",S113=""),"",S112+S113) -> 9 | S112: 5 | T112: － | U112: 1 | V112: =IF(OR(U112="",U113=""),"",U112+U113) -> 1 | X112: =S98 -> 宝木キッカーズ | AI112: =DBCS(INDIRECT("U12対戦スケジュール!g"&(ROW()/2+21))) -> ８／１／１／８
S113: 4 | T113: － | U113: 0
B114: 5 | C114: 12:20:00 | J114: =AG99 -> サウス宇都宮ＳＣ | Q114: =IF(OR(S114="",S115=""),"",S114+S115) -> 3 | S114: 2 | T114: － | U114: 0 | V114: =IF(OR(U114="",U115=""),"",U114+U115) -> 1 | X114: =S100 -> 富士見ＳＳＳ | AI114: =DBCS(INDIRECT("U12対戦スケジュール!g"&(ROW()/2+21))) -> ４／９／９／４
S115: 1 | T115: － | U115: 1
B116: 6 | C116: 13:10:00 | D116: 10:30:00 | J116: =E99 -> 河内ＳＣジュベニール | Q116: =IF(OR(S116="",S117=""),"",S116+S117) -> 0 | S116: 0 | T116: － | U116: 2 | V116: =IF(OR(U116="",U117=""),"",U116+U117) -> 4 | X116: =AG100 -> 豊郷ＪＦＣ宇都宮 | AI116: =DBCS(INDIRECT("U12対戦スケジュール!g"&(ROW()/2+21))) -> ６／８／８／６
S117: 0 | T117: － | U117: 2
B118: 7 | C118: 14:00:00 | D118: 10:30:00 | Q118: =IF(OR(S118="",S119=""),"",S118+S119) ->  | T118: － | V118: =IF(OR(U118="",U119=""),"",U118+U119) -> 
T119: －
D121: 警告／退場 | J121: チーム名 | R121: 氏名 | AA121: 番号 | AD121: 理由
D122: 警告 退場
D123: 警告 退場
D124: 警告 退場
A125: ＪＦＡ U-12サッカーリーグ2018（in栃木） 宇河地域リーグ戦（後期） Ｂ・Ｃブロック
C127: 会場 | G127: =U12対戦スケジュール!D94 -> 平出Ｂ | P127: 会場担当 | T127: =U12対戦スケジュール!D95 -> 昭和戸祭SC | AC127: 開催日 | AG127: 2018-09-17
C129: B2 | E129: =U12組合せ!F11 -> 宝木キッカーズ | Q129: B5 | S129: =U12組合せ!F14 -> 昭和・戸祭ＳＣ | AE129: B8 | AG129: =U12組合せ!F17 -> 富士見ＳＳＳ
C130: C1 | E130: =U12組合せ!H10 -> 清原ＳＳＳ | Q130: C6 | S130: =U12組合せ!H15 -> 宇都宮北部ＦＣトレ | AE130: C8 | AG130: =U12組合せ!H17 -> クラブチェルビアット
B135: 【試合時間：２０分-５分-２０分】
C136: 試合開始 | F136: 監督サイン | J136: チーム名 | Q136: 得点 | X136: チーム名 | AE136: 監督サイン | AI136: 主審／副審／副審／４審
B137: 1 | C137: 09:00:00 | J137: =AG129 -> 富士見ＳＳＳ | Q137: =IF(OR(S137="",S138=""),"",S137+S138) -> 0 | S137: 0 | T137: － | U137: 2 | V137: =IF(OR(U137="",U138=""),"",U137+U138) -> 2 | X137: =E129 -> 宝木キッカーズ | AI137: =DBCS(INDIRECT("U12対戦スケジュール!e"&(ROW()-1)/2+28)) -> Ｃ１／Ｃ６／Ｃ６／Ｃ１
S138: 0 | T138: － | U138: 0
B139: 2 | C139: 09:50:00 | D139: 10:30:00 | J139: =E130 -> 清原ＳＳＳ | Q139: =IF(OR(S139="",S140=""),"",S139+S140) -> 3 | S139: 2 | T139: － | U139: 0 | V139: =IF(OR(U139="",U140=""),"",U139+U140) -> 0 | X139: =S130 -> 宇都宮北部ＦＣトレ | AI139: =DBCS(INDIRECT("U12対戦スケジュール!e"&(ROW()-1)/2+28)) -> Ｂ８／Ｂ２／Ｂ２／Ｂ８
S140: 1 | T140: － | U140: 0
B141: 3 | C141: 10:40:00 | J141: =S129 -> 昭和・戸祭ＳＣ | Q141: =IF(OR(S141="",S142=""),"",S141+S142) -> 5 | S141: 3 | T141: － | U141: 1 | V141: =IF(OR(U141="",U142=""),"",U141+U142) -> 1 | X141: =AG129 -> 富士見ＳＳＳ | AI141: =DBCS(INDIRECT("U12対戦スケジュール!e"&(ROW()-1)/2+28)) -> Ｃ８／Ｃ１／Ｃ１／Ｃ８
S142: 2 | T142: － | U142: 0
B143: 4 | C143: 11:30:00 | D143: 10:30:00 | J143: =AG130 -> クラブチェルビアット | Q143: =IF(OR(S143="",S144=""),"",S143+S144) -> 2 | S143: 1 | T143: － | U143: 0 | V143: =IF(OR(U143="",U144=""),"",U143+U144) -> 2 | X143: =E130 -> 清原ＳＳＳ | AI143: =DBCS(INDIRECT("U12対戦スケジュール!e"&(ROW()-1)/2+28)) -> Ｂ５／Ｂ８／Ｂ８／Ｂ５
S144: 1 | T144: － | U144: 2
B145: 5 | C145: 12:20:00 | J145: =E129 -> 宝木キッカーズ | Q145: =IF(OR(S145="",S146=""),"",S145+S146) -> 1 | S145: 1 | T145: － | U145: 0 | V145: =IF(OR(U145="",U146=""),"",U145+U146) -> 1 | X145: =S129 -> 昭和・戸祭ＳＣ | AI145: =DBCS(INDIRECT("U12対戦スケジュール!e"&(ROW()-1)/2+28)) -> Ｃ６／Ｃ８／Ｃ８／Ｃ６
S146: 0 | T146: － | U146: 1
B147: 6 | C147: 13:10:00 | D147: 10:30:00 | J147: =S130 -> 宇都宮北部ＦＣトレ | Q147: =IF(OR(S147="",S148=""),"",S147+S148) -> 0 | S147: 0 | T147: － | U147: 1 | V147: =IF(OR(U147="",U148=""),"",U147+U148) -> 4 | X147: =AG130 -> クラブチェルビアット | AI147: =DBCS(INDIRECT("U12対戦スケジュール!e"&(ROW()-1)/2+28)) -> Ｂ２／Ｂ５／Ｂ５／Ｂ２
S148: 0 | T148: － | U148: 3
B149: 7 | C149: 14:00:00 | D149: 10:30:00 | Q149: =IF(OR(S149="",S150=""),"",S149+S150) ->  | T149: － | V149: =IF(OR(U149="",U150=""),"",U149+U150) -> 
T150: －
D152: 警告／退場 | J152: チーム名 | R152: 氏名 | AA152: 番号 | AD152: 理由
D153: 警告 退場
D154: 警告 退場
D155: 警告 退場

Sheet Ｃブロック対戦表
A1: ＪＦＡ U-12サッカーリーグ2018（in栃木） 宇河地域リーグ戦（後期） Ｃブロック | AR1: ＪＦＡ U-12サッカーリーグ2018（in栃木） 宇河地域リーグ戦（後期） Ｃ・Ｄブロック
C3: 会場 | G3: 清原南小 | P3: 会場担当 | T3: 清原ＳＳＳ | AC3: 開催日 | AG3: 2018-09-02 | AT3: 会場 | AX3: 石井６ | BG3: 会場担当 | BK3: ＦＣブロケード | BT3: 開催日 | BX3: 2018-09-02
C5: C1 | E5: =U12組合せ!$H$10 -> 清原ＳＳＳ | Q5: C2 | S5: =U12組合せ!$H$11 -> ＦＣみらい Ｐ | AE5: C3 | AG5: =U12組合せ!$H$12 -> 雀宮ＦＣ | AT5: C1 | AV5: =U12組合せ!$H$10 -> 清原ＳＳＳ | BH5: C2 | BJ5: =U12組合せ!$H$11 -> ＦＣみらい Ｐ | BV5: C3 | BX5: =U12組合せ!$H$12 -> 雀宮ＦＣ
C6: C4 | E6: =U12組合せ!$H$13 -> ＳＵＧＡＯ ＳＣ | Q6: C5 | S6: =U12組合せ!$H$14 -> Ｓ４スペランツァ | AE6: C6 | AG6: =U12組合せ!$H$15 -> 宇都宮北部ＦＣトレ | AT6: C4 | AV6: =U12組合せ!$H$13 -> ＳＵＧＡＯ ＳＣ | BH6: C5 | BJ6: =U12組合せ!$H$14 -> Ｓ４スペランツァ | BV6: C6 | BX6: =U12組合せ!$H$15 -> 宇都宮北部ＦＣトレ
C7: C7 | E7: =U12組合せ!$H$16 -> 上三川ＦＣ | Q7: C8 | S7: =U12組合せ!$H$17 -> クラブチェルビアット | AE7: C9 | AG7: =U12組合せ!$H$18 -> ＦＣブロケード | AT7: C7 | AV7: =U12組合せ!$H$16 -> 上三川ＦＣ | BH7: C8 | BJ7: =U12組合せ!$H$17 -> クラブチェルビアット | BV7: C9 | BX7: =U12組合せ!$H$18 -> ＦＣブロケード
C8: D1 | E8: =U12組合せ!$J$10 -> 上河内ＪＳＣ | Q8: D2 | S8: =U12組合せ!$J$11 -> 上三川ＳＣ | AE8: D3 | AG8: =U12組合せ!$J$12 -> 緑が丘ＹＦＣ | AT8: D1 | AV8: =U12組合せ!$J$10 -> 上河内ＪＳＣ | BH8: D2 | BJ8: =U12組合せ!$J$11 -> 上三川ＳＣ | BV8: D3 | BX8: =U12組合せ!$J$12 -> 緑が丘ＹＦＣ
C9: D4 | E9: =U12組合せ!$J$13 -> 泉ＦＣ宇都宮 | Q9: D5 | S9: =U12組合せ!$J$14 -> 国本ＪＳＣ | AE9: D6 | AG9: =U12組合せ!$J$15 -> 本郷北ＦＣ | AT9: D4 | AV9: =U12組合せ!$J$13 -> 泉ＦＣ宇都宮 | BH9: D5 | BJ9: =U12組合せ!$J$14 -> 国本ＪＳＣ | BV9: D6 | BX9: =U12組合せ!$J$15 -> 本郷北ＦＣ
C10: D7 | E10: =U12組合せ!$J$16 -> ＦＣペンサーレ | Q10: D8 | S10: =U12組合せ!$J$17 -> ブラッドレスＳＳ | AE10: D9 | AG10: =U12組合せ!$J$18 -> ともぞうＳＣ・Ｂ | AT10: D7 | AV10: =U12組合せ!$J$16 -> ＦＣペンサーレ | BH10: D8 | BJ10: =U12組合せ!$J$17 -> ブラッドレスＳＳ | BV10: D9 | BX10: =U12組合せ!$J$18 -> ともぞうＳＣ・Ｂ
B12: 【試合時間：２０分-５分-２０分】 | AS12: 【試合時間：２０分-５分-２０分】
C13: 試合開始 | F13: 監督サイン | J13: チーム名 | Q13: 得点 | X13: チーム名 | AE13: 監督サイン | AI13: 主審／副審／副審／４審 | AT13: 試合開始 | AW13: 監督サイン | BA13: チーム名 | BH13: 得点 | BO13: チーム名 | BV13: 監督サイン | BZ13: 主審／副審／副審／４審
B14: 1 | C14: 09:00:00 | J14: =E5 -> 清原ＳＳＳ | Q14: =IF(OR(S14="",S15=""),"",S14+S15) -> 2 | S14: 0 | T14: － | U14: 1 | V14: =IF(OR(U14="",U15=""),"",U14+U15) -> 1 | X14: =S5 -> ＦＣみらい Ｐ | AI14: =DBCS(INDIRECT("U12対戦スケジュール!c"&(ROW()/2+12))) -> ４／５／５／４ | AS14: 1 | AT14: 09:00:00 | BA14: =AV7 -> 上三川ＦＣ | BH14: =IF(OR(BJ14="",BJ15=""),"",BJ14+BJ15) -> 0 | BJ14: 0 | BK14: － | BL14: 5 | BM14: =IF(OR(BL14="",BL15=""),"",BL14+BL15) -> 7 | BO14: =BJ7 -> クラブチェルビアット | BZ14: =DBCS(INDIRECT("U12対戦スケジュール!e"&(ROW()/2+12))) -> Ｄ７／Ｄ８／Ｄ８／Ｄ７
S15: 2 | T15: － | U15: 0 | BJ15: 0 | BK15: － | BL15: 2
B16: 2 | C16: 09:50:00 | D16: 10:30:00 | J16: =E6 -> ＳＵＧＡＯ ＳＣ | Q16: =IF(OR(S16="",S17=""),"",S16+S17) -> 4 | S16: 0 | T16: － | U16: 2 | V16: =IF(OR(U16="",U17=""),"",U16+U17) -> 2 | X16: =S6 -> Ｓ４スペランツァ | AI16: =DBCS(INDIRECT("U12対戦スケジュール!c"&(ROW()/2+12))) -> １／２／２／１ | AS16: 2 | AT16: 09:50:00 | AU16: 10:30:00 | BA16: =AV10 -> ＦＣペンサーレ | BH16: =IF(OR(BJ16="",BJ17=""),"",BJ16+BJ17) -> 1 | BJ16: 0 | BK16: － | BL16: 2 | BM16: =IF(OR(BL16="",BL17=""),"",BL16+BL17) -> 5 | BO16: =BJ10 -> ブラッドレスＳＳ | BZ16: =DBCS(INDIRECT("U12対戦スケジュール!e"&(ROW()/2+12))) -> Ｃ７／Ｃ８／Ｃ８／Ｃ７
S17: 4 | T17: － | U17: 0 | BJ17: 1 | BK17: － | BL17: 3
B18: 3 | C18: 10:40:00 | J18: =AG5 -> 雀宮ＦＣ | Q18: =IF(OR(S18="",S19=""),"",S18+S19) -> 0 | S18: 0 | T18: － | U18: 0 | V18: =IF(OR(U18="",U19=""),"",U18+U19) -> 1 | X18: =E5 -> 清原ＳＳＳ | AI18: =DBCS(INDIRECT("U12対戦スケジュール!c"&(ROW()/2+12))) -> ６／４／４／６ | AS18: 3 | AT18: 10:40:00 | BA18: =BX7 -> ＦＣブロケード | BH18: =IF(OR(BJ18="",BJ19=""),"",BJ18+BJ19) -> 0 | BJ18: 0 | BK18: － | BL18: 4 | BM18: =IF(OR(BL18="",BL19=""),"",BL18+BL19) -> 4 | BO18: =AV7 -> 上三川ＦＣ | BZ18: =DBCS(INDIRECT("U12対戦スケジュール!e"&(ROW()/2+12))) -> Ｄ９／Ｄ７／Ｄ７／Ｄ９
S19: 0 | T19: － | U19: 1 | BJ19: 0 | BK19: － | BL19: 0
B20: 4 | C20: 11:30:00 | D20: 10:30:00 | J20: =AG6 -> 宇都宮北部ＦＣトレ | Q20: =IF(OR(S20="",S21=""),"",S20+S21) -> 2 | S20: 1 | T20: － | U20: 1 | V20: =IF(OR(U20="",U21=""),"",U20+U21) -> 2 | X20: =E6 -> ＳＵＧＡＯ ＳＣ | AI20: =DBCS(INDIRECT("U12対戦スケジュール!c"&(ROW()/2+12))) -> ３／１／１／３ | AS20: 4 | AT20: 11:30:00 | AU20: 10:30:00 | BA20: =BX10 -> ともぞうＳＣ・Ｂ | BH20: =IF(OR(BJ20="",BJ21=""),"",BJ20+BJ21) -> 4 | BJ20: 1 | BK20: － | BL20: 0 | BM20: =IF(OR(BL20="",BL21=""),"",BL20+BL21) -> 0 | BO20: =AV10 -> ＦＣペンサーレ | BZ20: =DBCS(INDIRECT("U12対戦スケジュール!e"&(ROW()/2+12))) -> Ｃ９／Ｃ７／Ｃ７／Ｃ９
S21: 1 | T21: － | U21: 1 | BJ21: 3 | BK21: － | BL21: 0
B22: 5 | C22: 12:20:00 | J22: =S5 -> ＦＣみらい Ｐ | Q22: =IF(OR(S22="",S23=""),"",S22+S23) -> 2 | S22: 1 | T22: － | U22: 1 | V22: =IF(OR(U22="",U23=""),"",U22+U23) -> 1 | X22: =AG5 -> 雀宮ＦＣ | AI22: =DBCS(INDIRECT("U12対戦スケジュール!c"&(ROW()/2+12))) -> ５／６／６／５ | AS22: 5 | AT22: 12:20:00 | BA22: =BJ7 -> クラブチェルビアット | BH22: =IF(OR(BJ22="",BJ23=""),"",BJ22+BJ23) -> 7 | BJ22: 5 | BK22: － | BL22: 0 | BM22: =IF(OR(BL22="",BL23=""),"",BL22+BL23) -> 0 | BO22: =BX7 -> ＦＣブロケード | BZ22: =DBCS(INDIRECT("U12対戦スケジュール!e"&(ROW()/2+12))) -> Ｄ８／Ｄ９／Ｄ９／Ｄ８
S23: 1 | T23: － | U23: 0 | BJ23: 2 | BK23: － | BL23: 0
B24: 6 | C24: 13:10:00 | D24: 10:30:00 | J24: =S6 -> Ｓ４スペランツァ | Q24: =IF(OR(S24="",S25=""),"",S24+S25) -> 2 | S24: 1 | T24: － | U24: 0 | V24: =IF(OR(U24="",U25=""),"",U24+U25) -> 0 | X24: =AG6 -> 宇都宮北部ＦＣトレ | AI24: =DBCS(INDIRECT("U12対戦スケジュール!c"&(ROW()/2+12))) -> ２／３／３／２ | AS24: 6 | AT24: 13:10:00 | AU24: 10:30:00 | BA24: =BJ10 -> ブラッドレスＳＳ | BH24: =IF(OR(BJ24="",BJ25=""),"",BJ24+BJ25) -> 0 | BJ24: 0 | BK24: － | BL24: 0 | BM24: =IF(OR(BL24="",BL25=""),"",BL24+BL25) -> 0 | BO24: =BX10 -> ともぞうＳＣ・Ｂ | BZ24: =DBCS(INDIRECT("U12対戦スケジュール!e"&(ROW()/2+12))) -> Ｃ８／Ｃ９／Ｃ９／Ｃ８
S25: 1 | T25: － | U25: 0 | BJ25: 0 | BK25: － | BL25: 0
D27: 警告／退場 | J27: チーム名 | R27: 氏名 | AA27: 番号 | AD27: 理由 | AU27: 警告／退場 | BA27: チーム名 | BI27: 氏名 | BR27: 番号 | BU27: 理由
D28: 警告 退場 | AU28: 警告 退場
D29: 警告 退場 | AU29: 警告 退場
D30: 警告 退場 | AU30: 警告 退場
A31: ＪＦＡ U-12サッカーリーグ2018（in栃木） 宇河地域リーグ戦（後期） Ｃブロック | AR31: ＪＦＡ U-12サッカーリーグ2018（in栃木） 宇河地域リーグ戦（後期） Ｃ・Ｄブロック
C33: 会場 | G33: =U12対戦スケジュール!B38 -> 石井４ | P33: 会場担当 | T33: =U12対戦スケジュール!B39 -> 宇都宮北部ＦＣトレ | AC33: 開催日 | AG33: 2018-09-08 | AT33: 会場 | AX33: =U12対戦スケジュール!D38 -> 石井５ | BG33: 会場担当 | BK33: =U12対戦スケジュール!D39 -> Ｓ４スペランツァ | BT33: 開催日 | BX33: 2018-09-08
C35: C1 | E35: =U12組合せ!$H$10 -> 清原ＳＳＳ | Q35: C2 | S35: =U12組合せ!$H$11 -> ＦＣみらい Ｐ | AE35: C3 | AG35: =U12組合せ!$H$12 -> 雀宮ＦＣ | AT35: C1 | AV35: =U12組合せ!$H$10 -> 清原ＳＳＳ | BH35: C2 | BJ35: =U12組合せ!$H$11 -> ＦＣみらい Ｐ | BV35: C3 | BX35: =U12組合せ!$H$12 -> 雀宮ＦＣ
C36: C4 | E36: =U12組合せ!$H$13 -> ＳＵＧＡＯ ＳＣ | Q36: C5 | S36: =U12組合せ!$H$14 -> Ｓ４スペランツァ | AE36: C6 | AG36: =U12組合せ!$H$15 -> 宇都宮北部ＦＣトレ | AT36: C4 | AV36: =U12組合せ!$H$13 -> ＳＵＧＡＯ ＳＣ | BH36: C5 | BJ36: =U12組合せ!$H$14 -> Ｓ４スペランツァ | BV36: C6 | BX36: =U12組合せ!$H$15 -> 宇都宮北部ＦＣトレ
C37: C7 | E37: =U12組合せ!$H$16 -> 上三川ＦＣ | Q37: C8 | S37: =U12組合せ!$H$17 -> クラブチェルビアット | AE37: C9 | AG37: =U12組合せ!$H$18 -> ＦＣブロケード | AT37: C7 | AV37: =U12組合せ!$H$16 -> 上三川ＦＣ | BH37: C8 | BJ37: =U12組合せ!$H$17 -> クラブチェルビアット | BV37: C9 | BX37: =U12組合せ!$H$18 -> ＦＣブロケード
C38: D1 | E38: =U12組合せ!$J$10 -> 上河内ＪＳＣ | Q38: D2 | S38: =U12組合せ!$J$11 -> 上三川ＳＣ | AE38: D3 | AG38: =U12組合せ!$J$12 -> 緑が丘ＹＦＣ | AT38: D1 | AV38: =U12組合せ!$J$10 -> 上河内ＪＳＣ | BH38: D2 | BJ38: =U12組合せ!$J$11 -> 上三川ＳＣ | BV38: D3 | BX38: =U12組合せ!$J$12 -> 緑が丘ＹＦＣ
C39: D4 | E39: =U12組合せ!$J$13 -> 泉ＦＣ宇都宮 | Q39: D5 | S39: =U12組合せ!$J$14 -> 国本ＪＳＣ | AE39: D6 | AG39: =U12組合せ!$J$15 -> 本郷北ＦＣ | AT39: D4 | AV39: =U12組合せ!$J$13 -> 泉ＦＣ宇都宮 | BH39: D5 | BJ39: =U12組合せ!$J$14 -> 国本ＪＳＣ | BV39: D6 | BX39: =U12組合せ!$J$15 -> 本郷北ＦＣ
C40: D7 | E40: =U12組合せ!$J$16 -> ＦＣペンサーレ | Q40: D8 | S40: =U12組合せ!$J$17 -> ブラッドレスＳＳ | AE40: D9 | AG40: =U12組合せ!$J$18 -> ともぞうＳＣ・Ｂ | AT40: D7 | AV40: =U12組合せ!$J$16 -> ＦＣペンサーレ | BH40: D8 | BJ40: =U12組合せ!$J$17 -> ブラッドレスＳＳ | BV40: D9 | BX40: =U12組合せ!$J$18 -> ともぞうＳＣ・Ｂ
B42: 【試合時間：２０分-５分-２０分】 | AS42: 【試合時間：２０分-５分-２０分】
C43: 試合開始 | F43: 監督サイン | J43: チーム名 | Q43: 得点 | X43: チーム名 | AE43: 監督サイン | AI43: 主審／副審／副審／４審 | AT43: 試合開始 | AW43: 監督サイン | BA43: チーム名 | BH43: 得点 | BO43: チーム名 | BV43: 監督サイン | BZ43: 主審／副審／副審／４審
B44: 1 | C44: 09:00:00 | J44: =AG37 -> ＦＣブロケード | Q44: =IF(OR(S44="",S45=""),"",S44+S45) -> 0 | S44: 0 | T44: － | U44: 1 | V44: =IF(OR(U44="",U45=""),"",U44+U45) -> 3 | X44: =AG35 -> 雀宮ＦＣ | AI44: =DBCS(INDIRECT("U12対戦スケジュール!c"&(ROW()/2+18))) -> ７／１／１／７ | AS44: 1 | AT44: 09:00:00 | BA44: =BJ37 -> クラブチェルビアット | BH44: =IF(OR(BJ44="",BJ45=""),"",BJ44+BJ45) -> 3 | BJ44: 1 | BK44: － | BL44: 1 | BM44: =IF(OR(BL44="",BL45=""),"",BL44+BL45) -> 1 | BO44: =BJ35 -> ＦＣみらい Ｐ | BZ44: =DBCS(INDIRECT("U12対戦スケジュール!e"&(ROW()/2+18))) -> Ｄ８／Ｄ２／Ｄ２／Ｄ８
S45: 0 | T45: － | U45: 2 | BJ45: 2 | BK45: － | BL45: 0
B46: 2 | C46: 09:50:00 | D46: 10:30:00 | J46: =E37 -> 上三川ＦＣ | Q46: =IF(OR(S46="",S47=""),"",S46+S47) -> 2 | S46: 0 | T46: － | U46: 3 | V46: =IF(OR(U46="",U47=""),"",U46+U47) -> 6 | X46: =E35 -> 清原ＳＳＳ | AI46: =DBCS(INDIRECT("U12対戦スケジュール!c"&(ROW()/2+18))) -> ９／３／３／９ | AS46: 2 | AT46: 09:50:00 | AU46: 10:30:00 | BA46: =BJ40 -> ブラッドレスＳＳ | BH46: =IF(OR(BJ46="",BJ47=""),"",BJ46+BJ47) -> 4 | BJ46: 2 | BK46: － | BL46: 0 | BM46: =IF(OR(BL46="",BL47=""),"",BL46+BL47) -> 1 | BO46: =BJ38 -> 上三川ＳＣ | BZ46: =DBCS(INDIRECT("U12対戦スケジュール!e"&(ROW()/2+18))) -> Ｃ８／Ｃ２／Ｃ２／Ｃ８
S47: 2 | T47: － | U47: 3 | BJ47: 2 | BK47: － | BL47: 1
B48: 3 | C48: 10:40:00 | J48: =AG36 -> 宇都宮北部ＦＣトレ | Q48: =IF(OR(S48="",S49=""),"",S48+S49) -> 7 | S48: 2 | T48: － | U48: 1 | V48: =IF(OR(U48="",U49=""),"",U48+U49) -> 1 | X48: =AG37 -> ＦＣブロケード | AI48: =DBCS(INDIRECT("U12対戦スケジュール!c"&(ROW()/2+18))) -> ４／７／７／４ | AS48: 3 | AT48: 10:40:00 | BA48: =BJ36 -> Ｓ４スペランツァ | BH48: =IF(OR(BJ48="",BJ49=""),"",BJ48+BJ49) -> 1 | BJ48: 0 | BK48: － | BL48: 2 | BM48: =IF(OR(BL48="",BL49=""),"",BL48+BL49) -> 3 | BO48: =BJ37 -> クラブチェルビアット | BZ48: =DBCS(INDIRECT("U12対戦スケジュール!e"&(ROW()/2+18))) -> Ｄ５／Ｄ８／Ｄ８／Ｄ５
S49: 5 | T49: － | U49: 0 | BJ49: 1 | BK49: － | BL49: 1
B50: 4 | C50: 11:30:00 | D50: 10:30:00 | J50: =E36 -> ＳＵＧＡＯ ＳＣ | Q50: =IF(OR(S50="",S51=""),"",S50+S51) -> 5 | S50: 2 | T50: － | U50: 0 | V50: =IF(OR(U50="",U51=""),"",U50+U51) -> 0 | X50: =E37 -> 上三川ＦＣ | AI50: =DBCS(INDIRECT("U12対戦スケジュール!c"&(ROW()/2+18))) -> ６／９／９／６ | AS50: 4 | AT50: 11:30:00 | AU50: 10:30:00 | BA50: =BJ39 -> 国本ＪＳＣ | BH50: =IF(OR(BJ50="",BJ51=""),"",BJ50+BJ51) -> 1 | BJ50: 1 | BK50: － | BL50: 2 | BM50: =IF(OR(BL50="",BL51=""),"",BL50+BL51) -> 3 | BO50: =BJ40 -> ブラッドレスＳＳ | BZ50: =DBCS(INDIRECT("U12対戦スケジュール!e"&(ROW()/2+18))) -> Ｃ５／Ｃ８／Ｃ８／Ｃ５
S51: 3 | T51: － | U51: 0 | BJ51: 0 | BK51: － | BL51: 1
B52: 5 | C52: 12:20:00 | J52: =AG35 -> 雀宮ＦＣ | Q52: =IF(OR(S52="",S53=""),"",S52+S53) -> 1 | S52: 0 | T52: － | U52: 0 | V52: =IF(OR(U52="",U53=""),"",U52+U53) -> 2 | X52: =AG36 -> 宇都宮北部ＦＣトレ | AI52: =DBCS(INDIRECT("U12対戦スケジュール!c"&(ROW()/2+18))) -> １／４／４／１ | AS52: 5 | AT52: 12:20:00 | BA52: =BJ35 -> ＦＣみらい Ｐ | BH52: =IF(OR(BJ52="",BJ53=""),"",BJ52+BJ53) -> 3 | BJ52: 1 | BK52: － | BL52: 0 | BM52: =IF(OR(BL52="",BL53=""),"",BL52+BL53) -> 0 | BO52: =BJ36 -> Ｓ４スペランツァ | BZ52: =DBCS(INDIRECT("U12対戦スケジュール!e"&(ROW()/2+18))) -> Ｄ２／Ｄ５／Ｄ５／Ｄ２
S53: 1 | T53: － | U53: 2 | BJ53: 2 | BK53: － | BL53: 0
B54: 6 | C54: 13:10:00 | D54: 10:30:00 | J54: =E35 -> 清原ＳＳＳ | Q54: =IF(OR(S54="",S55=""),"",S54+S55) -> 2 | S54: 2 | T54: － | U54: 0 | V54: =IF(OR(U54="",U55=""),"",U54+U55) -> 1 | X54: =E36 -> ＳＵＧＡＯ ＳＣ | AI54: =DBCS(INDIRECT("U12対戦スケジュール!c"&(ROW()/2+18))) -> ３／６／６／３ | AS54: 6 | AT54: 13:10:00 | AU54: 10:30:00 | BA54: =BJ38 -> 上三川ＳＣ | BH54: =IF(OR(BJ54="",BJ55=""),"",BJ54+BJ55) -> 4 | BJ54: 4 | BK54: － | BL54: 2 | BM54: =IF(OR(BL54="",BL55=""),"",BL54+BL55) -> 4 | BO54: =BJ39 -> 国本ＪＳＣ | BZ54: =DBCS(INDIRECT("U12対戦スケジュール!e"&(ROW()/2+18))) -> Ｃ２／Ｃ５／Ｃ５／Ｃ２
S55: 0 | T55: － | U55: 1 | BJ55: 0 | BK55: － | BL55: 2
D57: 警告／退場 | J57: チーム名 | R57: 氏名 | AA57: 番号 | AD57: 理由 | AU57: 警告／退場 | BA57: チーム名 | BI57: 氏名 | BR57: 番号 | BU57: 理由
D58: 警告 退場 | AU58: 警告 退場
D59: 警告 退場 | AU59: 警告 退場
D60: 警告 退場 | AU60: 警告 退場
A61: ＪＦＡ U-12サッカーリーグ2018（in栃木） 宇河地域リーグ戦（後期） Cブロック | AR61: ＪＦＡ U-12サッカーリーグ2018（in栃木） 宇河地域リーグ戦（後期） Ｃ・Ｄブロック
C63: 会場 | G63: =U12対戦スケジュール!B60 -> 石井５ | P63: 会場担当 | T63: =U12対戦スケジュール!B61 -> 清原ＳＳＳ | AC63: 開催日 | AG63: 2018-09-09 | AT63: 会場 | AX63: =U12対戦スケジュール!D60 -> 陽南小 | BG63: 会場担当 | BK63: =U12対戦スケジュール!D61 -> 緑が丘ＹＦＣ | BT63: 開催日 | BX63: 2018-09-09
C65: C1 | E65: =U12組合せ!$H$10 -> 清原ＳＳＳ | Q65: C2 | S65: =U12組合せ!$H$11 -> ＦＣみらい Ｐ | AE65: C3 | AG65: =U12組合せ!$H$12 -> 雀宮ＦＣ | AT65: C1 | AV65: =U12組合せ!$H$10 -> 清原ＳＳＳ | BH65: C2 | BJ65: =U12組合せ!$H$11 -> ＦＣみらい Ｐ | BV65: C3 | BX65: =U12組合せ!$H$12 -> 雀宮ＦＣ
C66: C4 | E66: =U12組合せ!$H$13 -> ＳＵＧＡＯ ＳＣ | Q66: C5 | S66: =U12組合せ!$H$14 -> Ｓ４スペランツァ | AE66: C6 | AG66: =U12組合せ!$H$15 -> 宇都宮北部ＦＣトレ | AT66: C4 | AV66: =U12組合せ!$H$13 -> ＳＵＧＡＯ ＳＣ | BH66: C5 | BJ66: =U12組合せ!$H$14 -> Ｓ４スペランツァ | BV66: C6 | BX66: =U12組合せ!$H$15 -> 宇都宮北部ＦＣトレ
C67: C7 | E67: =U12組合せ!$H$16 -> 上三川ＦＣ | Q67: C8 | S67: =U12組合せ!$H$17 -> クラブチェルビアット | AE67: C9 | AG67: =U12組合せ!$H$18 -> ＦＣブロケード | AT67: C7 | AV67: =U12組合せ!$H$16 -> 上三川ＦＣ | BH67: C8 | BJ67: =U12組合せ!$H$17 -> クラブチェルビアット | BV67: C9 | BX67: =U12組合せ!$H$18 -> ＦＣブロケード
C68: D1 | E68: =U12組合せ!$J$10 -> 上河内ＪＳＣ | Q68: D2 | S68: =U12組合せ!$J$11 -> 上三川ＳＣ | AE68: D3 | AG68: =U12組合せ!$J$12 -> 緑が丘ＹＦＣ | AT68: D1 | AV68: =U12組合せ!$J$10 -> 上河内ＪＳＣ | BH68: D2 | BJ68: =U12組合せ!$J$11 -> 上三川ＳＣ | BV68: D3 | BX68: =U12組合せ!$J$12 -> 緑が丘ＹＦＣ
C69: D4 | E69: =U12組合せ!$J$13 -> 泉ＦＣ宇都宮 | Q69: D5 | S69: =U12組合せ!$J$14 -> 国本ＪＳＣ | AE69: D6 | AG69: =U12組合せ!$J$15 -> 本郷北ＦＣ | AT69: D4 | AV69: =U12組合せ!$J$13 -> 泉ＦＣ宇都宮 | BH69: D5 | BJ69: =U12組合せ!$J$14 -> 国本ＪＳＣ | BV69: D6 | BX69: =U12組合せ!$J$15 -> 本郷北ＦＣ
C70: D7 | E70: =U12組合せ!$J$16 -> ＦＣペンサーレ | Q70: D8 | S70: =U12組合せ!$J$17 -> ブラッドレスＳＳ | AE70: D9 | AG70: =U12組合せ!$J$18 -> ともぞうＳＣ・Ｂ | AT70: D7 | AV70: =U12組合せ!$J$16 -> ＦＣペンサーレ | BH70: D8 | BJ70: =U12組合せ!$J$17 -> ブラッドレスＳＳ | BV70: D9 | BX70: =U12組合せ!$J$18 -> ともぞうＳＣ・Ｂ
B72: 【試合時間：２０分-５分-２０分】 | AS72: 【試合時間：２０分-５分-２０分】
C73: 試合開始 | F73: 監督サイン | J73: チーム名 | Q73: 得点 | X73: チーム名 | AE73: 監督サイン | AI73: 主審／副審／副審／４審 | AT73: 試合開始 | AW73: 監督サイン | BA73: チーム名 | BH73: 得点 | BO73: チーム名 | BV73: 監督サイン | BZ73: 主審／副審／副審／４審
B74: 1 | C74: 09:00:00 | J74: =AG66 -> 宇都宮北部ＦＣトレ | Q74: =IF(OR(S74="",S75=""),"",S74+S75) -> 4 | S74: 2 | T74: － | U74: 1 | V74: =IF(OR(U74="",U75=""),"",U74+U75) -> 2 | X74: =E67 -> 上三川ＦＣ | AI74: =DBCS(INDIRECT("U12対戦スケジュール!c"&(ROW()/2+25))) -> ５／９／９／５ | AS74: 1 | AT74: 09:00:00 | BA74: =AV66 -> ＳＵＧＡＯ ＳＣ | BH74: =IF(OR(BJ74="",BJ75=""),"",BJ74+BJ75) -> 0 | BJ74: 0 | BK74: － | BL74: 1 | BM74: =IF(OR(BL74="",BL75=""),"",BL74+BL75) -> 3 | BO74: =BJ67 -> クラブチェルビアット | BZ74: =DBCS(INDIRECT("U12対戦スケジュール!e"&(ROW()/2+25))) -> Ｄ４／Ｄ８／Ｄ８／Ｄ４
S75: 2 | T75: － | U75: 1 | BJ75: 0 | BK75: － | BL75: 2
B76: 2 | C76: 09:50:00 | D76: 10:30:00 | J76: =S66 -> Ｓ４スペランツァ | Q76: =IF(OR(S76="",S77=""),"",S76+S77) -> 7 | S76: 0 | T76: － | U76: 0 | V76: =IF(OR(U76="",U77=""),"",U76+U77) -> 0 | X76: =AG67 -> ＦＣブロケード | AI76: =DBCS(INDIRECT("U12対戦スケジュール!c"&(ROW()/2+25))) -> ６／７／７／６ | AS76: 2 | AT76: 09:50:00 | AU76: 10:30:00 | BA76: =AV69 -> 泉ＦＣ宇都宮 | BH76: =IF(OR(BJ76="",BJ77=""),"",BJ76+BJ77) -> 0 | BJ76: 0 | BK76: － | BL76: 6 | BM76: =IF(OR(BL76="",BL77=""),"",BL76+BL77) -> 10 | BO76: =BJ70 -> ブラッドレスＳＳ | BZ76: =DBCS(INDIRECT("U12対戦スケジュール!e"&(ROW()/2+25))) -> Ｃ４／Ｃ８／Ｃ８／Ｃ４
S77: 7 | T77: － | U77: 0 | BJ77: 0 | BK77: － | BL77: 4
B78: 3 | C78: 10:40:00 | J78: =S65 -> ＦＣみらい Ｐ | Q78: =IF(OR(S78="",S79=""),"",S78+S79) -> 5 | S78: 2 | T78: － | U78: 0 | V78: =IF(OR(U78="",U79=""),"",U78+U79) -> 1 | X78: =AG66 -> 宇都宮北部ＦＣトレ | AI78: =DBCS(INDIRECT("U12対戦スケジュール!c"&(ROW()/2+25))) -> １／５／５／１ | AS78: 3 | AT78: 10:40:00 | BA78: =BX65 -> 雀宮ＦＣ | BH78: =IF(OR(BJ78="",BJ79=""),"",BJ78+BJ79) -> 1 | BJ78: 1 | BK78: － | BL78: 1 | BM78: =IF(OR(BL78="",BL79=""),"",BL78+BL79) -> 2 | BO78: =AV66 -> ＳＵＧＡＯ ＳＣ | BZ78: =DBCS(INDIRECT("U12対戦スケジュール!e"&(ROW()/2+25))) -> Ｄ３／Ｄ４／Ｄ４／Ｄ３
S79: 3 | T79: － | U79: 1 | BJ79: 0 | BK79: － | BL79: 1
B80: 4 | C80: 11:30:00 | D80: 10:30:00 | J80: =E65 -> 清原ＳＳＳ | Q80: =IF(OR(S80="",S81=""),"",S80+S81) -> 4 | S80: 2 | T80: － | U80: 4 | V80: =IF(OR(U80="",U81=""),"",U80+U81) -> 4 | X80: =S66 -> Ｓ４スペランツァ | AI80: =DBCS(INDIRECT("U12対戦スケジュール!c"&(ROW()/2+25))) -> ２／６／６／２ | AS80: 4 | AT80: 11:30:00 | AU80: 10:30:00 | BA80: =BX68 -> 緑が丘ＹＦＣ | BH80: =IF(OR(BJ80="",BJ81=""),"",BJ80+BJ81) -> 5 | BJ80: 2 | BK80: － | BL80: 0 | BM80: =IF(OR(BL80="",BL81=""),"",BL80+BL81) -> 0 | BO80: =AV69 -> 泉ＦＣ宇都宮 | BZ80: =DBCS(INDIRECT("U12対戦スケジュール!e"&(ROW()/2+25))) -> Ｃ３／Ｃ４／Ｃ４／Ｃ３
S81: 2 | T81: － | U81: 0 | BJ81: 3 | BK81: － | BL81: 0
B82: 5 | C82: 12:20:00 | J82: =E67 -> 上三川ＦＣ | Q82: =IF(OR(S82="",S83=""),"",S82+S83) -> 0 | S82: 0 | T82: － | U82: 3 | V82: =IF(OR(U82="",U83=""),"",U82+U83) -> 5 | X82: =S65 -> ＦＣみらい Ｐ | AI82: =DBCS(INDIRECT("U12対戦スケジュール!c"&(ROW()/2+25))) -> ９／１／１／９ | AS82: 5 | AT82: 12:20:00 | BA82: =BJ67 -> クラブチェルビアット | BH82: =IF(OR(BJ82="",BJ83=""),"",BJ82+BJ83) -> 5 | BJ82: 3 | BK82: － | BL82: 0 | BM82: =IF(OR(BL82="",BL83=""),"",BL82+BL83) -> 0 | BO82: =BX65 -> 雀宮ＦＣ | BZ82: =DBCS(INDIRECT("U12対戦スケジュール!e"&(ROW()/2+25))) -> Ｄ８／Ｄ３／Ｄ３／Ｄ８
S83: 0 | T83: － | U83: 2 | BJ83: 2 | BK83: － | BL83: 0
B84: 6 | C84: 13:10:00 | D84: 10:30:00 | J84: =AG67 -> ＦＣブロケード | Q84: =IF(OR(S84="",S85=""),"",S84+S85) -> 0 | S84: 0 | T84: － | U84: 5 | V84: =IF(OR(U84="",U85=""),"",U84+U85) -> 9 | X84: =E65 -> 清原ＳＳＳ | AI84: =DBCS(INDIRECT("U12対戦スケジュール!c"&(ROW()/2+25))) -> ７／２／２／７ | AS84: 6 | AT84: 13:10:00 | AU84: 10:30:00 | BA84: =BJ70 -> ブラッドレスＳＳ | BH84: =IF(OR(BJ84="",BJ85=""),"",BJ84+BJ85) -> 2 | BJ84: 0 | BK84: － | BL84: 2 | BM84: =IF(OR(BL84="",BL85=""),"",BL84+BL85) -> 3 | BO84: =BX68 -> 緑が丘ＹＦＣ | BZ84: =DBCS(INDIRECT("U12対戦スケジュール!e"&(ROW()/2+25))) -> Ｃ８／Ｃ３／Ｃ３／Ｃ８
S85: 0 | T85: － | U85: 4 | BJ85: 2 | BK85: － | BL85: 1
D87: 警告／退場 | J87: チーム名 | R87: 氏名 | AA87: 番号 | AD87: 理由 | AU87: 警告／退場 | BA87: チーム名 | BI87: 氏名 | BR87: 番号 | BU87: 理由
D88: 警告 退場 | J88: =S66 -> Ｓ４スペランツァ | R88: 江崎 夏音 | AA88: 7 | AD88: ＧＫへのキッキング | AU88: 警告 退場
D89: 警告 退場 | AU89: 警告 退場
D90: 警告 退場 | AU90: 警告 退場
A91: ＪＦＡ U-12サッカーリーグ2018（in栃木） 宇河地域リーグ戦（後期） Ｃブロック
C93: 会場 | G93: =U12対戦スケジュール!B83 -> 横川東小 | P93: 会場担当 | T93: =U12対戦スケジュール!B84 -> ＦＣみらい Ｐ | AC93: 開催日 | AG93: 2018-09-16
C95: C1 | E95: =U12組合せ!$H$10 -> 清原ＳＳＳ | Q95: C2 | S95: =U12組合せ!$H$11 -> ＦＣみらい Ｐ | AE95: C3 | AG95: =U12組合せ!$H$12 -> 雀宮ＦＣ
C96: C4 | E96: =U12組合せ!$H$13 -> ＳＵＧＡＯ ＳＣ | Q96: C5 | S96: =U12組合せ!$H$14 -> Ｓ４スペランツァ | AE96: C6 | AG96: =U12組合せ!$H$15 -> 宇都宮北部ＦＣトレ
C97: C7 | E97: =U12組合せ!$H$16 -> 上三川ＦＣ | Q97: C8 | S97: =U12組合せ!$H$17 -> クラブチェルビアット | AE97: C9 | AG97: =U12組合せ!$H$18 -> ＦＣブロケード
C98: D1 | E98: =U12組合せ!$J$10 -> 上河内ＪＳＣ | Q98: D2 | S98: =U12組合せ!$J$11 -> 上三川ＳＣ | AE98: D3 | AG98: =U12組合せ!$J$12 -> 緑が丘ＹＦＣ
C99: D4 | E99: =U12組合せ!$J$13 -> 泉ＦＣ宇都宮 | Q99: D5 | S99: =U12組合せ!$J$14 -> 国本ＪＳＣ | AE99: D6 | AG99: =U12組合せ!$J$15 -> 本郷北ＦＣ
C100: D7 | E100: =U12組合せ!$J$16 -> ＦＣペンサーレ | Q100: D8 | S100: =U12組合せ!$J$17 -> ブラッドレスＳＳ | AE100: D9 | AG100: =U12組合せ!$J$18 -> ともぞうＳＣ・Ｂ
B102: 【試合時間：２０分-５分-２０分】
C103: 試合開始 | F103: 監督サイン | J103: チーム名 | Q103: 得点 | X103: チーム名 | AE103: 監督サイン | AI103: 主審／副審／副審／４審
B104: 1 | C104: 09:00:00 | J104: =S95 -> ＦＣみらい Ｐ | Q104: =IF(OR(S104="",S105=""),"",S104+S105) -> 2 | S104: 1 | T104: － | U104: 0 | V104: =IF(OR(U104="",U105=""),"",U104+U105) -> 1 | X104: =E96 -> ＳＵＧＡＯ ＳＣ | AI104: =DBCS(INDIRECT("U12対戦スケジュール!c"&(ROW()/2+33))) -> ３／５／５／３
S105: 1 | T105: － | U105: 1
B106: 2 | C106: 09:50:00 | D106: 10:30:00 | J106: =AG95 -> 雀宮ＦＣ | Q106: =IF(OR(S106="",S107=""),"",S106+S107) -> 0 | S106: 0 | T106: － | U106: 1 | V106: =IF(OR(U106="",U107=""),"",U106+U107) -> 5 | X106: =S96 -> Ｓ４スペランツァ | AI106: =DBCS(INDIRECT("U12対戦スケジュール!c"&(ROW()/2+33))) -> ２／４／４／２
S107: 0 | T107: － | U107: 4
B108: 3 | C108: 10:40:00 | J108: =AG97 -> ＦＣブロケード | Q108: =IF(OR(S108="",S109=""),"",S108+S109) -> 0 | S108: 0 | T108: － | U108: 5 | V108: =IF(OR(U108="",U109=""),"",U108+U109) -> 9 | X108: =S95 -> ＦＣみらい Ｐ | AI108: =DBCS(INDIRECT("U12対戦スケジュール!c"&(ROW()/2+33))) -> ７／３／３／７
S109: 0 | T109: － | U109: 4
B110: 4 | C110: 11:30:00 | D110: 10:30:00 | J110: =E97 -> 上三川ＦＣ | Q110: =IF(OR(S110="",S111=""),"",S110+S111) -> 1 | S110: 1 | T110: － | U110: 0 | V110: =IF(OR(U110="",U111=""),"",U110+U111) -> 4 | X110: =AG95 -> 雀宮ＦＣ | AI110: =DBCS(INDIRECT("U12対戦スケジュール!c"&(ROW()/2+33))) -> ９／２／２／９
S111: 0 | T111: － | U111: 4
B112: 5 | C112: 12:20:00 | J112: =E96 -> ＳＵＧＡＯ ＳＣ | Q112: =IF(OR(S112="",S113=""),"",S112+S113) -> 3 | S112: 1 | T112: － | U112: 0 | V112: =IF(OR(U112="",U113=""),"",U112+U113) -> 0 | X112: =AG97 -> ＦＣブロケード | AI112: =DBCS(INDIRECT("U12対戦スケジュール!c"&(ROW()/2+33))) -> ５／７／７／５
S113: 2 | T113: － | U113: 0
B114: 6 | C114: 13:10:00 | D114: 10:30:00 | J114: =S96 -> Ｓ４スペランツァ | Q114: =IF(OR(S114="",S115=""),"",S114+S115) -> 3 | S114: 2 | T114: － | U114: 0 | V114: =IF(OR(U114="",U115=""),"",U114+U115) -> 1 | X114: =E97 -> 上三川ＦＣ | AI114: =DBCS(INDIRECT("U12対戦スケジュール!c"&(ROW()/2+33))) -> ４／９／９／４
S115: 1 | T115: － | U115: 1
D117: 警告／退場 | J117: チーム名 | R117: 氏名 | AA117: 番号 | AD117: 理由
D118: 警告 退場
D119: 警告 退場
D120: 警告 退場

Sheet Ｄブロック対戦表
A1: ＪＦＡ U-12サッカーリーグ2018（in栃木） 宇河地域リーグ戦（後期） Ｄブロック
C3: 会場 | G3: =U12対戦スケジュール!F17 -> 本郷北小 | P3: 会場担当 | T3: =U12対戦スケジュール!F18 -> 本郷北ＦＣ | AC3: 開催日 | AG3: 2018-09-02
C5: C1 | E5: =U12組合せ!$H$10 -> 清原ＳＳＳ | Q5: C2 | S5: =U12組合せ!$H$11 -> ＦＣみらい Ｐ | AE5: C3 | AG5: =U12組合せ!$H$12 -> 雀宮ＦＣ
C6: C4 | E6: =U12組合せ!$H$13 -> ＳＵＧＡＯ ＳＣ | Q6: C5 | S6: =U12組合せ!$H$14 -> Ｓ４スペランツァ | AE6: C6 | AG6: =U12組合せ!$H$15 -> 宇都宮北部ＦＣトレ
C7: C7 | E7: =U12組合せ!$H$16 -> 上三川ＦＣ | Q7: C8 | S7: =U12組合せ!$H$17 -> クラブチェルビアット | AE7: C9 | AG7: =U12組合せ!$H$18 -> ＦＣブロケード
C8: D1 | E8: =U12組合せ!$J$10 -> 上河内ＪＳＣ | Q8: D2 | S8: =U12組合せ!$J$11 -> 上三川ＳＣ | AE8: D3 | AG8: =U12組合せ!$J$12 -> 緑が丘ＹＦＣ
C9: D4 | E9: =U12組合せ!$J$13 -> 泉ＦＣ宇都宮 | Q9: D5 | S9: =U12組合せ!$J$14 -> 国本ＪＳＣ | AE9: D6 | AG9: =U12組合せ!$J$15 -> 本郷北ＦＣ
C10: D7 | E10: =U12組合せ!$J$16 -> ＦＣペンサーレ | Q10: D8 | S10: =U12組合せ!$J$17 -> ブラッドレスＳＳ | AE10: D9 | AG10: =U12組合せ!$J$18 -> ともぞうＳＣ・Ｂ
B12: 【試合時間：２０分-５分-２０分】
C13: 試合開始 | F13: 監督サイン | J13: チーム名 | Q13: 得点 | X13: チーム名 | AE13: 監督サイン | AI13: 主審／副審／副審／４審
B14: 1 | C14: 09:00:00 | J14: =E8 -> 上河内ＪＳＣ | Q14: =IF(OR(S14="",S15=""),"",S14+S15) -> 5 | S14: 2 | T14: － | U14: 0 | V14: =IF(OR(U14="",U15=""),"",U14+U15) -> 0 | X14: =S8 -> 上三川ＳＣ | AI14: =DBCS(INDIRECT("U12対戦スケジュール!g"&(ROW()/2+12))) -> ４／５／５／４
S15: 3 | T15: － | U15: 0
B16: 2 | C16: 09:50:00 | D16: 10:30:00 | J16: =E9 -> 泉ＦＣ宇都宮 | Q16: =IF(OR(S16="",S17=""),"",S16+S17) -> 1 | S16: 1 | T16: － | U16: 4 | V16: =IF(OR(U16="",U17=""),"",U16+U17) -> 9 | X16: =S9 -> 国本ＪＳＣ | AI16: =DBCS(INDIRECT("U12対戦スケジュール!g"&(ROW()/2+12))) -> １／２／２／１
S17: 0 | T17: － | U17: 5
B18: 3 | C18: 10:40:00 | J18: =AG8 -> 緑が丘ＹＦＣ | Q18: =IF(OR(S18="",S19=""),"",S18+S19) -> 7 | S18: 3 | T18: － | U18: 1 | V18: =IF(OR(U18="",U19=""),"",U18+U19) -> 1 | X18: =E8 -> 上河内ＪＳＣ | AI18: =DBCS(INDIRECT("U12対戦スケジュール!g"&(ROW()/2+12))) -> ６／４／４／６
S19: 4 | T19: － | U19: 0
B20: 4 | C20: 11:30:00 | D20: 10:30:00 | J20: =AG9 -> 本郷北ＦＣ | Q20: =IF(OR(S20="",S21=""),"",S20+S21) -> 7 | S20: 3 | T20: － | U20: 0 | V20: =IF(OR(U20="",U21=""),"",U20+U21) -> 0 | X20: =E9 -> 泉ＦＣ宇都宮 | AI20: =DBCS(INDIRECT("U12対戦スケジュール!g"&(ROW()/2+12))) -> ３／１／１／３
S21: 4 | T21: － | U21: 0
B22: 5 | C22: 12:20:00 | J22: =S8 -> 上三川ＳＣ | Q22: =IF(OR(S22="",S23=""),"",S22+S23) -> 0 | S22: 0 | T22: － | U22: 2 | V22: =IF(OR(U22="",U23=""),"",U22+U23) -> 3 | X22: =AG8 -> 緑が丘ＹＦＣ | AI22: =DBCS(INDIRECT("U12対戦スケジュール!g"&(ROW()/2+12))) -> ５／６／６／５
S23: 0 | T23: － | U23: 1
B24: 6 | C24: 13:10:00 | D24: 10:30:00 | J24: =S9 -> 国本ＪＳＣ | Q24: =IF(OR(S24="",S25=""),"",S24+S25) -> 1 | S24: 1 | T24: － | U24: 1 | V24: =IF(OR(U24="",U25=""),"",U24+U25) -> 2 | X24: =AG9 -> 本郷北ＦＣ | AI24: =DBCS(INDIRECT("U12対戦スケジュール!g"&(ROW()/2+12))) -> ２／３／３／２
S25: 0 | T25: － | U25: 1
D27: 警告／退場 | J27: チーム名 | R27: 氏名 | AA27: 番号 | AD27: 理由
D28: 警告 退場
D29: 警告 退場
D30: 警告 退場
A31: ＪＦＡ U-12サッカーリーグ2018（in栃木） 宇河地域リーグ戦（後期） Ｄブロック
C33: 会場 | G33: =U12対戦スケジュール!F38 -> 石井６ | P33: 会場担当 | T33: =U12対戦スケジュール!F39 -> 上河内ＪＳＣ | AC33: 開催日 | AG33: 2018-09-08
C35: C1 | E35: =U12組合せ!$H$10 -> 清原ＳＳＳ | Q35: C2 | S35: =U12組合せ!$H$11 -> ＦＣみらい Ｐ | AE35: C3 | AG35: =U12組合せ!$H$12 -> 雀宮ＦＣ
C36: C4 | E36: =U12組合せ!$H$13 -> ＳＵＧＡＯ ＳＣ | Q36: C5 | S36: =U12組合せ!$H$14 -> Ｓ４スペランツァ | AE36: C6 | AG36: =U12組合せ!$H$15 -> 宇都宮北部ＦＣトレ
C37: C7 | E37: =U12組合せ!$H$16 -> 上三川ＦＣ | Q37: C8 | S37: =U12組合せ!$H$17 -> クラブチェルビアット | AE37: C9 | AG37: =U12組合せ!$H$18 -> ＦＣブロケード
C38: D1 | E38: =U12組合せ!$J$10 -> 上河内ＪＳＣ | Q38: D2 | S38: =U12組合せ!$J$11 -> 上三川ＳＣ | AE38: D3 | AG38: =U12組合せ!$J$12 -> 緑が丘ＹＦＣ
C39: D4 | E39: =U12組合せ!$J$13 -> 泉ＦＣ宇都宮 | Q39: D5 | S39: =U12組合せ!$J$14 -> 国本ＪＳＣ | AE39: D6 | AG39: =U12組合せ!$J$15 -> 本郷北ＦＣ
C40: D7 | E40: =U12組合せ!$J$16 -> ＦＣペンサーレ | Q40: D8 | S40: =U12組合せ!$J$17 -> ブラッドレスＳＳ | AE40: D9 | AG40: =U12組合せ!$J$18 -> ともぞうＳＣ・Ｂ
B42: 【試合時間：２０分-５分-２０分】
C43: 試合開始 | F43: 監督サイン | J43: チーム名 | Q43: 得点 | X43: チーム名 | AE43: 監督サイン | AI43: 主審／副審／副審／４審
B44: 1 | C44: 09:00:00 | J44: =AG40 -> ともぞうＳＣ・Ｂ | Q44: =IF(OR(S44="",S45=""),"",S44+S45) -> 0 | S44: 0 | T44: － | U44: 1 | V44: =IF(OR(U44="",U45=""),"",U44+U45) -> 1 | X44: =AG38 -> 緑が丘ＹＦＣ | AI44: =DBCS(INDIRECT("U12対戦スケジュール!g"&(ROW()/2+18))) -> ７／１／１／７
S45: 0 | T45: － | U45: 0
B46: 2 | C46: 09:50:00 | D46: 10:30:00 | J46: =E40 -> ＦＣペンサーレ | Q46: =IF(OR(S46="",S47=""),"",S46+S47) -> 1 | S46: 1 | T46: － | U46: 1 | V46: =IF(OR(U46="",U47=""),"",U46+U47) -> 1 | X46: =E38 -> 上河内ＪＳＣ | AI46: =DBCS(INDIRECT("U12対戦スケジュール!g"&(ROW()/2+18))) -> ９／３／３／９
S47: 0 | T47: － | U47: 0
B48: 3 | C48: 10:40:00 | J48: =AG39 -> 本郷北ＦＣ | Q48: =IF(OR(S48="",S49=""),"",S48+S49) -> 1 | S48: 1 | T48: － | U48: 0 | V48: =IF(OR(U48="",U49=""),"",U48+U49) -> 0 | X48: =AG40 -> ともぞうＳＣ・Ｂ | AI48: =DBCS(INDIRECT("U12対戦スケジュール!g"&(ROW()/2+18))) -> ４／７／７／４
S49: 0 | T49: － | U49: 0
B50: 4 | C50: 11:30:00 | D50: 10:30:00 | J50: =E39 -> 泉ＦＣ宇都宮 | Q50: =IF(OR(S50="",S51=""),"",S50+S51) -> 0 | S50: 0 | T50: － | U50: 0 | V50: =IF(OR(U50="",U51=""),"",U50+U51) -> 5 | X50: =E40 -> ＦＣペンサーレ | AI50: =DBCS(INDIRECT("U12対戦スケジュール!g"&(ROW()/2+18))) -> ６／９／９／６
S51: 0 | T51: － | U51: 5
B52: 5 | C52: 12:20:00 | J52: =AG38 -> 緑が丘ＹＦＣ | Q52: =IF(OR(S52="",S53=""),"",S52+S53) -> 1 | S52: 1 | T52: － | U52: 0 | V52: =IF(OR(U52="",U53=""),"",U52+U53) -> 1 | X52: =AG39 -> 本郷北ＦＣ | AI52: =DBCS(INDIRECT("U12対戦スケジュール!g"&(ROW()/2+18))) -> １／４／４／１
S53: 0 | T53: － | U53: 1
B54: 6 | C54: 13:10:00 | D54: 10:30:00 | J54: =E38 -> 上河内ＪＳＣ | Q54: =IF(OR(S54="",S55=""),"",S54+S55) -> 5 | S54: 1 | T54: － | U54: 0 | V54: =IF(OR(U54="",U55=""),"",U54+U55) -> 0 | X54: =E39 -> 泉ＦＣ宇都宮 | AI54: =DBCS(INDIRECT("U12対戦スケジュール!g"&(ROW()/2+18))) -> ３／６／６／３
S55: 4 | T55: － | U55: 0
D57: 警告／退場 | J57: チーム名 | R57: 氏名 | AA57: 番号 | AD57: 理由
D58: 警告 退場
D59: 警告 退場
D60: 警告 退場
A61: ＪＦＡ U-12サッカーリーグ2018（in栃木） 宇河地域リーグ戦（後期） Ｄブロック
C63: 会場 | G63: 石井６ | P63: 会場担当 | T63: 国本ＪＳＣ | AC63: 開催日 | AG63: 2018-09-09
C65: C1 | E65: =U12組合せ!$H$10 -> 清原ＳＳＳ | Q65: C2 | S65: =U12組合せ!$H$11 -> ＦＣみらい Ｐ | AE65: C3 | AG65: =U12組合せ!$H$12 -> 雀宮ＦＣ
C66: C4 | E66: =U12組合せ!$H$13 -> ＳＵＧＡＯ ＳＣ | Q66: C5 | S66: =U12組合せ!$H$14 -> Ｓ４スペランツァ | AE66: C6 | AG66: =U12組合せ!$H$15 -> 宇都宮北部ＦＣトレ
C67: C7 | E67: =U12組合せ!$H$16 -> 上三川ＦＣ | Q67: C8 | S67: =U12組合せ!$H$17 -> クラブチェルビアット | AE67: C9 | AG67: =U12組合せ!$H$18 -> ＦＣブロケード
C68: D1 | E68: =U12組合せ!$J$10 -> 上河内ＪＳＣ | Q68: D2 | S68: =U12組合せ!$J$11 -> 上三川ＳＣ | AE68: D3 | AG68: =U12組合せ!$J$12 -> 緑が丘ＹＦＣ
C69: D4 | E69: =U12組合せ!$J$13 -> 泉ＦＣ宇都宮 | Q69: D5 | S69: =U12組合せ!$J$14 -> 国本ＪＳＣ | AE69: D6 | AG69: =U12組合せ!$J$15 -> 本郷北ＦＣ
C70: D7 | E70: =U12組合せ!$J$16 -> ＦＣペンサーレ | Q70: D8 | S70: =U12組合せ!$J$17 -> ブラッドレスＳＳ | AE70: D9 | AG70: =U12組合せ!$J$18 -> ともぞうＳＣ・Ｂ
B72: 【試合時間：２０分-５分-２０分】
C73: 試合開始 | F73: 監督サイン | J73: チーム名 | Q73: 得点 | X73: チーム名 | AE73: 監督サイン | AI73: 主審／副審／副審／４審
B74: 1 | C74: 09:00:00 | J74: =AG69 -> 本郷北ＦＣ | Q74: =IF(OR(S74="",S75=""),"",S74+S75) -> 1 | S74: 1 | T74: － | U74: 0 | V74: =IF(OR(U74="",U75=""),"",U74+U75) -> 0 | X74: =E70 -> ＦＣペンサーレ | AI74: =DBCS(INDIRECT("U12対戦スケジュール!g"&(ROW()/2+25))) -> ５／９／９／５
S75: 0 | T75: － | U75: 0
B76: 2 | C76: 09:50:00 | D76: 10:30:00 | J76: =S69 -> 国本ＪＳＣ | Q76: =IF(OR(S76="",S77=""),"",S76+S77) -> 1 | S76: 1 | T76: － | U76: 1 | V76: =IF(OR(U76="",U77=""),"",U76+U77) -> 3 | X76: =AG70 -> ともぞうＳＣ・Ｂ | AI76: =DBCS(INDIRECT("U12対戦スケジュール!g"&(ROW()/2+25))) -> ６／７／７／６
S77: 0 | T77: － | U77: 2
B78: 3 | C78: 10:40:00 | J78: =S68 -> 上三川ＳＣ | Q78: =IF(OR(S78="",S79=""),"",S78+S79) -> 0 | S78: 0 | T78: － | U78: 1 | V78: =IF(OR(U78="",U79=""),"",U78+U79) -> 1 | X78: =AG69 -> 本郷北ＦＣ | AI78: =DBCS(INDIRECT("U12対戦スケジュール!g"&(ROW()/2+25))) -> １／５／５／１
S79: 0 | T79: － | U79: 0
B80: 4 | C80: 11:30:00 | D80: 10:30:00 | J80: =E68 -> 上河内ＪＳＣ | Q80: =IF(OR(S80="",S81=""),"",S80+S81) -> 2 | S80: 1 | T80: － | U80: 1 | V80: =IF(OR(U80="",U81=""),"",U80+U81) -> 1 | X80: =S69 -> 国本ＪＳＣ | AI80: =DBCS(INDIRECT("U12対戦スケジュール!g"&(ROW()/2+25))) -> ２／６／６／２
S81: 1 | T81: － | U81: 0
B82: 5 | C82: 12:20:00 | J82: =E70 -> ＦＣペンサーレ | Q82: =IF(OR(S82="",S83=""),"",S82+S83) -> 6 | S82: 2 | T82: － | U82: 0 | V82: =IF(OR(U82="",U83=""),"",U82+U83) -> 0 | X82: =S68 -> 上三川ＳＣ | AI82: =DBCS(INDIRECT("U12対戦スケジュール!g"&(ROW()/2+25))) -> ９／１／１／９
S83: 4 | T83: － | U83: 0
B84: 6 | C84: 13:10:00 | D84: 10:30:00 | J84: =AG70 -> ともぞうＳＣ・Ｂ | Q84: =IF(OR(S84="",S85=""),"",S84+S85) -> 0 | S84: 0 | T84: － | U84: 1 | V84: =IF(OR(U84="",U85=""),"",U84+U85) -> 1 | X84: =E68 -> 上河内ＪＳＣ | AI84: =DBCS(INDIRECT("U12対戦スケジュール!g"&(ROW()/2+25))) -> ７／２／２／７
S85: 0 | T85: － | U85: 0
D87: 警告／退場 | J87: チーム名 | R87: 氏名 | AA87: 番号 | AD87: 理由
D88: 警告 退場
D89: 警告 退場
D90: 警告 退場
A91: ＪＦＡ U-12サッカーリーグ2018（in栃木） 宇河地域リーグ戦（後期） Ｄブロック | AR91: ＪＦＡ U-12サッカーリーグ2018（in栃木） 宇河地域リーグ戦（後期） Ｄブロック
C93: 会場 | G93: =U12対戦スケジュール!D83 -> 石井５ | P93: 会場担当 | T93: =U12対戦スケジュール!D84 -> ＦＣペンサーレ | AC93: 開催日 | AG93: 2018-09-16 | AT93: 会場 | AX93: =U12対戦スケジュール!F83 -> 石井６ | BG93: 会場担当 | BK93: =U12対戦スケジュール!F84 -> 上三川ＳＣ | BT93: 開催日 | BX93: 2018-09-16
C95: C1 | E95: =U12組合せ!$H$10 -> 清原ＳＳＳ | Q95: C2 | S95: =U12組合せ!$H$11 -> ＦＣみらい Ｐ | AE95: C3 | AG95: =U12組合せ!$H$12 -> 雀宮ＦＣ | AT95: C1 | AV95: =U12組合せ!$H$10 -> 清原ＳＳＳ | BH95: C2 | BJ95: =U12組合せ!$H$11 -> ＦＣみらい Ｐ | BV95: C3 | BX95: =U12組合せ!$H$12 -> 雀宮ＦＣ
C96: C4 | E96: =U12組合せ!$H$13 -> ＳＵＧＡＯ ＳＣ | Q96: C5 | S96: =U12組合せ!$H$14 -> Ｓ４スペランツァ | AE96: C6 | AG96: =U12組合せ!$H$15 -> 宇都宮北部ＦＣトレ | AT96: C4 | AV96: =U12組合せ!$H$13 -> ＳＵＧＡＯ ＳＣ | BH96: C5 | BJ96: =U12組合せ!$H$14 -> Ｓ４スペランツァ | BV96: C6 | BX96: =U12組合せ!$H$15 -> 宇都宮北部ＦＣトレ
C97: C7 | E97: =U12組合せ!$H$16 -> 上三川ＦＣ | Q97: C8 | S97: =U12組合せ!$H$17 -> クラブチェルビアット | AE97: C9 | AG97: =U12組合せ!$H$18 -> ＦＣブロケード | AT97: C7 | AV97: =U12組合せ!$H$16 -> 上三川ＦＣ | BH97: C8 | BJ97: =U12組合せ!$H$17 -> クラブチェルビアット | BV97: C9 | BX97: =U12組合せ!$H$18 -> ＦＣブロケード
C98: D1 | E98: =U12組合せ!$J$10 -> 上河内ＪＳＣ | Q98: D2 | S98: =U12組合せ!$J$11 -> 上三川ＳＣ | AE98: D3 | AG98: =U12組合せ!$J$12 -> 緑が丘ＹＦＣ | AT98: D1 | AV98: =U12組合せ!$J$10 -> 上河内ＪＳＣ | BH98: D2 | BJ98: =U12組合せ!$J$11 -> 上三川ＳＣ | BV98: D3 | BX98: =U12組合せ!$J$12 -> 緑が丘ＹＦＣ
C99: D4 | E99: =U12組合せ!$J$13 -> 泉ＦＣ宇都宮 | Q99: D5 | S99: =U12組合せ!$J$14 -> 国本ＪＳＣ | AE99: D6 | AG99: =U12組合せ!$J$15 -> 本郷北ＦＣ | AT99: D4 | AV99: =U12組合せ!$J$13 -> 泉ＦＣ宇都宮 | BH99: D5 | BJ99: =U12組合せ!$J$14 -> 国本ＪＳＣ | BV99: D6 | BX99: =U12組合せ!$J$15 -> 本郷北ＦＣ
C100: D7 | E100: =U12組合せ!$J$16 -> ＦＣペンサーレ | Q100: D8 | S100: =U12組合せ!$J$17 -> ブラッドレスＳＳ | AE100: D9 | AG100: =U12組合せ!$J$18 -> ともぞうＳＣ・Ｂ | AT100: D7 | AV100: =U12組合せ!$J$16 -> ＦＣペンサーレ | BH100: D8 | BJ100: =U12組合せ!$J$17 -> ブラッドレスＳＳ | BV100: D9 | BX100: =U12組合せ!$J$18 -> ともぞうＳＣ・Ｂ
B102: 【試合時間：２０分-５分-２０分】 | AS102: 【試合時間：２０分-５分-２０分】
C103: 試合開始 | F103: 監督サイン | J103: チーム名 | Q103: 得点 | X103: チーム名 | AE103: 監督サイン | AI103: 主審／副審／副審／４審 | AT103: 試合開始 | AW103: 監督サイン | BA103: チーム名 | BH103: 得点 | BO103: チーム名 | BV103: 監督サイン | BZ103: 主審／副審／副審／４審
B104: 1 | C104: 09:00:00 | J104: =AG98 -> 緑が丘ＹＦＣ | Q104: =IF(OR(S104="",S105=""),"",S104+S105) -> 1 | S104: 1 | T104: － | U104: 0 | V104: =IF(OR(U104="",U105=""),"",U104+U105) -> 0 | X104: =S99 -> 国本ＪＳＣ | AI104: =DBCS(INDIRECT("U12対戦スケジュール!e"&(ROW()/2+33))) -> ８／２／２／８ | AS104: 1 | AT104: 09:00:00 | BA104: =AV98 -> 上河内ＪＳＣ | BH104: =IF(OR(BJ104="",BJ105=""),"",BJ104+BJ105) -> 5 | BJ104: 2 | BK104: － | BL104: 0 | BM104: =IF(OR(BL104="",BL105=""),"",BL104+BL105) -> 0 | BO104: =BX99 -> 本郷北ＦＣ | BZ104: =DBCS(INDIRECT("U12対戦スケジュール!g"&(ROW()/2+33))) -> ９／７／７／９
S105: 0 | T105: － | U105: 0 | BJ105: 3 | BK105: － | BL105: 0
B106: 2 | C106: 09:50:00 | D106: 10:30:00 | Q106: =IF(OR(S106="",S107=""),"",S106+S107) ->  | T106: － | V106: =IF(OR(U106="",U107=""),"",U106+U107) ->  | AI106: =DBCS(INDIRECT("U12対戦スケジュール!e"&(ROW()/2+33))) ->  | AS106: 2 | AT106: 09:50:00 | AU106: 10:30:00 | BA106: =BJ98 -> 上三川ＳＣ | BH106: =IF(OR(BJ106="",BJ107=""),"",BJ106+BJ107) -> 4 | BJ106: 2 | BK106: － | BL106: 0 | BM106: =IF(OR(BL106="",BL107=""),"",BL106+BL107) -> 0 | BO106: =AV99 -> 泉ＦＣ宇都宮 | BZ106: =DBCS(INDIRECT("U12対戦スケジュール!g"&(ROW()/2+33))) -> ３／１／１／３
T107: － | BJ107: 2 | BK107: － | BL107: 0
B108: 3 | C108: 10:40:00 | J108: =E100 -> ＦＣペンサーレ | Q108: =IF(OR(S108="",S109=""),"",S108+S109) -> 3 | S108: 1 | T108: － | U108: 0 | V108: =IF(OR(U108="",U109=""),"",U108+U109) -> 0 | X108: =AG98 -> 緑が丘ＹＦＣ | AI108: =DBCS(INDIRECT("U12対戦スケジュール!e"&(ROW()/2+33))) -> ６／４／４／６ | AS108: 3 | AT108: 10:40:00 | BA108: =BJ100 -> ブラッドレスＳＳ | BH108: =IF(OR(BJ108="",BJ109=""),"",BJ108+BJ109) -> 1 | BJ108: 1 | BK108: － | BL108: 0 | BM108: =IF(OR(BL108="",BL109=""),"",BL108+BL109) -> 0 | BO108: =AV98 -> 上河内ＪＳＣ | BZ108: =DBCS(INDIRECT("U12対戦スケジュール!g"&(ROW()/2+33))) -> ２／５／５／２
S109: 2 | T109: － | U109: 0 | BJ109: 0 | BK109: － | BL109: 0
B110: 4 | C110: 11:30:00 | D110: 10:30:00 | Q110: =IF(OR(S110="",S111=""),"",S110+S111) ->  | T110: － | V110: =IF(OR(U110="",U111=""),"",U110+U111) ->  | AI110: =DBCS(INDIRECT("U12対戦スケジュール!e"&(ROW()/2+33))) ->  | AS110: 4 | AT110: 11:30:00 | AU110: 10:30:00 | BA110: =BX100 -> ともぞうＳＣ・Ｂ | BH110: =IF(OR(BJ110="",BJ111=""),"",BJ110+BJ111) -> 4 | BJ110: 3 | BK110: － | BL110: 0 | BM110: =IF(OR(BL110="",BL111=""),"",BL110+BL111) -> 0 | BO110: =BJ98 -> 上三川ＳＣ | BZ110: =DBCS(INDIRECT("U12対戦スケジュール!g"&(ROW()/2+33))) -> ７／８／８／７
T111: － | BJ111: 1 | BK111: － | BL111: 0
B112: 5 | C112: 12:20:00 | J112: =S99 -> 国本ＪＳＣ | Q112: =IF(OR(S112="",S113=""),"",S112+S113) -> 1 | S112: 0 | T112: － | U112: 2 | V112: =IF(OR(U112="",U113=""),"",U112+U113) -> 2 | X112: =E100 -> ＦＣペンサーレ | AI112: =DBCS(INDIRECT("U12対戦スケジュール!e"&(ROW()/2+33))) -> １／９／９／１ | AS112: 5 | AT112: 12:20:00 | BA112: =BX99 -> 本郷北ＦＣ | BH112: =IF(OR(BJ112="",BJ113=""),"",BJ112+BJ113) -> 0 | BJ112: 0 | BK112: － | BL112: 2 | BM112: =IF(OR(BL112="",BL113=""),"",BL112+BL113) -> 2 | BO112: =BJ100 -> ブラッドレスＳＳ | BZ112: =DBCS(INDIRECT("U12対戦スケジュール!g"&(ROW()/2+33))) -> ４／３／３／４
S113: 1 | T113: － | U113: 0 | BJ113: 0 | BK113: － | BL113: 0
B114: 6 | C114: 13:10:00 | D114: 10:30:00 | Q114: =IF(OR(S114="",S115=""),"",S114+S115) ->  | T114: － | V114: =IF(OR(U114="",U115=""),"",U114+U115) ->  | AI114: =DBCS(INDIRECT("U12対戦スケジュール!e"&(ROW()/2+33))) ->  | AS114: 6 | AT114: 13:10:00 | AU114: 10:30:00 | BA114: =AV99 -> 泉ＦＣ宇都宮 | BH114: =IF(OR(BJ114="",BJ115=""),"",BJ114+BJ115) -> 0 | BJ114: 0 | BK114: － | BL114: 1 | BM114: =IF(OR(BL114="",BL115=""),"",BL114+BL115) -> 2 | BO114: =BX100 -> ともぞうＳＣ・Ｂ | BZ114: =DBCS(INDIRECT("U12対戦スケジュール!g"&(ROW()/2+33))) -> ５／６／６／５
T115: － | BJ115: 0 | BK115: － | BL115: 1
D117: 警告／退場 | J117: チーム名 | R117: 氏名 | AA117: 番号 | AD117: 理由 | AU117: 警告／退場 | BA117: チーム名 | BI117: 氏名 | BR117: 番号 | BU117: 理由
D118: 警告 退場 | AU118: 警告 退場
D119: 警告 退場 | AU119: 警告 退場
D120: 警告 退場 | AU120: 警告 退場

Sheet ■
B1: チーム名 | C1: 勝ち点 | D1: 試合数 | E1: 勝ち点 | F1: 得失差 | G1: 得点
A2: =INDIRECT("'Ａ～Ｄブロック星取表'!A"&ROW()*2) -> A01 | B2: =U12組合せ!D10 -> 石井ＦＣ | C2: =INDIRECT("'Ａ～Ｄブロック星取表'!At"&ROW()*2) -> 22 | D2: =INDIRECT("'Ａ～Ｄブロック星取表'!As"&ROW()*2) -> 9 | E2: =INDIRECT("'Ａ～Ｄブロック星取表'!At"&ROW()*2) -> 22 | F2: =INDIRECT("'Ａ～Ｄブロック星取表'!Av"&ROW()*2) -> 25 | G2: =INDIRECT("'Ａ～Ｄブロック星取表'!Aｗ"&ROW()*2) -> 31
A3: =INDIRECT("'Ａ～Ｄブロック星取表'!A"&ROW()*2) -> A02 | B3: =U12組合せ!D11 -> 細谷ＳＣ | C3: =INDIRECT("'Ａ～Ｄブロック星取表'!At"&ROW()*2) -> 22 | D3: =INDIRECT("'Ａ～Ｄブロック星取表'!As"&ROW()*2) -> 9 | E3: 22 | F3: =INDIRECT("'Ａ～Ｄブロック星取表'!Av"&ROW()*2) -> 43 | G3: =INDIRECT("'Ａ～Ｄブロック星取表'!Aｗ"&ROW()*2) -> 50
A4: A03 | B4: =U12組合せ!D12 -> ＦＣみらい Ｖ | C4: 0 | D4: 9 | E4: 0 | F4: -43 | G4: 2
A5: A04 | B5: =U12組合せ!D13 -> 岡西ＦＣ | C5: 4 | D5: 9 | E5: 4 | F5: -53 | G5: 9
A6: A05 | B6: =U12組合せ!D14 -> ＦＣグランディール宇都宮 | C6: 13 | D6: 9 | E6: 13 | F6: 1 | G6: 19
A7: A06 | B7: =U12組合せ!D15 -> ＦＣグラシアス | C7: 18 | D7: 9 | E7: 18 | F7: 16 | G7: 33
A8: A07 | B8: =U12組合せ!D16 -> 岡本ＦＣ | C8: 4 | D8: 9 | E8: 4 | F8: -22 | G8: 7
A9: A08 | B9: =U12組合せ!D17 -> シャルムグランツＳＣ | C9: 9 | D9: 9 | E9: 9 | F9: -18 | G9: 14
A10: A09 | B10: =U12組合せ!D18 -> カテット白沢ＳＳ | C10: 24 | D10: 9 | E10: 24 | F10: 34 | G10: 39
A11: A10 | B11: =U12組合せ!D19 -> ＦＣアリーバ | C11: 16 | D11: 9 | E11: 16 | F11: 17 | G11: 27
A12: =INDIRECT("'Ａ～Ｄブロック星取表'!A"&ROW()*2+2) -> B01 | B12: =U12組合せ!F10 -> 姿川第一ＦＣ | C12: =INDIRECT("'Ａ～Ｄブロック星取表'!At"&ROW()*2+2) -> 7 | D12: =INDIRECT("'Ａ～Ｄブロック星取表'!As"&ROW()*2+2) -> 8 | E12: =INDIRECT("'Ａ～Ｄブロック星取表'!At"&ROW()*2+2) -> 7 | F12: =INDIRECT("'Ａ～Ｄブロック星取表'!Aｖ"&ROW()*2+2) -> -7 | G12: =INDIRECT("'Ａ～Ｄブロック星取表'!Aｗ"&ROW()*2+2) -> 5
A13: =INDIRECT("'Ａ～Ｄブロック星取表'!A"&ROW()*2+2) -> B02 | B13: =U12組合せ!F11 -> 宝木キッカーズ | C13: =INDIRECT("'Ａ～Ｄブロック星取表'!At"&ROW()*2+2) -> 10 | D13: =INDIRECT("'Ａ～Ｄブロック星取表'!As"&ROW()*2+2) -> 8 | E13: 10 | F13: =INDIRECT("'Ａ～Ｄブロック星取表'!Aｖ"&ROW()*2+2) -> -7 | G13: =INDIRECT("'Ａ～Ｄブロック星取表'!Aｗ"&ROW()*2+2) -> 10
A14: B03 | B14: =U12組合せ!F12 -> ｕｎｉｏｎ ｓｃ | C14: 15 | D14: 8 | E14: 15 | F14: 6 | G14: 16
A15: B04 | B15: =U12組合せ!F13 -> 河内ＳＣジュベニール | C15: 1 | D15: 8 | E15: 1 | F15: -18 | G15: 1
A16: B05 | B16: =U12組合せ!F14 -> 昭和・戸祭ＳＣ | C16: 14 | D16: 8 | E16: 14 | F16: 1 | G16: 11
A17: B06 | B17: =U12組合せ!F15 -> サウス宇都宮ＳＣ | C17: 10 | D17: 8 | E17: 10 | F17: 1 | G17: 12
A18: B07 | B18: =U12組合せ!F16 -> ＦＣ Ｒｉｓｏ | C18: 21 | D18: 8 | E18: 21 | F18: 20 | G18: 22
A19: B08 | B19: =U12組合せ!F17 -> 富士見ＳＳＳ | C19: 4 | D19: 8 | E19: 4 | F19: -22 | G19: 3
A20: B09 | B20: =U12組合せ!F18 -> 豊郷ＪＦＣ宇都宮 | C20: 22 | D20: 8 | E20: 22 | F20: 30 | G20: 31
A21: =INDIRECT("'Ａ～Ｄブロック星取表'!A"&ROW()*2+6) -> C01 | B21: =U12組合せ!H10 -> 清原ＳＳＳ | C21: =INDIRECT("'Ａ～Ｄブロック星取表'!At"&ROW()*2+6) -> 20 | D21: =INDIRECT("'Ａ～Ｄブロック星取表'!As"&ROW()*2+6) -> 8 | E21: =INDIRECT("'Ａ～Ｄブロック星取表'!At"&ROW()*2+6) -> 20 | F21: =INDIRECT("'Ａ～Ｄブロック星取表'!Aｖ"&ROW()*2+6) -> 19 | G21: =INDIRECT("'Ａ～Ｄブロック星取表'!Aｗ"&ROW()*2+6) -> 29
A22: =INDIRECT("'Ａ～Ｄブロック星取表'!A"&ROW()*2+6) -> C02 | B22: =U12組合せ!H11 -> ＦＣみらい Ｐ | C22: =INDIRECT("'Ａ～Ｄブロック星取表'!At"&ROW()*2+6) -> 18 | D22: =INDIRECT("'Ａ～Ｄブロック星取表'!As"&ROW()*2+6) -> 8 | E22: 18 | F22: =INDIRECT("'Ａ～Ｄブロック星取表'!Aｖ"&ROW()*2+6) -> 20 | G22: =INDIRECT("'Ａ～Ｄブロック星取表'!Aｗ"&ROW()*2+6) -> 28
A23: C03 | B23: =U12組合せ!H12 -> 雀宮ＦＣ | C23: 6 | D23: 8 | E23: 6 | F23: -8 | G23: 10
A24: C04 | B24: =U12組合せ!H13 -> ＳＵＧＡＯ ＳＣ | C24: 13 | D24: 8 | E24: 13 | F24: 6 | G24: 18
A25: C05 | B25: =U12組合せ!H14 -> Ｓ４スペランツァ | C25: 13 | D25: 8 | E25: 13 | F25: 9 | G25: 24
A26: C06 | B26: =U12組合せ!H15 -> 宇都宮北部ＦＣトレ | C26: 10 | D26: 8 | E26: 10 | F26: -4 | G26: 16
A27: C07 | B27: =U12組合せ!H16 -> 上三川ＦＣ | C27: 3 | D27: 8 | E27: 3 | F27: -24 | G27: 10
A28: C08 | B28: =U12組合せ!H17 -> クラブチェルビアット | C28: 22 | D28: 8 | E28: 22 | F28: 30 | G28: 34
A29: C09 | B29: =U12組合せ!H18 -> ＦＣブロケード | C29: 0 | D29: 8 | E29: 0 | F29: -48 | G29: 1
A30: =INDIRECT("'Ａ～Ｄブロック星取表'!A"&ROW()*2+8) -> D01 | B30: =U12組合せ!J10 -> 上河内ＪＳＣ | C30: =INDIRECT("'Ａ～Ｄブロック星取表'!At"&ROW()*2+8) -> 19 | D30: =INDIRECT("'Ａ～Ｄブロック星取表'!As"&ROW()*2+8) -> 8 | E30: =INDIRECT("'Ａ～Ｄブロック星取表'!At"&ROW()*2+8) -> 19 | F30: =INDIRECT("'Ａ～Ｄブロック星取表'!Aｖ"&ROW()*2+8) -> 22 | G30: =INDIRECT("'Ａ～Ｄブロック星取表'!Aｗ"&ROW()*2+8) -> 26
A31: =INDIRECT("'Ａ～Ｄブロック星取表'!A"&ROW()*2+8) -> D02 | B31: =U12組合せ!J11 -> 上三川ＳＣ | C31: =INDIRECT("'Ａ～Ｄブロック星取表'!At"&ROW()*2+8) -> 4 | D31: =INDIRECT("'Ａ～Ｄブロック星取表'!As"&ROW()*2+8) -> 8 | E31: 4 | F31: =INDIRECT("'Ａ～Ｄブロック星取表'!Aｖ"&ROW()*2+8) -> -18 | G31: =INDIRECT("'Ａ～Ｄブロック星取表'!Aｗ"&ROW()*2+8) -> 9
A32: D03 | B32: =U12組合せ!J12 -> 緑が丘ＹＦＣ | C32: 19 | D32: 8 | E32: 19 | F32: 8 | G32: 18
A33: D04 | B33: =U12組合せ!J13 -> 泉ＦＣ宇都宮 | C33: 0 | D33: 8 | E33: 0 | F33: -46 | G33: 1
A34: D05 | B34: =U12組合せ!J14 -> 国本ＪＳＣ | C34: 4 | D34: 8 | E34: 4 | F34: 0 | G34: 18
A35: D06 | B35: =U12組合せ!J15 -> 本郷北ＦＣ | C35: 16 | D35: 8 | E35: 16 | F35: 4 | G35: 13
A36: D07 | B36: =U12組合せ!J16 -> ＦＣペンサーレ | C36: 10 | D36: 8 | E36: 10 | F36: 0 | G36: 15
A37: D08 | B37: =U12組合せ!J17 -> ブラッドレスＳＳ | C37: 19 | D37: 8 | E37: 19 | F37: 21 | G37: 27
A38: D09 | B38: =U12組合せ!J18 -> ともぞうＳＣ・Ｂ | C38: 13 | D38: 8 | E38: 13 | F38: 9 | G38: 13

Sheet Ａ～Dブロック星取表
A1: ＪＦＡ U-12サッカーリーグ2018（in栃木） 宇河地域リーグ戦（後期） 星取表
A3: Ａブロック | E3: =A5 -> 石井ＦＣ | I3: =A7 -> 細谷ＳＣ | M3: =A9 -> ＦＣみらい Ｖ | Q3: =A11 -> 岡西ＦＣ | U3: =A13 -> ＦＣグランディール宇都宮 | Y3: =A15 -> ＦＣグラシアス | AC3: =A17 -> 岡本ＦＣ | AG3: =A19 -> シャルムグランツＳＣ | AK3: =A21 -> カテット白沢ＳＳ | AO3: =A23 -> ＦＣアリーバ | AS3: 試合数 | AT3: 勝ち点 | AU3: 勝ち点率 | AV3: 得失差 | AW3: 得点 | AY3: ブロック 順位 | AZ3: 総合 順位
A4: A01 | I4: =IF(OR(J4="",L4=""),"",IF(J4>L4,"○",IF(J4<L4,"×",IF(J4=L4,"△")))) -> △ | J4: 2 | K4: - | L4: 2 | M4: =IF(OR(N4="",P4=""),"",IF(N4>P4,"○",IF(N4<P4,"×",IF(N4=P4,"△")))) -> ○ | N4: 7 | O4: - | P4: 0 | Q4: =IF(OR(R4="",T4=""),"",IF(R4>T4,"○",IF(R4<T4,"×",IF(R4=T4,"△")))) -> ○ | R4: 10 | S4: － | T4: 0 | U4: =IF(OR(V4="",X4=""),"",IF(V4>X4,"○",IF(V4<X4,"×",IF(V4=X4,"△")))) -> ○ | V4: 2 | W4: － | X4: 0 | Y4: =IF(OR(Z4="",AB4=""),"",IF(Z4>AB4,"○",IF(Z4<AB4,"×",IF(Z4=AB4,"△")))) -> × | Z4: 1 | AA4: － | AB4: 2 | AC4: =IF(OR(AD4="",AF4=""),"",IF(AD4>AF4,"○",IF(AD4<AF4,"×",IF(AD4=AF4,"△")))) -> ○ | AD4: 2 | AE4: － | AF4: 0 | AG4: =IF(OR(AH4="",AJ4=""),"",IF(AH4>AJ4,"○",IF(AH4<AJ4,"×",IF(AH4=AJ4,"△")))) -> ○ | AH4: 4 | AI4: － | AJ4: 2 | AK4: =IF(OR(AL4="",AN4=""),"",IF(AL4>AN4,"○",IF(AL4<AN4,"×",IF(AL4=AN4,"△")))) -> ○ | AL4: 2 | AM4: － | AN4: 0 | AO4: =IF(OR(AP4="",AR4=""),"",IF(AP4>AR4,"○",IF(AP4<AR4,"×",IF(AP4=AR4,"△")))) -> ○ | AP4: 1 | AQ4: - | AR4: 0 | AS4: =COUNTIF(E4:AR5,"○")+COUNTIF(E4:AR5,"×")+COUNTIF(E4:AR5,"△") -> 9 | AT4: =COUNTIF(E4:AR5,"○")*3+COUNTIF(E4:AR5,"△") -> 22 | AU4: =IF(AS4=0,0,AT4/(AS4*3)) -> 0.8148148148 | AV4: =SUM(F4,J4,N4,R4,V4,Z4,AD4,AH4,AL4,AP4)-SUM(H4,L4,P4,T4,X4,AB4,AF4,AJ4,AN4,AR4) -> 25 | AW4: =SUM(F4,J4,N4,R4,V4,Z4,AD4,AH4,AL4,AP4) -> 31 | AX4: =AU4+AV4*0.001+AW4*0.00001 -> 0.8401248148 | AY4: =RANK(AX4,$AX$4:$AX$23) -> 3 | AZ4: =RANK(AX4,$AX$4:$AX$85) -> 7
A5: =INDIRECT("U12組合せ!d"&(ROW()-1)/2+8) -> 石井ＦＣ
A6: A02 | E6: =IF(OR(F6="",H6=""),"",IF(F6>H6,"○",IF(F6<H6,"×",IF(F6=H6,"△")))) -> △ | F6: =IF(L4="","",L4) -> 2 | G6: － | H6: =IF(J4="","",J4) -> 2 | M6: =IF(OR(N6="",P6=""),"",IF(N6>P6,"○",IF(N6<P6,"×",IF(N6=P6,"△")))) -> ○ | N6: 5 | O6: - | P6: 0 | Q6: =IF(OR(R6="",T6=""),"",IF(R6>T6,"○",IF(R6<T6,"×",IF(R6=T6,"△")))) -> ○ | R6: 13 | S6: － | T6: 1 | U6: =IF(OR(V6="",X6=""),"",IF(V6>X6,"○",IF(V6<X6,"×",IF(V6=X6,"△")))) -> ○ | V6: 6 | W6: － | X6: 1 | Y6: =IF(OR(Z6="",AB6=""),"",IF(Z6>AB6,"○",IF(Z6<AB6,"×",IF(Z6=AB6,"△")))) -> ○ | Z6: 2 | AA6: － | AB6: 0 | AC6: =IF(OR(AD6="",AF6=""),"",IF(AD6>AF6,"○",IF(AD6<AF6,"×",IF(AD6=AF6,"△")))) -> ○ | AD6: 8 | AE6: － | AF6: 0 | AG6: =IF(OR(AH6="",AJ6=""),"",IF(AH6>AJ6,"○",IF(AH6<AJ6,"×",IF(AH6=AJ6,"△")))) -> ○ | AH6: 10 | AI6: － | AJ6: 0 | AK6: =IF(OR(AL6="",AN6=""),"",IF(AL6>AN6,"○",IF(AL6<AN6,"×",IF(AL6=AN6,"△")))) -> × | AL6: 1 | AM6: － | AN6: 3 | AO6: =IF(OR(AP6="",AR6=""),"",IF(AP6>AR6,"○",IF(AP6<AR6,"×",IF(AP6=AR6,"△")))) -> ○ | AP6: 3 | AQ6: - | AR6: 0 | AS6: =COUNTIF(E6:AR7,"○")+COUNTIF(E6:AR7,"×")+COUNTIF(E6:AR7,"△") -> 9 | AT6: =COUNTIF(E6:AR7,"○")*3+COUNTIF(E6:AR7,"△") -> 22 | AU6: =IF(AS6=0,0,AT6/(AS6*3)) -> 0.8148148148 | AV6: =SUM(F6,J6,N6,R6,V6,Z6,AD6,AH6,AL6,AP6)-SUM(H6,L6,P6,T6,X6,AB6,AF6,AJ6,AN6,AR6) -> 43 | AW6: =SUM(F6,J6,N6,R6,V6,Z6,AD6,AH6,AL6,AP6) -> 50 | AX6: =AU6+AV6*0.001+AW6*0.00001 -> 0.8583148148 | AY6: =RANK(AX6,$AX$4:$AX$23) -> 2 | AZ6: =RANK(AX6,$AX$4:$AX$85) -> 5
A7: =INDIRECT("U12組合せ!d"&(ROW()-1)/2+8) -> 細谷ＳＣ
A8: A03 | E8: =IF(OR(F8="",H8=""),"",IF(F8>H8,"○",IF(F8<H8,"×",IF(F8=H8,"△")))) -> × | F8: =IF(P4="","",P4) -> 0 | G8: － | H8: =IF(N4="","",N4) -> 7 | I8: =IF(OR(J8="",L8=""),"",IF(J8>L8,"○",IF(J8<L8,"×",IF(J8=L8,"△")))) -> × | J8: =IF(P6="","",P6) -> 0 | K8: － | L8: =IF(N6="","",N6) -> 5 | Q8: =IF(OR(R8="",T8=""),"",IF(R8>T8,"○",IF(R8<T8,"×",IF(R8=T8,"△")))) -> × | R8: 1 | S8: - | T8: 3 | U8: =IF(OR(V8="",X8=""),"",IF(V8>X8,"○",IF(V8<X8,"×",IF(V8=X8,"△")))) -> × | V8: 0 | W8: － | X8: 5 | Y8: =IF(OR(Z8="",AB8=""),"",IF(Z8>AB8,"○",IF(Z8<AB8,"×",IF(Z8=AB8,"△")))) -> × | Z8: 0 | AA8: － | AB8: 8 | AC8: =IF(OR(AD8="",AF8=""),"",IF(AD8>AF8,"○",IF(AD8<AF8,"×",IF(AD8=AF8,"△")))) -> × | AD8: 0 | AE8: － | AF8: 2 | AG8: =IF(OR(AH8="",AJ8=""),"",IF(AH8>AJ8,"○",IF(AH8<AJ8,"×",IF(AH8=AJ8,"△")))) -> × | AH8: 0 | AI8: － | AJ8: 3 | AK8: =IF(OR(AL8="",AN8=""),"",IF(AL8>AN8,"○",IF(AL8<AN8,"×",IF(AL8=AN8,"△")))) -> × | AL8: 1 | AM8: － | AN8: 7 | AO8: =IF(OR(AP8="",AR8=""),"",IF(AP8>AR8,"○",IF(AP8<AR8,"×",IF(AP8=AR8,"△")))) -> × | AP8: 0 | AQ8: - | AR8: 5 | AS8: =COUNTIF(E8:AR9,"○")+COUNTIF(E8:AR9,"×")+COUNTIF(E8:AR9,"△") -> 9 | AT8: =COUNTIF(E8:AR9,"○")*3+COUNTIF(E8:AR9,"△") -> 0 | AU8: =IF(AS8=0,0,AT8/(AS8*3)) -> 0 | AV8: =SUM(F8,J8,N8,R8,V8,Z8,AD8,AH8,AL8,AP8)-SUM(H8,L8,P8,T8,X8,AB8,AF8,AJ8,AN8,AR8) -> -43 | AW8: =SUM(F8,J8,N8,R8,V8,Z8,AD8,AH8,AL8,AP8) -> 2 | AX8: =AU8+AV8*0.001+AW8*0.00001 -> -0.04298 | AY8: =RANK(AX8,$AX$4:$AX$23) -> 10 | AZ8: =RANK(AX8,$AX$4:$AX$85) -> 35
A9: =INDIRECT("U12組合せ!d"&(ROW()-1)/2+8) -> ＦＣみらい Ｖ
A10: A04 | E10: =IF(OR(F10="",H10=""),"",IF(F10>H10,"○",IF(F10<H10,"×",IF(F10=H10,"△")))) -> × | F10: =IF(T4="","",T4) -> 0 | G10: － | H10: =IF(R4="","",R4) -> 10 | I10: =IF(OR(J10="",L10=""),"",IF(J10>L10,"○",IF(J10<L10,"×",IF(J10=L10,"△")))) -> × | J10: =IF(T6="","",T6) -> 1 | K10: － | L10: =IF(R6="","",R6) -> 13 | M10: =IF(OR(N10="",P10=""),"",IF(N10>P10,"○",IF(N10<P10,"×",IF(N10=P10,"△")))) -> ○ | N10: =IF(T8="","",T8) -> 3 | O10: － | P10: =IF(R8="","",R8) -> 1 | U10: =IF(OR(V10="",X10=""),"",IF(V10>X10,"○",IF(V10<X10,"×",IF(V10=X10,"△")))) -> × | V10: 1 | W10: - | X10: 7 | Y10: =IF(OR(Z10="",AB10=""),"",IF(Z10>AB10,"○",IF(Z10<AB10,"×",IF(Z10=AB10,"△")))) -> × | Z10: 0 | AA10: － | AB10: 8 | AC10: =IF(OR(AD10="",AF10=""),"",IF(AD10>AF10,"○",IF(AD10<AF10,"×",IF(AD10=AF10,"△")))) -> △ | AD10: 2 | AE10: － | AF10: 2 | AG10: =IF(OR(AH10="",AJ10=""),"",IF(AH10>AJ10,"○",IF(AH10<AJ10,"×",IF(AH10=AJ10,"△")))) -> × | AH10: 2 | AI10: － | AJ10: 4 | AK10: =IF(OR(AL10="",AN10=""),"",IF(AL10>AN10,"○",IF(AL10<AN10,"×",IF(AL10=AN10,"△")))) -> × | AL10: 0 | AM10: － | AN10: 9 | AO10: =IF(OR(AP10="",AR10=""),"",IF(AP10>AR10,"○",IF(AP10<AR10,"×",IF(AP10=AR10,"△")))) -> × | AP10: 0 | AQ10: － | AR10: 8 | AS10: =COUNTIF(E10:AR11,"○")+COUNTIF(E10:AR11,"×")+COUNTIF(E10:AR11,"△") -> 9 | AT10: =COUNTIF(E10:AR11,"○")*3+COUNTIF(E10:AR11,"△") -> 4 | AU10: =IF(AS10=0,0,AT10/(AS10*3)) -> 0.1481481481 | AV10: =SUM(F10,J10,N10,R10,V10,Z10,AD10,AH10,AL10,AP10)-SUM(H10,L10,P10,T10,X10,AB10,AF10,AJ10,AN10,AR10) -> -53 | AW10: =SUM(F10,J10,N10,R10,V10,Z10,AD10,AH10,AL10,AP10) -> 9 | AX10: =AU10+AV10*0.001+AW10*0.00001 -> 0.09523814815 | AY10: =RANK(AX10,$AX$4:$AX$23) -> 9 | AZ10: =RANK(AX10,$AX$4:$AX$85) -> 33
A11: =INDIRECT("U12組合せ!d"&(ROW()-1)/2+8) -> 岡西ＦＣ
A12: A05 | E12: =IF(OR(F12="",H12=""),"",IF(F12>H12,"○",IF(F12<H12,"×",IF(F12=H12,"△")))) -> × | F12: =IF(X4="","",X4) -> 0 | G12: － | H12: =IF(V4="","",V4) -> 2 | I12: =IF(OR(J12="",L12=""),"",IF(J12>L12,"○",IF(J12<L12,"×",IF(J12=L12,"△")))) -> × | J12: =IF(X6="","",X6) -> 1 | K12: － | L12: =IF(V6="","",V6) -> 6 | M12: =IF(OR(N12="",P12=""),"",IF(N12>P12,"○",IF(N12<P12,"×",IF(N12=P12,"△")))) -> ○ | N12: =IF(X8="","",X8) -> 5 | O12: － | P12: =IF(V8="","",V8) -> 0 | Q12: =IF(OR(R12="",T12=""),"",IF(R12>T12,"○",IF(R12<T12,"×",IF(R12=T12,"△")))) -> ○ | R12: =IF(X10="","",X10) -> 7 | S12: － | T12: =IF(V10="","",V10) -> 1 | Y12: =IF(OR(Z12="",AB12=""),"",IF(Z12>AB12,"○",IF(Z12<AB12,"×",IF(Z12=AB12,"△")))) -> × | Z12: 1 | AA12: - | AB12: 4 | AC12: =IF(OR(AD12="",AF12=""),"",IF(AD12>AF12,"○",IF(AD12<AF12,"×",IF(AD12=AF12,"△")))) -> ○ | AD12: 2 | AE12: － | AF12: 0 | AG12: =IF(OR(AH12="",AJ12=""),"",IF(AH12>AJ12,"○",IF(AH12<AJ12,"×",IF(AH12=AJ12,"△")))) -> ○ | AH12: 1 | AI12: － | AJ12: 0 | AK12: =IF(OR(AL12="",AN12=""),"",IF(AL12>AN12,"○",IF(AL12<AN12,"×",IF(AL12=AN12,"△")))) -> × | AL12: 0 | AM12: － | AN12: 3 | AO12: =IF(OR(AP12="",AR12=""),"",IF(AP12>AR12,"○",IF(AP12<AR12,"×",IF(AP12=AR12,"△")))) -> △ | AP12: 2 | AQ12: － | AR12: 2 | AS12: =COUNTIF(E12:AR13,"○")+COUNTIF(E12:AR13,"×")+COUNTIF(E12:AR13,"△") -> 9 | AT12: =COUNTIF(E12:AR13,"○")*3+COUNTIF(E12:AR13,"△") -> 13 | AU12: =IF(AS12=0,0,AT12/(AS12*3)) -> 0.4814814815 | AV12: =SUM(F12,J12,N12,R12,V12,Z12,AD12,AH12,AL12,AP12)-SUM(H12,L12,P12,T12,X12,AB12,AF12,AJ12,AN12,AR12) -> 1 | AW12: =SUM(F12,J12,N12,R12,V12,Z12,AD12,AH12,AL12,AP12) -> 19 | AX12: =AU12+AV12*0.001+AW12*0.00001 -> 0.4826714815 | AY12: =RANK(AX12,$AX$4:$AX$23) -> 6 | AZ12: =RANK(AX12,$AX$4:$AX$85) -> 20
A13: =INDIRECT("U12組合せ!d"&(ROW()-1)/2+8) -> ＦＣグランディール宇都宮
A14: A06 | E14: =IF(OR(F14="",H14=""),"",IF(F14>H14,"○",IF(F14<H14,"×",IF(F14=H14,"△")))) -> ○ | F14: =IF(AB4="","",AB4) -> 2 | G14: － | H14: =IF(Z4="","",Z4) -> 1 | I14: =IF(OR(J14="",L14=""),"",IF(J14>L14,"○",IF(J14<L14,"×",IF(J14=L14,"△")))) -> × | J14: =IF(AB6="","",AB6) -> 0 | K14: － | L14: =IF(Z6="","",Z6) -> 2 | M14: =IF(OR(N14="",P14=""),"",IF(N14>P14,"○",IF(N14<P14,"×",IF(N14=P14,"△")))) -> ○ | N14: =IF(AB8="","",AB8) -> 8 | O14: － | P14: =IF(Z8="","",Z8) -> 0 | Q14: =IF(OR(R14="",T14=""),"",IF(R14>T14,"○",IF(R14<T14,"×",IF(R14=T14,"△")))) -> ○ | R14: =IF(AB10="","",AB10) -> 8 | S14: － | T14: =IF(Z10="","",Z10) -> 0 | U14: =IF(OR(V14="",X14=""),"",IF(V14>X14,"○",IF(V14<X14,"×",IF(V14=X14,"△")))) -> ○ | V14: =IF(AB12="","",AB12) -> 4 | W14: － | X14: =IF(Z12="","",Z12) -> 1 | AC14: =IF(OR(AD14="",AF14=""),"",IF(AD14>AF14,"○",IF(AD14<AF14,"×",IF(AD14=AF14,"△")))) -> ○ | AD14: 4 | AE14: - | AF14: 1 | AG14: =IF(OR(AH14="",AJ14=""),"",IF(AH14>AJ14,"○",IF(AH14<AJ14,"×",IF(AH14=AJ14,"△")))) -> ○ | AH14: 4 | AI14: － | AJ14: 2 | AK14: =IF(OR(AL14="",AN14=""),"",IF(AL14>AN14,"○",IF(AL14<AN14,"×",IF(AL14=AN14,"△")))) -> × | AL14: 1 | AM14: － | AN14: 5 | AO14: =IF(OR(AP14="",AR14=""),"",IF(AP14>AR14,"○",IF(AP14<AR14,"×",IF(AP14=AR14,"△")))) -> × | AP14: 2 | AQ14: － | AR14: 5 | AS14: =COUNTIF(E14:AR15,"○")+COUNTIF(E14:AR15,"×")+COUNTIF(E14:AR15,"△") -> 9 | AT14: =COUNTIF(E14:AR15,"○")*3+COUNTIF(E14:AR15,"△") -> 18 | AU14: =IF(AS14=0,0,AT14/(AS14*3)) -> 0.6666666667 | AV14: =SUM(F14,J14,N14,R14,V14,Z14,AD14,AH14,AL14,AP14)-SUM(H14,L14,P14,T14,X14,AB14,AF14,AJ14,AN14,AR14) -> 16 | AW14: =SUM(F14,J14,N14,R14,V14,Z14,AD14,AH14,AL14,AP14) -> 33 | AX14: =AU14+AV14*0.001+AW14*0.00001 -> 0.6829966667 | AY14: =RANK(AX14,$AX$4:$AX$23) -> 4 | AZ14: =RANK(AX14,$AX$4:$AX$85) -> 12
A15: =INDIRECT("U12組合せ!d"&(ROW()-1)/2+8) -> ＦＣグラシアス
A16: A07 | E16: =IF(OR(F16="",H16=""),"",IF(F16>H16,"○",IF(F16<H16,"×",IF(F16=H16,"△")))) -> × | F16: =IF(AF4="","",AF4) -> 0 | G16: － | H16: =IF(AD4="","",AD4) -> 2 | I16: =IF(OR(J16="",L16=""),"",IF(J16>L16,"○",IF(J16<L16,"×",IF(J16=L16,"△")))) -> × | J16: =IF(AF6="","",AF6) -> 0 | K16: － | L16: =IF(AD6="","",AD6) -> 8 | M16: =IF(OR(N16="",P16=""),"",IF(N16>P16,"○",IF(N16<P16,"×",IF(N16=P16,"△")))) -> ○ | N16: =IF(AF8="","",AF8) -> 2 | O16: － | P16: =IF(AD8="","",AD8) -> 0 | Q16: =IF(OR(R16="",T16=""),"",IF(R16>T16,"○",IF(R16<T16,"×",IF(R16=T16,"△")))) -> △ | R16: =IF(AF10="","",AF10) -> 2 | S16: － | T16: =IF(AD10="","",AD10) -> 2 | U16: =IF(OR(V16="",X16=""),"",IF(V16>X16,"○",IF(V16<X16,"×",IF(V16=X16,"△")))) -> × | V16: =IF(AF12="","",AF12) -> 0 | W16: － | X16: =IF(AD12="","",AD12) -> 2 | Y16: =IF(OR(Z16="",AB16=""),"",IF(Z16>AB16,"○",IF(Z16<AB16,"×",IF(Z16=AB16,"△")))) -> × | Z16: =IF(AF14="","",AF14) -> 1 | AA16: － | AB16: =IF(AD14="","",AD14) -> 4 | AG16: =IF(OR(AH16="",AJ16=""),"",IF(AH16>AJ16,"○",IF(AH16<AJ16,"×",IF(AH16=AJ16,"△")))) -> × | AH16: 1 | AI16: - | AJ16: 3 | AK16: =IF(OR(AL16="",AN16=""),"",IF(AL16>AN16,"○",IF(AL16<AN16,"×",IF(AL16=AN16,"△")))) -> × | AL16: 0 | AM16: － | AN16: 5 | AO16: =IF(OR(AP16="",AR16=""),"",IF(AP16>AR16,"○",IF(AP16<AR16,"×",IF(AP16=AR16,"△")))) -> × | AP16: 1 | AQ16: － | AR16: 3 | AS16: =COUNTIF(E16:AR17,"○")+COUNTIF(E16:AR17,"×")+COUNTIF(E16:AR17,"△") -> 9 | AT16: =COUNTIF(E16:AR17,"○")*3+COUNTIF(E16:AR17,"△") -> 4 | AU16: =IF(AS16=0,0,AT16/(AS16*3)) -> 0.1481481481 | AV16: =SUM(F16,J16,N16,R16,V16,Z16,AD16,AH16,AL16,AP16)-SUM(H16,L16,P16,T16,X16,AB16,AF16,AJ16,AN16,AR16) -> -22 | AW16: =SUM(F16,J16,N16,R16,V16,Z16,AD16,AH16,AL16,AP16) -> 7 | AX16: =AU16+AV16*0.001+AW16*0.00001 -> 0.1262181481 | AY16: =RANK(AX16,$AX$4:$AX$23) -> 8 | AZ16: =RANK(AX16,$AX$4:$AX$85) -> 31
A17: =INDIRECT("U12組合せ!d"&(ROW()-1)/2+8) -> 岡本ＦＣ
A18: A08 | E18: =IF(OR(F18="",H18=""),"",IF(F18>H18,"○",IF(F18<H18,"×",IF(F18=H18,"△")))) -> × | F18: =IF(AJ4="","",AJ4) -> 2 | G18: － | H18: =IF(AH4="","",AH4) -> 4 | I18: =IF(OR(J18="",L18=""),"",IF(J18>L18,"○",IF(J18<L18,"×",IF(J18=L18,"△")))) -> × | J18: =IF(AJ6="","",AJ6) -> 0 | K18: － | L18: =IF(AH6="","",AH6) -> 10 | M18: =IF(OR(N18="",P18=""),"",IF(N18>P18,"○",IF(N18<P18,"×",IF(N18=P18,"△")))) -> ○ | N18: =IF(AJ8="","",AJ8) -> 3 | O18: － | P18: =IF(AH8="","",AH8) -> 0 | Q18: =IF(OR(R18="",T18=""),"",IF(R18>T18,"○",IF(R18<T18,"×",IF(R18=T18,"△")))) -> ○ | R18: =IF(AJ10="","",AJ10) -> 4 | S18: － | T18: =IF(AH10="","",AH10) -> 2 | U18: =IF(OR(V18="",X18=""),"",IF(V18>X18,"○",IF(V18<X18,"×",IF(V18=X18,"△")))) -> × | V18: =IF(AJ12="","",AJ12) -> 0 | W18: － | X18: =IF(AH12="","",AH12) -> 1 | Y18: =IF(OR(Z18="",AB18=""),"",IF(Z18>AB18,"○",IF(Z18<AB18,"×",IF(Z18=AB18,"△")))) -> × | Z18: =IF(AJ14="","",AJ14) -> 2 | AA18: － | AB18: =IF(AH14="","",AH14) -> 4 | AC18: =IF(OR(AD18="",AF18=""),"",IF(AD18>AF18,"○",IF(AD18<AF18,"×",IF(AD18=AF18,"△")))) -> ○ | AD18: =IF(AJ16="","",AJ16) -> 3 | AE18: － | AF18: =IF(AH16="","",AH16) -> 1 | AK18: =IF(OR(AL18="",AN18=""),"",IF(AL18>AN18,"○",IF(AL18<AN18,"×",IF(AL18=AN18,"△")))) -> × | AL18: 0 | AM18: - | AN18: 6 | AO18: =IF(OR(AP18="",AR18=""),"",IF(AP18>AR18,"○",IF(AP18<AR18,"×",IF(AP18=AR18,"△")))) -> × | AP18: 0 | AQ18: － | AR18: 4 | AS18: =COUNTIF(E18:AR19,"○")+COUNTIF(E18:AR19,"×")+COUNTIF(E18:AR19,"△") -> 9 | AT18: =COUNTIF(E18:AR19,"○")*3+COUNTIF(E18:AR19,"△") -> 9 | AU18: =IF(AS18=0,0,AT18/(AS18*3)) -> 0.3333333333 | AV18: =SUM(F18,J18,N18,R18,V18,Z18,AD18,AH18,AL18,AP18)-SUM(H18,L18,P18,T18,X18,AB18,AF18,AJ18,AN18,AR18) -> -18 | AW18: =SUM(F18,J18,N18,R18,V18,Z18,AD18,AH18,AL18,AP18) -> 14 | AX18: =AU18+AV18*0.001+AW18*0.00001 -> 0.3154733333 | AY18: =RANK(AX18,$AX$4:$AX$23) -> 7 | AZ18: =RANK(AX18,$AX$4:$AX$85) -> 25
A19: =INDIRECT("U12組合せ!d"&(ROW()-1)/2+8) -> シャルムグランツＳＣ
A20: A09 | E20: =IF(OR(F20="",H20=""),"",IF(F20>H20,"○",IF(F20<H20,"×",IF(F20=H20,"△")))) -> × | F20: =IF(AN4="","",AN4) -> 0 | G20: － | H20: =IF(AL4="","",AL4) -> 2 | I20: =IF(OR(J20="",L20=""),"",IF(J20>L20,"○",IF(J20<L20,"×",IF(J20=L20,"△")))) -> ○ | J20: =IF(AN6="","",AN6) -> 3 | K20: － | L20: =IF(AL6="","",AL6) -> 1 | M20: =IF(OR(N20="",P20=""),"",IF(N20>P20,"○",IF(N20<P20,"×",IF(N20=P20,"△")))) -> ○ | N20: =IF(AN8="","",AN8) -> 7 | O20: － | P20: =IF(AL8="","",AL8) -> 1 | Q20: =IF(OR(R20="",T20=""),"",IF(R20>T20,"○",IF(R20<T20,"×",IF(R20=T20,"△")))) -> ○ | R20: =IF(AN10="","",AN10) -> 9 | S20: － | T20: =IF(AL10="","",AL10) -> 0 | U20: =IF(OR(V20="",X20=""),"",IF(V20>X20,"○",IF(V20<X20,"×",IF(V20=X20,"△")))) -> ○ | V20: =IF(AN12="","",AN12) -> 3 | W20: － | X20: =IF(AL12="","",AL12) -> 0 | Y20: =IF(OR(Z20="",AB20=""),"",IF(Z20>AB20,"○",IF(Z20<AB20,"×",IF(Z20=AB20,"△")))) -> ○ | Z20: =IF(AN14="","",AN14) -> 5 | AA20: － | AB20: =IF(AL14="","",AL14) -> 1 | AC20: =IF(OR(AD20="",AF20=""),"",IF(AD20>AF20,"○",IF(AD20<AF20,"×",IF(AD20=AF20,"△")))) -> ○ | AD20: =IF(AN16="","",AN16) -> 5 | AE20: － | AF20: =IF(AL16="","",AL16) -> 0 | AG20: =IF(OR(AH20="",AJ20=""),"",IF(AH20>AJ20,"○",IF(AH20<AJ20,"×",IF(AH20=AJ20,"△")))) -> ○ | AH20: =IF(AN18="","",AN18) -> 6 | AI20: － | AJ20: =IF(AL18="","",AL18) -> 0 | AO20: =IF(OR(AP20="",AR20=""),"",IF(AP20>AR20,"○",IF(AP20<AR20,"×",IF(AP20=AR20,"△")))) -> ○ | AP20: 1 | AQ20: - | AR20: 0 | AS20: =COUNTIF(E20:AR21,"○")+COUNTIF(E20:AR21,"×")+COUNTIF(E20:AR21,"△") -> 9 | AT20: =COUNTIF(E20:AR21,"○")*3+COUNTIF(E20:AR21,"△") -> 24 | AU20: =IF(AS20=0,0,AT20/(AS20*3)) -> 0.8888888889 | AV20: =SUM(F20,J20,N20,R20,V20,Z20,AD20,AH20,AL20,AP20)-SUM(H20,L20,P20,T20,X20,AB20,AF20,AJ20,AN20,AR20) -> 34 | AW20: =SUM(F20,J20,N20,R20,V20,Z20,AD20,AH20,AL20,AP20) -> 39 | AX20: =AU20+AV20*0.001+AW20*0.00001 -> 0.9232788889 | AY20: =RANK(AX20,$AX$4:$AX$23) -> 1 | AZ20: =RANK(AX20,$AX$4:$AX$85) -> 3
A21: =INDIRECT("U12組合せ!d"&(ROW()-1)/2+8) -> カテット白沢ＳＳ
A22: A10 | E22: =IF(OR(F22="",H22=""),"",IF(F22>H22,"○",IF(F22<$H22,"×",IF(F22=H22,"△")))) -> × | F22: =IF(AR4="","",AR4) -> 0 | G22: － | H22: =IF(AP4="","",AP4) -> 1 | I22: =IF(OR(J22="",L22=""),"",IF(J22>L22,"○",IF(J22<L22,"×",IF(J22=L22,"△")))) -> × | J22: =IF(AR6="","",AR6) -> 0 | K22: － | L22: =IF(AP6="","",AP6) -> 3 | M22: =IF(OR(N22="",P22=""),"",IF(N22>P22,"○",IF(N22<P22,"×",IF(N22=P22,"△")))) -> ○ | N22: =IF(AR8="","",AR8) -> 5 | O22: － | P22: =IF(AP8="","",AP8) -> 0 | Q22: =IF(OR(R22="",T22=""),"",IF(R22>T22,"○",IF(R22<T22,"×",IF(R22=T22,"△")))) -> ○ | R22: =IF(AR10="","",AR10) -> 8 | S22: － | T22: =IF(AP10="","",AP10) -> 0 | U22: =IF(OR(V22="",X22=""),"",IF(V22>X22,"○",IF(V22<X22,"×",IF(V22=X22,"△")))) -> △ | V22: =IF(AR12="","",AR12) -> 2 | W22: － | X22: =IF(AP12="","",AP12) -> 2 | Y22: =IF(OR(Z22="",AB22=""),"",IF(Z22>AB22,"○",IF(Z22<AB22,"×",IF(Z22=AB22,"△")))) -> ○ | Z22: =IF(AR14="","",AR14) -> 5 | AA22: － | AB22: =IF(AP14="","",AP14) -> 2 | AC22: =IF(OR(AD22="",AF22=""),"",IF(AD22>AF22,"○",IF(AD22<AF22,"×",IF(AD22=AF22,"△")))) -> ○ | AD22: =IF(AR16="","",AR16) -> 3 | AE22: － | AF22: =IF(AP16="","",AP16) -> 1 | AG22: =IF(OR(AH22="",AJ22=""),"",IF(AH22>AJ22,"○",IF(AH22<AJ22,"×",IF(AH22=AJ22,"△")))) -> ○ | AH22: =IF(AR18="","",AR18) -> 4 | AI22: － | AJ22: =IF(AP18="","",AP18) -> 0 | AK22: =IF(OR(AL22="",AN22=""),"",IF(AL22>AN22,"○",IF(AL22<AN22,"×",IF(AL22=AN22,"△")))) -> × | AL22: =IF(AR20="","",AR20) -> 0 | AM22: － | AN22: =IF(AP20="","",AP20) -> 1 | AS22: =COUNTIF(E22:AR23,"○")+COUNTIF(E22:AR23,"×")+COUNTIF(E22:AR23,"△") -> 9 | AT22: =COUNTIF(E22:AR23,"○")*3+COUNTIF(E22:AR23,"△") -> 16 | AU22: =IF(AS22=0,0,AT22/(AS22*3)) -> 0.5925925926 | AV22: =SUM(F22,J22,N22,R22,V22,Z22,AD22,AH22,AL22,AP22)-SUM(H22,L22,P22,T22,X22,AB22,AF22,AJ22,AN22,AR22) -> 17 | AW22: =SUM(F22,J22,N22,R22,V22,Z22,AD22,AH22,AL22,AP22) -> 27 | AX22: =AU22+AV22*0.001+AW22*0.00001 -> 0.6098625926 | AY22: =RANK(AX22,$AX$4:$AX$23) -> 5 | AZ22: =RANK(AX22,$AX$4:$AX$85) -> 15
A23: =INDIRECT("U12組合せ!d"&(ROW()-1)/2+8) -> ＦＣアリーバ
A25: Ｂブロック | E25: =A27 -> 姿川第一ＦＣ | I25: =A29 -> 宝木キッカーズ | M25: =A31 -> ｕｎｉｏｎ ｓｃ | Q25: =A33 -> 河内ＳＣジュベニール | U25: =A35 -> 昭和・戸祭ＳＣ | Y25: =A37 -> サウス宇都宮ＳＣ | AC25: =A39 -> ＦＣ Ｒｉｓｏ | AG25: =A41 -> 富士見ＳＳＳ | AK25: =A43 -> 豊郷ＪＦＣ宇都宮 | AS25: 試合数 | AT25: 勝ち点 | AU25: 勝ち点率 | AV25: 得失差 | AW25: 得点 | AY25: ブロック 順位 | AZ25: 総合 順位
A26: B01 | I26: =IF(OR(J26="",L26=""),"",IF(J26>L26,"○",IF(J26<L26,"×",IF(J26=L26,"△")))) -> ○ | J26: 1 | K26: － | L26: 0 | M26: =IF(OR(N26="",P26=""),"",IF(N26>P26,"○",IF(N26<P26,"×",IF(N26=P26,"△")))) -> × | N26: 0 | O26: － | P26: 2 | Q26: =IF(OR(R26="",T26=""),"",IF(R26>T26,"○",IF(R26<T26,"×",IF(R26=T26,"△")))) -> ○ | R26: 3 | S26: － | T26: 0 | U26: =IF(OR(V26="",X26=""),"",IF(V26>X26,"○",IF(V26<X26,"×",IF(V26=X26,"△")))) -> △ | V26: 0 | W26: － | X26: 0 | Y26: =IF(OR(Z26="",AB26=""),"",IF(Z26>AB26,"○",IF(Z26<AB26,"×",IF(Z26=AB26,"△")))) -> × | Z26: 1 | AA26: － | AB26: 2 | AC26: =IF(OR(AD26="",AF26=""),"",IF(AD26>AF26,"○",IF(AD26<AF26,"×",IF(AD26=AF26,"△")))) -> × | AD26: 0 | AE26: － | AF26: 2 | AG26: =IF(OR(AH26="",AJ26=""),"",IF(AH26>AJ26,"○",IF(AH26<AJ26,"×",IF(AH26=AJ26,"△")))) -> × | AH26: 0 | AI26: － | AJ26: 1 | AK26: =IF(OR(AL26="",AN26=""),"",IF(AL26>AN26,"○",IF(AL26<AN26,"×",IF(AL26=AN26,"△")))) -> × | AL26: 0 | AM26: － | AN26: 5 | AS26: =COUNTIF(E26:AN27,"○")+COUNTIF(E26:AN27,"×")+COUNTIF(E26:AN27,"△") -> 8 | AT26: =COUNTIF(E26:AN27,"○")*3+COUNTIF(E26:AN27,"△") -> 7 | AU26: =IF(AS26=0,0,AT26/(AS26*3)) -> 0.2916666667 | AV26: =SUM(F26,J26,N26,R26,V26,Z26,AD26,AH26,AL26,AP26)-SUM(H26,L26,P26,T26,X26,AB26,AF26,AJ26,AN26,AR26) -> -7 | AW26: =SUM(F26,J26,N26,R26,V26,Z26,AD26,AH26,AL26,AP26) -> 5 | AX26: =AU26+AV26*0.001+AW26*0.00001 -> 0.2847166667 | AY26: =RANK(AX26,$AX$26:$AX$43) -> 7 | AZ26: =RANK(AX26,$AX$4:$AX$85) -> 26
A27: =INDIRECT("U12組合せ!f"&(ROW()-1)/2-3) -> 姿川第一ＦＣ
A28: B02 | E28: =IF(OR(F28="",H28=""),"",IF(F28>H28,"○",IF(F28<H28,"×",IF(F28=H28,"△")))) -> × | F28: =IF(L26="","",L26) -> 0 | G28: － | H28: =IF(J26="","",J26) -> 1 | M28: =IF(OR(N28="",P28=""),"",IF(N28>P28,"○",IF(N28<P28,"×",IF(N28=P28,"△")))) -> × | N28: 2 | O28: － | P28: 4 | Q28: =IF(OR(R28="",T28=""),"",IF(R28>T28,"○",IF(R28<T28,"×",IF(R28=T28,"△")))) -> ○ | R28: 1 | S28: － | T28: 0 | U28: =IF(OR(V28="",X28=""),"",IF(V28>X28,"○",IF(V28<X28,"×",IF(V28=X28,"△")))) -> △ | V28: 1 | W28: － | X28: 1 | Y28: =IF(OR(Z28="",AB28=""),"",IF(Z28>AB28,"○",IF(Z28<AB28,"×",IF(Z28=AB28,"△")))) -> ○ | Z28: 3 | AA28: － | AB28: 2 | AC28: =IF(OR(AD28="",AF28=""),"",IF(AD28>AF28,"○",IF(AD28<AF28,"×",IF(AD28=AF28,"△")))) -> × | AD28: 0 | AE28: － | AF28: 4 | AG28: =IF(OR(AH28="",AJ28=""),"",IF(AH28>AJ28,"○",IF(AH28<AJ28,"×",IF(AH28=AJ28,"△")))) -> ○ | AH28: 2 | AI28: － | AJ28: 0 | AK28: =IF(OR(AL28="",AN28=""),"",IF(AL28>AN28,"○",IF(AL28<AN28,"×",IF(AL28=AN28,"△")))) -> × | AL28: 1 | AM28: － | AN28: 9 | AS28: =COUNTIF(E28:AN29,"○")+COUNTIF(E28:AN29,"×")+COUNTIF(E28:AN29,"△") -> 8 | AT28: =COUNTIF(E28:AN29,"○")*3+COUNTIF(E28:AN29,"△") -> 10 | AU28: =IF(AS28=0,0,AT28/(AS28*3)) -> 0.4166666667 | AV28: =SUM(F26,J26,N26,R26,V26,Z26,AD26,AH26,AL26,AP26)-SUM(H26,L26,P26,T26,X26,AB26,AF26,AJ26,AN26,AR26) -> -7 | AW28: =SUM(F28,J28,N28,R28,V28,Z28,AD28,AH28,AL28,AP28) -> 10 | AX28: =AU28+AV28*0.001+AW28*0.00001 -> 0.4097666667 | AY28: =RANK(AX28,$AX$26:$AX$43) -> 6 | AZ28: =RANK(AX28,$AX$4:$AX$85) -> 24
A29: =INDIRECT("U12組合せ!f"&(ROW()-1)/2-3) -> 宝木キッカーズ
A30: B03 | E30: =IF(OR(F30="",H30=""),"",IF(F30>H30,"○",IF(F30<H30,"×",IF(F30=H30,"△")))) -> ○ | F30: =IF(P26="","",P26) -> 2 | G30: － | H30: =IF(N26="","",N26) -> 0 | I30: =IF(OR(J30="",L30=""),"",IF(J30>L30,"○",IF(J30<L30,"×",IF(J30=L30,"△")))) -> ○ | J30: =IF(P28="","",P28) -> 4 | K30: － | L30: =IF(N28="","",N28) -> 2 | Q30: =IF(OR(R30="",T30=""),"",IF(R30>T30,"○",IF(R30<T30,"×",IF(R30=T30,"△")))) -> ○ | R30: 3 | S30: － | T30: 1 | U30: =IF(OR(V30="",X30=""),"",IF(V30>X30,"○",IF(V30<X30,"×",IF(V30=X30,"△")))) -> × | V30: 1 | W30: － | X30: 2 | Y30: =IF(OR(Z30="",AB30=""),"",IF(Z30>AB30,"○",IF(Z30<AB30,"×",IF(Z30=AB30,"△")))) -> ○ | Z30: 2 | AA30: － | AB30: 0 | AC30: =IF(OR(AD30="",AF30=""),"",IF(AD30>AF30,"○",IF(AD30<AF30,"×",IF(AD30=AF30,"△")))) -> × | AD30: 0 | AE30: － | AF30: 3 | AG30: =IF(OR(AH30="",AJ30=""),"",IF(AH30>AJ30,"○",IF(AH30<AJ30,"×",IF(AH30=AJ30,"△")))) -> ○ | AH30: 4 | AI30: － | AJ30: 0 | AK30: =IF(OR(AL30="",AN30=""),"",IF(AL30>AN30,"○",IF(AL30<AN30,"×",IF(AL30=AN30,"△")))) -> × | AL30: 0 | AM30: － | AN30: 2 | AS30: =COUNTIF(E30:AN31,"○")+COUNTIF(E30:AN31,"×")+COUNTIF(E30:AN31,"△") -> 8 | AT30: =COUNTIF(E30:AN31,"○")*3+COUNTIF(E30:AN31,"△") -> 15 | AU30: =IF(AS30=0,0,AT30/(AS30*3)) -> 0.625 | AV30: =SUM(F30,J30,N30,R30,V30,Z30,AD30,AH30,AL30,AP30)-SUM(H30,L30,P30,T30,X30,AB30,AF30,AJ30,AN30,AR30) -> 6 | AW30: =SUM(F30,J30,N30,R30,V30,Z30,AD30,AH30,AL30,AP30) -> 16 | AX30: =AU30+AV30*0.001+AW30*0.00001 -> 0.63116 | AY30: =RANK(AX30,$AX$26:$AX$43) -> 3 | AZ30: =RANK(AX30,$AX$4:$AX$85) -> 14
A31: =INDIRECT("U12組合せ!f"&(ROW()-1)/2-3) -> ｕｎｉｏｎ ｓｃ
A32: B04 | E32: =IF(OR(F32="",H32=""),"",IF(F32>H32,"○",IF(F32<H32,"×",IF(F32=H32,"△")))) -> × | F32: =IF(T26="","",T26) -> 0 | G32: － | H32: =IF(R26="","",R26) -> 3 | I32: =IF(OR(J32="",L32=""),"",IF(J32>L32,"○",IF(J32<L32,"×",IF(J32=L32,"△")))) -> × | J32: =IF(T28="","",T28) -> 0 | K32: － | L32: =IF(R28="","",R28) -> 1 | M32: =IF(OR(N32="",P32=""),"",IF(N32>P32,"○",IF(N32<P32,"×",IF(N32=P32,"△")))) -> × | N32: =IF(T30="","",T30) -> 1 | O32: － | P32: =IF(R30="","",R30) -> 3 | U32: =IF(OR(V32="",X32=""),"",IF(V32>X32,"○",IF(V32<X32,"×",IF(V32=X32,"△")))) -> × | V32: 0 | W32: － | X32: 2 | Y32: =IF(OR(Z32="",AB32=""),"",IF(Z32>AB32,"○",IF(Z32<AB32,"×",IF(Z32=AB32,"△")))) -> × | Z32: 0 | AA32: － | AB32: 5 | AC32: =IF(OR(AD32="",AF32=""),"",IF(AD32>AF32,"○",IF(AD32<AF32,"×",IF(AD32=AF32,"△")))) -> × | AD32: 0 | AE32: － | AF32: 1 | AG32: =IF(OR(AH32="",AJ32=""),"",IF(AH32>AJ32,"○",IF(AH32<AJ32,"×",IF(AH32=AJ32,"△")))) -> △ | AH32: 0 | AI32: － | AJ32: 0 | AK32: =IF(OR(AL32="",AN32=""),"",IF(AL32>AN32,"○",IF(AL32<AN32,"×",IF(AL32=AN32,"△")))) -> × | AL32: 0 | AM32: － | AN32: 4 | AS32: =COUNTIF(E32:AN33,"○")+COUNTIF(E32:AN33,"×")+COUNTIF(E32:AN33,"△") -> 8 | AT32: =COUNTIF(E32:AN33,"○")*3+COUNTIF(E32:AN33,"△") -> 1 | AU32: =IF(AS32=0,0,AT32/(AS32*3)) -> 0.04166666667 | AV32: =SUM(F32,J32,N32,R32,V32,Z32,AD32,AH32,AL32,AP32)-SUM(H32,L32,P32,T32,X32,AB32,AF32,AJ32,AN32,AR32) -> -18 | AW32: =SUM(F32,J32,N32,R32,V32,Z32,AD32,AH32,AL32,AP32) -> 1 | AX32: =AU32+AV32*0.001+AW32*0.00001 -> 0.02367666667 | AY32: =RANK(AX32,$AX$26:$AX$43) -> 9 | AZ32: =RANK(AX32,$AX$4:$AX$85) -> 34
A33: =INDIRECT("U12組合せ!f"&(ROW()-1)/2-3) -> 河内ＳＣジュベニール
A34: B05 | E34: =IF(OR(F34="",H34=""),"",IF(F34>H34,"○",IF(F34<H34,"×",IF(F34=H34,"△")))) -> △ | F34: =IF(X26="","",X26) -> 0 | G34: － | H34: =IF(V26="","",V26) -> 0 | I34: =IF(OR(J34="",L34=""),"",IF(J34>L34,"○",IF(J34<L34,"×",IF(J34=L34,"△")))) -> △ | J34: =IF(X28="","",X28) -> 1 | K34: － | L34: =IF(V28="","",V28) -> 1 | M34: =IF(OR(N34="",P34=""),"",IF(N34>P34,"○",IF(N34<P34,"×",IF(N34=P34,"△")))) -> ○ | N34: =IF(X30="","",X30) -> 2 | O34: － | P34: =IF(V30="","",V30) -> 1 | Q34: =IF(OR(R34="",T34=""),"",IF(R34>T34,"○",IF(R34<T34,"×",IF(R34=T34,"△")))) -> ○ | R34: =IF(X32="","",X32) -> 2 | S34: － | T34: =IF(V32="","",V32) -> 0 | Y34: =IF(OR(Z34="",AB34=""),"",IF(Z34>AB34,"○",IF(Z34<AB34,"×",IF(Z34=AB34,"△")))) -> ○ | Z34: 1 | AA34: － | AB34: 0 | AC34: =IF(OR(AD34="",AF34=""),"",IF(AD34>AF34,"○",IF(AD34<AF34,"×",IF(AD34=AF34,"△")))) -> × | AD34: 0 | AE34: － | AF34: 3 | AG34: =IF(OR(AH34="",AJ34=""),"",IF(AH34>AJ34,"○",IF(AH34<AJ34,"×",IF(AH34=AJ34,"△")))) -> ○ | AH34: 5 | AI34: － | AJ34: 1 | AK34: =IF(OR(AL34="",AN34=""),"",IF(AL34>AN34,"○",IF(AL34<AN34,"×",IF(AL34=AN34,"△")))) -> × | AL34: 0 | AM34: － | AN34: 4 | AS34: =COUNTIF(E34:AN35,"○")+COUNTIF(E34:AN35,"×")+COUNTIF(E34:AN35,"△") -> 8 | AT34: =COUNTIF(E34:AN35,"○")*3+COUNTIF(E34:AN35,"△") -> 14 | AU34: =IF(AS34=0,0,AT34/(AS34*3)) -> 0.5833333333 | AV34: =SUM(F34,J34,N34,R34,V34,Z34,AD34,AH34,AL34,AP34)-SUM(H34,L34,P34,T34,X34,AB34,AF34,AJ34,AN34,AR34) -> 1 | AW34: =SUM(F34,J34,N34,R34,V34,Z34,AD34,AH34,AL34,AP34) -> 11 | AX34: =AU34+AV34*0.001+AW34*0.00001 -> 0.5844433333 | AY34: =RANK(AX34,$AX$26:$AX$43) -> 4 | AZ34: =RANK(AX34,$AX$4:$AX$85) -> 16
A35: =INDIRECT("U12組合せ!f"&(ROW()-1)/2-3) -> 昭和・戸祭ＳＣ
A36: B06 | E36: =IF(OR(F36="",H36=""),"",IF(F36>H36,"○",IF(F36<H36,"×",IF(F36=H36,"△")))) -> ○ | F36: =IF(AB26="","",AB26) -> 2 | G36: － | H36: =IF(Z26="","",Z26) -> 1 | I36: =IF(OR(J36="",L36=""),"",IF(J36>L36,"○",IF(J36<L36,"×",IF(J36=L36,"△")))) -> × | J36: =IF(AB28="","",AB28) -> 2 | K36: － | L36: =IF(Z28="","",Z28) -> 3 | M36: =IF(OR(N36="",P36=""),"",IF(N36>P36,"○",IF(N36<P36,"×",IF(N36=P36,"△")))) -> × | N36: =IF(AB30="","",AB30) -> 0 | O36: － | P36: =IF(Z30="","",Z30) -> 2 | Q36: =IF(OR(R36="",T36=""),"",IF(R36>T36,"○",IF(R36<T36,"×",IF(R36=T36,"△")))) -> ○ | R36: =IF(AB32="","",AB32) -> 5 | S36: － | T36: =IF(Z32="","",Z32) -> 0 | U36: =IF(OR(V36="",X36=""),"",IF(V36>X36,"○",IF(V36<X36,"×",IF(V36=X36,"△")))) -> × | V36: =IF(AB34="","",AB34) -> 0 | W36: － | X36: =IF(Z34="","",Z34) -> 1 | AC36: =IF(OR(AD36="",AF36=""),"",IF(AD36>AF36,"○",IF(AD36<AF36,"×",IF(AD36=AF36,"△")))) -> × | AD36: 0 | AE36: － | AF36: 3 | AG36: =IF(OR(AH36="",AJ36=""),"",IF(AH36>AJ36,"○",IF(AH36<AJ36,"×",IF(AH36=AJ36,"△")))) -> ○ | AH36: 3 | AI36: － | AJ36: 1 | AK36: =IF(OR(AL36="",AN36=""),"",IF(AL36>AN36,"○",IF(AL36<AN36,"×",IF(AL36=AN36,"△")))) -> △ | AL36: 0 | AM36: － | AN36: 0 | AS36: =COUNTIF(E36:AN37,"○")+COUNTIF(E36:AN37,"×")+COUNTIF(E36:AN37,"△") -> 8 | AT36: =COUNTIF(E36:AN37,"○")*3+COUNTIF(E36:AN37,"△") -> 10 | AU36: =IF(AS36=0,0,AT36/(AS36*3)) -> 0.4166666667 | AV36: =SUM(F36,J36,N36,R36,V36,Z36,AD36,AH36,AL36,AP36)-SUM(H36,L36,P36,T36,X36,AB36,AF36,AJ36,AN36,AR36) -> 1 | AW36: =SUM(F36,J36,N36,R36,V36,Z36,AD36,AH36,AL36,AP36) -> 12 | AX36: =AU36+AV36*0.001+AW36*0.00001 -> 0.4177866667 | AY36: =RANK(AX36,$AX$26:$AX$43) -> 5 | AZ36: =RANK(AX36,$AX$4:$AX$85) -> 21
A37: =INDIRECT("U12組合せ!f"&(ROW()-1)/2-3) -> サウス宇都宮ＳＣ
A38: B07 | E38: =IF(OR(F38="",H38=""),"",IF(F38>H38,"○",IF(F38<H38,"×",IF(F38=H38,"△")))) -> ○ | F38: =IF(AF26="","",AF26) -> 2 | G38: － | H38: =IF(AD26="","",AD26) -> 0 | I38: =IF(OR(J38="",L38=""),"",IF(J38>L38,"○",IF(J38<L38,"×",IF(J38=L38,"△")))) -> ○ | J38: =IF(AF28="","",AF28) -> 4 | K38: － | L38: =IF(AD28="","",AD28) -> 0 | M38: =IF(OR(N38="",P38=""),"",IF(N38>P38,"○",IF(N38<P38,"×",IF(N38=P38,"△")))) -> ○ | N38: =IF(AF30="","",AF30) -> 3 | O38: － | P38: =IF(AD30="","",AD30) -> 0 | Q38: =IF(OR(R38="",T38=""),"",IF(R38>T38,"○",IF(R38<T38,"×",IF(R38=T38,"△")))) -> ○ | R38: =IF(AF32="","",AF32) -> 1 | S38: － | T38: =IF(AD32="","",AD32) -> 0 | U38: =IF(OR(V38="",X38=""),"",IF(V38>X38,"○",IF(V38<X38,"×",IF(V38=X38,"△")))) -> ○ | V38: =IF(AF34="","",AF34) -> 3 | W38: － | X38: =IF(AD34="","",AD34) -> 0 | Y38: =IF(OR(Z38="",AB38=""),"",IF(Z38>AB38,"○",IF(Z38<AB38,"×",IF(Z38=AB38,"△")))) -> ○ | Z38: =IF(AF36="","",AF36) -> 3 | AA38: － | AB38: =IF(AD36="","",AD36) -> 0 | AG38: =IF(OR(AH38="",AJ38=""),"",IF(AH38>AJ38,"○",IF(AH38<AJ38,"×",IF(AH38=AJ38,"△")))) -> ○ | AH38: 6 | AI38: － | AJ38: 0 | AK38: =IF(OR(AL38="",AN38=""),"",IF(AL38>AN38,"○",IF(AL38<AN38,"×",IF(AL38=AN38,"△")))) -> × | AL38: 0 | AM38: － | AN38: 2 | AS38: =COUNTIF(E38:AN39,"○")+COUNTIF(E38:AN39,"×")+COUNTIF(E38:AN39,"△") -> 8 | AT38: =COUNTIF(E38:AN39,"○")*3+COUNTIF(E38:AN39,"△") -> 21 | AU38: =IF(AS38=0,0,AT38/(AS38*3)) -> 0.875 | AV38: =SUM(F38,J38,N38,R38,V38,Z38,AD38,AH38,AL38,AP38)-SUM(H38,L38,P38,T38,X38,AB38,AF38,AJ38,AN38,AR38) -> 20 | AW38: =SUM(F38,J38,N38,R38,V38,Z38,AD38,AH38,AL38,AP38) -> 22 | AX38: =AU38+AV38*0.001+AW38*0.00001 -> 0.89522 | AY38: =RANK(AX38,$AX$26:$AX$43) -> 2 | AZ38: =RANK(AX38,$AX$4:$AX$85) -> 4
A39: =INDIRECT("U12組合せ!f"&(ROW()-1)/2-3) -> ＦＣ Ｒｉｓｏ
A40: B08 | E40: =IF(OR(F40="",H40=""),"",IF(F40>H40,"○",IF(F40<H40,"×",IF(F40=H40,"△")))) -> ○ | F40: =IF(AJ26="","",AJ26) -> 1 | G40: － | H40: =IF(AH26="","",AH26) -> 0 | I40: =IF(OR(J40="",L40=""),"",IF(J40>L40,"○",IF(J40<L40,"×",IF(J40=L40,"△")))) -> × | J40: =IF(AJ28="","",AJ28) -> 0 | K40: － | L40: =IF(AH28="","",AH28) -> 2 | M40: =IF(OR(N40="",P40=""),"",IF(N40>P40,"○",IF(N40<P40,"×",IF(N40=P40,"△")))) -> × | N40: =IF(AJ30="","",AJ30) -> 0 | O40: － | P40: =IF(AH30="","",AH30) -> 4 | Q40: =IF(OR(R40="",T40=""),"",IF(R40>T40,"○",IF(R40<T40,"×",IF(R40=T40,"△")))) -> △ | R40: =IF(AJ32="","",AJ32) -> 0 | S40: － | T40: =IF(AH32="","",AH32) -> 0 | U40: =IF(OR(V40="",X40=""),"",IF(V40>X40,"○",IF(V40<X40,"×",IF(V40=X40,"△")))) -> × | V40: =IF(AJ34="","",AJ34) -> 1 | W40: － | X40: =IF(AH34="","",AH34) -> 5 | Y40: =IF(OR(Z40="",AB40=""),"",IF(Z40>AB40,"○",IF(Z40<AB40,"×",IF(Z40=AB40,"△")))) -> × | Z40: =IF(AJ36="","",AJ36) -> 1 | AA40: － | AB40: =IF(AH36="","",AH36) -> 3 | AC40: =IF(OR(AD40="",AF40=""),"",IF(AD40>AF40,"○",IF(AD40<AF40,"×",IF(AD40=AF40,"△")))) -> × | AD40: =IF(AJ38="","",AJ38) -> 0 | AE40: － | AF40: =IF(AH38="","",AH38) -> 6 | AK40: =IF(OR(AL40="",AN40=""),"",IF(AL40>AN40,"○",IF(AL40<AN40,"×",IF(AL40=AN40,"△")))) -> × | AL40: 0 | AM40: － | AN40: 5 | AS40: =COUNTIF(E40:AN41,"○")+COUNTIF(E40:AN41,"×")+COUNTIF(E40:AN41,"△") -> 8 | AT40: =COUNTIF(E40:AN41,"○")*3+COUNTIF(E40:AN41,"△") -> 4 | AU40: =IF(AS40=0,0,AT40/(AS40*3)) -> 0.1666666667 | AV40: =SUM(F40,J40,N40,R40,V40,Z40,AD40,AH40,AL40,AP40)-SUM(H40,L40,P40,T40,X40,AB40,AF40,AJ40,AN40,AR40) -> -22 | AW40: =SUM(F40,J40,N40,R40,V40,Z40,AD40,AH40,AL40,AP40) -> 3 | AX40: =AU40+AV40*0.001+AW40*0.00001 -> 0.1446966667 | AY40: =RANK(AX40,$AX$26:$AX$43) -> 8 | AZ40: =RANK(AX40,$AX$4:$AX$85) -> 30
A41: =INDIRECT("U12組合せ!f"&(ROW()-1)/2-3) -> 富士見ＳＳＳ
A42: B09 | E42: =IF(OR(F42="",H42=""),"",IF(F42>H42,"○",IF(F42<H42,"×",IF(F42=H42,"△")))) -> ○ | F42: =IF(AN26="","",AN26) -> 5 | G42: － | H42: =IF(AL26="","",AL26) -> 0 | I42: =IF(OR(J42="",L42=""),"",IF(J42>L42,"○",IF(J42<L42,"×",IF(J42=L42,"△")))) -> ○ | J42: =IF(AN28="","",AN28) -> 9 | K42: － | L42: =IF(AL28="","",AL28) -> 1 | M42: =IF(OR(N42="",P42=""),"",IF(N42>P42,"○",IF(N42<P42,"×",IF(N42=P42,"△")))) -> ○ | N42: =IF(AN30="","",AN30) -> 2 | O42: － | P42: =IF(AL30="","",AL30) -> 0 | Q42: =IF(OR(R42="",T42=""),"",IF(R42>T42,"○",IF(R42<T42,"×",IF(R42=T42,"△")))) -> ○ | R42: =IF(AN32="","",AN32) -> 4 | S42: － | T42: =IF(AL32="","",AL32) -> 0 | U42: =IF(OR(V42="",X42=""),"",IF(V42>X42,"○",IF(V42<X42,"×",IF(V42=X42,"△")))) -> ○ | V42: =IF(AN34="","",AN34) -> 4 | W42: － | X42: =IF(AL34="","",AL34) -> 0 | Y42: =IF(OR(Z42="",AB42=""),"",IF(Z42>AB42,"○",IF(Z42<AB42,"×",IF(Z42=AB42,"△")))) -> △ | Z42: =IF(AN36="","",AN36) -> 0 | AA42: － | AB42: =IF(AL36="","",AL36) -> 0 | AC42: =IF(OR(AD42="",AF42=""),"",IF(AD42>AF42,"○",IF(AD42<AF42,"×",IF(AD42=AF42,"△")))) -> ○ | AD42: =IF(AN38="","",AN38) -> 2 | AE42: － | AF42: =IF(AL38="","",AL38) -> 0 | AG42: =IF(OR(AH42="",AJ42=""),"",IF(AH42>AJ42,"○",IF(AH42<AJ42,"×",IF(AH42=AJ42,"△")))) -> ○ | AH42: =IF(AN40="","",AN40) -> 5 | AI42: － | AJ42: =IF(AL40="","",AL40) -> 0 | AS42: =COUNTIF(E42:AN43,"○")+COUNTIF(E42:AN43,"×")+COUNTIF(E42:AN43,"△") -> 8 | AT42: =COUNTIF(E42:AN43,"○")*3+COUNTIF(E42:AN43,"△") -> 22 | AU42: =IF(AS42=0,0,AT42/(AS42*3)) -> 0.9166666667 | AV42: =SUM(F42,J42,N42,R42,V42,Z42,AD42,AH42,AL42,AP42)-SUM(H42,L42,P42,T42,X42,AB42,AF42,AJ42,AN42,AR42) -> 30 | AW42: =SUM(F42,J42,N42,R42,V42,Z42,AD42,AH42,AL42,AP42) -> 31 | AX42: =AU42+AV42*0.001+AW42*0.00001 -> 0.9469766667 | AY42: =RANK(AX42,$AX$26:$AX$43) -> 1 | AZ42: =RANK(AX42,$AX$4:$AX$85) -> 2
A43: =INDIRECT("U12組合せ!f"&(ROW()-1)/2-3) -> 豊郷ＪＦＣ宇都宮
A45: =A1 -> ＪＦＡ U-12サッカーリーグ2018（in栃木） 宇河地域リーグ戦（後期） 星取表
A47: Ｃブロック | E47: =A49 -> 清原ＳＳＳ | I47: =A51 -> ＦＣみらい Ｐ | M47: =A53 -> 雀宮ＦＣ | Q47: =A55 -> ＳＵＧＡＯ ＳＣ | U47: =A57 -> Ｓ４スペランツァ | Y47: =A59 -> 宇都宮北部ＦＣトレ | AC47: =A61 -> 上三川ＦＣ | AG47: =A63 -> クラブチェルビアット | AK47: =A65 -> ＦＣブロケード | AS47: 試合数 | AT47: 勝ち点 | AU47: 勝ち点率 | AV47: 得失差 | AW47: 得点 | AY47: ブロック 順位 | AZ47: 総合 順位
A48: C01 | I48: =IF(OR(J48="",L48=""),"",IF(J48>L48,"○",IF(J48<L48,"×",IF(J48=L48,"△")))) -> ○ | J48: 2 | K48: － | L48: 1 | M48: =IF(OR(N48="",P48=""),"",IF(N48>P48,"○",IF(N48<P48,"×",IF(N48=P48,"△")))) -> ○ | N48: 1 | O48: － | P48: 0 | Q48: =IF(OR(R48="",T48=""),"",IF(R48>T48,"○",IF(R48<T48,"×",IF(R48=T48,"△")))) -> ○ | R48: 2 | S48: － | T48: 1 | U48: =IF(OR(V48="",X48=""),"",IF(V48>X48,"○",IF(V48<X48,"×",IF(V48=X48,"△")))) -> △ | V48: 4 | W48: － | X48: 4 | Y48: =IF(OR(Z48="",AB48=""),"",IF(Z48>AB48,"○",IF(Z48<AB48,"×",IF(Z48=AB48,"△")))) -> ○ | Z48: 3 | AA48: － | AB48: 0 | AC48: =IF(OR(AD48="",AF48=""),"",IF(AD48>AF48,"○",IF(AD48<AF48,"×",IF(AD48=AF48,"△")))) -> ○ | AD48: 6 | AE48: － | AF48: 2 | AG48: =IF(OR(AH48="",AJ48=""),"",IF(AH48>AJ48,"○",IF(AH48<AJ48,"×",IF(AH48=AJ48,"△")))) -> △ | AH48: 2 | AI48: － | AJ48: 2 | AK48: =IF(OR(AL48="",AN48=""),"",IF(AL48>AN48,"○",IF(AL48<AN48,"×",IF(AL48=AN48,"△")))) -> ○ | AL48: 9 | AM48: － | AN48: 0 | AS48: =COUNTIF(E48:AN49,"○")+COUNTIF(E48:AN49,"×")+COUNTIF(E48:AN49,"△") -> 8 | AT48: =COUNTIF(E48:AN49,"○")*3+COUNTIF(E48:AN49,"△") -> 20 | AU48: =IF(AS48=0,0,AT48/(AS48*3)) -> 0.8333333333 | AV48: =SUM(F48,J48,N48,R48,V48,Z48,AD48,AH48,AL48,AP48)-SUM(H48,L48,P48,T48,X48,AB48,AF48,AJ48,AN48,AR48) -> 19 | AW48: =SUM(F48,J48,N48,R48,V48,Z48,AD48,AH48,AL48,AP48) -> 29 | AX48: =AU48+AV48*0.001+AW48*0.00001 -> 0.8526233333 | AY48: =RANK(AX48,$AX$48:$AX$65) -> 2 | AZ48: =RANK(AX48,$AX$4:$AX$85) -> 6
A49: =INDIRECT("U12組合せ!h"&(ROW()-1)/2-14) -> 清原ＳＳＳ
A50: C02 | E50: =IF(OR(F50="",H50=""),"",IF(F50>H50,"○",IF(F50<H50,"×",IF(F50=H50,"△")))) -> × | F50: =IF(L48="","",L48) -> 1 | G50: － | H50: =IF(J48="","",J48) -> 2 | M50: =IF(OR(N50="",P50=""),"",IF(N50>P50,"○",IF(N50<P50,"×",IF(N50=P50,"△")))) -> ○ | N50: 2 | O50: － | P50: 1 | Q50: =IF(OR(R50="",T50=""),"",IF(R50>T50,"○",IF(R50<T50,"×",IF(R50=T50,"△")))) -> ○ | R50: 2 | S50: － | T50: 1 | U50: =IF(OR(V50="",X50=""),"",IF(V50>X50,"○",IF(V50<X50,"×",IF(V50=X50,"△")))) -> ○ | V50: 3 | W50: － | X50: 0 | Y50: =IF(OR(Z50="",AB50=""),"",IF(Z50>AB50,"○",IF(Z50<AB50,"×",IF(Z50=AB50,"△")))) -> ○ | Z50: 5 | AA50: － | AB50: 1 | AC50: =IF(OR(AD50="",AF50=""),"",IF(AD50>AF50,"○",IF(AD50<AF50,"×",IF(AD50=AF50,"△")))) -> ○ | AD50: 5 | AE50: － | AF50: 0 | AG50: =IF(OR(AH50="",AJ50=""),"",IF(AH50>AJ50,"○",IF(AH50<AJ50,"×",IF(AH50=AJ50,"△")))) -> × | AH50: 1 | AI50: － | AJ50: 3 | AK50: =IF(OR(AL50="",AN50=""),"",IF(AL50>AN50,"○",IF(AL50<AN50,"×",IF(AL50=AN50,"△")))) -> ○ | AL50: 9 | AM50: － | AN50: 0 | AS50: =COUNTIF(E50:AN51,"○")+COUNTIF(E50:AN51,"×")+COUNTIF(E50:AN51,"△") -> 8 | AT50: =COUNTIF(E50:AN51,"○")*3+COUNTIF(E50:AN51,"△") -> 18 | AU50: =IF(AS50=0,0,AT50/(AS50*3)) -> 0.75 | AV50: =SUM(F50,J50,N50,R50,V50,Z50,AD50,AH50,AL50,AP50)-SUM(H50,L50,P50,T50,X50,AB50,AF50,AJ50,AN50,AR50) -> 20 | AW50: =SUM(F50,J50,N50,R50,V50,Z50,AD50,AH50,AL50,AP50) -> 28 | AX50: =AU50+AV50*0.001+AW50*0.00001 -> 0.77028 | AY50: =RANK(AX50,$AX$48:$AX$65) -> 3 | AZ50: =RANK(AX50,$AX$4:$AX$85) -> 11
A51: =INDIRECT("U12組合せ!h"&(ROW()-1)/2-14) -> ＦＣみらい Ｐ
A52: C03 | E52: =IF(OR(F52="",H52=""),"",IF(F52>H52,"○",IF(F52<H52,"×",IF(F52=H52,"△")))) -> × | F52: =IF(P48="","",P48) -> 0 | G52: － | H52: =IF(N48="","",N48) -> 1 | I52: =IF(OR(J52="",L52=""),"",IF(J52>L52,"○",IF(J52<L52,"×",IF(J52=L52,"△")))) -> × | J52: =IF(P50="","",P50) -> 1 | K52: － | L52: =IF(N50="","",N50) -> 2 | Q52: =IF(OR(R52="",T52=""),"",IF(R52>T52,"○",IF(R52<T52,"×",IF(R52=T52,"△")))) -> × | R52: 1 | S52: － | T52: 2 | U52: =IF(OR(V52="",X52=""),"",IF(V52>X52,"○",IF(V52<X52,"×",IF(V52=X52,"△")))) -> × | V52: 0 | W52: － | X52: 5 | Y52: =IF(OR(Z52="",AB52=""),"",IF(Z52>AB52,"○",IF(Z52<AB52,"×",IF(Z52=AB52,"△")))) -> × | Z52: 1 | AA52: － | AB52: 2 | AC52: =IF(OR(AD52="",AF52=""),"",IF(AD52>AF52,"○",IF(AD52<AF52,"×",IF(AD52=AF52,"△")))) -> ○ | AD52: 4 | AE52: － | AF52: 1 | AG52: =IF(OR(AH52="",AJ52=""),"",IF(AH52>AJ52,"○",IF(AH52<AJ52,"×",IF(AH52=AJ52,"△")))) -> × | AH52: 0 | AI52: － | AJ52: 5 | AK52: =IF(OR(AL52="",AN52=""),"",IF(AL52>AN52,"○",IF(AL52<AN52,"×",IF(AL52=AN52,"△")))) -> ○ | AL52: 3 | AM52: － | AN52: 0 | AS52: =COUNTIF(E52:AN53,"○")+COUNTIF(E52:AN53,"×")+COUNTIF(E52:AN53,"△") -> 8 | AT52: =COUNTIF(E52:AN53,"○")*3+COUNTIF(E52:AN53,"△") -> 6 | AU52: =IF(AS52=0,0,AT52/(AS52*3)) -> 0.25 | AV52: =SUM(F52,J52,N52,R52,V52,Z52,AD52,AH52,AL52,AP52)-SUM(H52,L52,P52,T52,X52,AB52,AF52,AJ52,AN52,AR52) -> -8 | AW52: =SUM(F52,J52,N52,R52,V52,Z52,AD52,AH52,AL52,AP52) -> 10 | AX52: =AU52+AV52*0.001+AW52*0.00001 -> 0.2421 | AY52: =RANK(AX52,$AX$48:$AX$65) -> 7 | AZ52: =RANK(AX52,$AX$4:$AX$85) -> 27
A53: =INDIRECT("U12組合せ!h"&(ROW()-1)/2-14) -> 雀宮ＦＣ
A54: C04 | E54: =IF(OR(F54="",H54=""),"",IF(F54>H54,"○",IF(F54<H54,"×",IF(F54=H54,"△")))) -> × | F54: =IF(T48="","",T48) -> 1 | G54: － | H54: =IF(R48="","",R48) -> 2 | I54: =IF(OR(J54="",L54=""),"",IF(J54>L54,"○",IF(J54<L54,"×",IF(J54=L54,"△")))) -> × | J54: =IF(T50="","",T50) -> 1 | K54: － | L54: =IF(R50="","",R50) -> 2 | M54: =IF(OR(N54="",P54=""),"",IF(N54>P54,"○",IF(N54<P54,"×",IF(N54=P54,"△")))) -> ○ | N54: =IF(T52="","",T52) -> 2 | O54: － | P54: =IF(R52="","",R52) -> 1 | U54: =IF(OR(V54="",X54=""),"",IF(V54>X54,"○",IF(V54<X54,"×",IF(V54=X54,"△")))) -> ○ | V54: 4 | W54: － | X54: 2 | Y54: =IF(OR(Z54="",AB54=""),"",IF(Z54>AB54,"○",IF(Z54<AB54,"×",IF(Z54=AB54,"△")))) -> △ | Z54: 2 | AA54: － | AB54: 2 | AC54: =IF(OR(AD54="",AF54=""),"",IF(AD54>AF54,"○",IF(AD54<AF54,"×",IF(AD54=AF54,"△")))) -> ○ | AD54: 5 | AE54: － | AF54: 0 | AG54: =IF(OR(AH54="",AJ54=""),"",IF(AH54>AJ54,"○",IF(AH54<AJ54,"×",IF(AH54=AJ54,"△")))) -> × | AH54: 0 | AI54: － | AJ54: 3 | AK54: =IF(OR(AL54="",AN54=""),"",IF(AL54>AN54,"○",IF(AL54<AN54,"×",IF(AL54=AN54,"△")))) -> ○ | AL54: 3 | AM54: － | AN54: 0 | AS54: =COUNTIF(E54:AN55,"○")+COUNTIF(E54:AN55,"×")+COUNTIF(E54:AN55,"△") -> 8 | AT54: =COUNTIF(E54:AN55,"○")*3+COUNTIF(E54:AN55,"△") -> 13 | AU54: =IF(AS54=0,0,AT54/(AS54*3)) -> 0.5416666667 | AV54: =SUM(F54,J54,N54,R54,V54,Z54,AD54,AH54,AL54,AP54)-SUM(H54,L54,P54,T54,X54,AB54,AF54,AJ54,AN54,AR54) -> 6 | AW54: =SUM(F54,J54,N54,R54,V54,Z54,AD54,AH54,AL54,AP54) -> 18 | AX54: =AU54+AV54*0.001+AW54*0.00001 -> 0.5478466667 | AY54: =RANK(AX54,$AX$48:$AX$65) -> 5 | AZ54: =RANK(AX54,$AX$4:$AX$85) -> 19
A55: =INDIRECT("U12組合せ!h"&(ROW()-1)/2-14) -> ＳＵＧＡＯ ＳＣ
A56: C05 | E56: =IF(OR(F56="",H56=""),"",IF(F56>H56,"○",IF(F56<H56,"×",IF(F56=H56,"△")))) -> △ | F56: =IF(X48="","",X48) -> 4 | G56: － | H56: =IF(V48="","",V48) -> 4 | I56: =IF(OR(J56="",L56=""),"",IF(J56>L56,"○",IF(J56<L56,"×",IF(J56=L56,"△")))) -> × | J56: =IF(X50="","",X50) -> 0 | K56: － | L56: =IF(V50="","",V50) -> 3 | M56: =IF(OR(N56="",P56=""),"",IF(N56>P56,"○",IF(N56<P56,"×",IF(N56=P56,"△")))) -> ○ | N56: =IF(X52="","",X52) -> 5 | O56: － | P56: =IF(V52="","",V52) -> 0 | Q56: =IF(OR(R56="",T56=""),"",IF(R56>T56,"○",IF(R56<T56,"×",IF(R56=T56,"△")))) -> × | R56: =IF(X54="","",X54) -> 2 | S56: － | T56: =IF(V54="","",V54) -> 4 | Y56: =IF(OR(Z56="",AB56=""),"",IF(Z56>AB56,"○",IF(Z56<AB56,"×",IF(Z56=AB56,"△")))) -> ○ | Z56: 2 | AA56: － | AB56: 0 | AC56: =IF(OR(AD56="",AF56=""),"",IF(AD56>AF56,"○",IF(AD56<AF56,"×",IF(AD56=AF56,"△")))) -> ○ | AD56: 3 | AE56: － | AF56: 1 | AG56: =IF(OR(AH56="",AJ56=""),"",IF(AH56>AJ56,"○",IF(AH56<AJ56,"×",IF(AH56=AJ56,"△")))) -> × | AH56: 1 | AI56: － | AJ56: 3 | AK56: =IF(OR(AL56="",AN56=""),"",IF(AL56>AN56,"○",IF(AL56<AN56,"×",IF(AL56=AN56,"△")))) -> ○ | AL56: 7 | AM56: － | AN56: 0 | AS56: =COUNTIF(E56:AN57,"○")+COUNTIF(E56:AN57,"×")+COUNTIF(E56:AN57,"△") -> 8 | AT56: =COUNTIF(E56:AN57,"○")*3+COUNTIF(E56:AN57,"△") -> 13 | AU56: =IF(AS56=0,0,AT56/(AS56*3)) -> 0.5416666667 | AV56: =SUM(F56,J56,N56,R56,V56,Z56,AD56,AH56,AL56,AP56)-SUM(H56,L56,P56,T56,X56,AB56,AF56,AJ56,AN56,AR56) -> 9 | AW56: =SUM(F56,J56,N56,R56,V56,Z56,AD56,AH56,AL56,AP56) -> 24 | AX56: =AU56+AV56*0.001+AW56*0.00001 -> 0.5509066667 | AY56: =RANK(AX56,$AX$48:$AX$65) -> 4 | AZ56: =RANK(AX56,$AX$4:$AX$85) -> 17
A57: =INDIRECT("U12組合せ!h"&(ROW()-1)/2-14) -> Ｓ４スペランツァ
A58: C06 | E58: =IF(OR(F58="",H58=""),"",IF(F58>H58,"○",IF(F58<H58,"×",IF(F58=H58,"△")))) -> × | F58: =IF(AB48="","",AB48) -> 0 | G58: － | H58: =IF(Z48="","",Z48) -> 3 | I58: =IF(OR(J58="",L58=""),"",IF(J58>L58,"○",IF(J58<L58,"×",IF(J58=L58,"△")))) -> × | J58: =IF(AB50="","",AB50) -> 1 | K58: － | L58: =IF(Z50="","",Z50) -> 5 | M58: =IF(OR(N58="",P58=""),"",IF(N58>P58,"○",IF(N58<P58,"×",IF(N58=P58,"△")))) -> ○ | N58: =IF(AB52="","",AB52) -> 2 | O58: － | P58: =IF(Z52="","",Z52) -> 1 | Q58: =IF(OR(R58="",T58=""),"",IF(R58>T58,"○",IF(R58<T58,"×",IF(R58=T58,"△")))) -> △ | R58: =IF(AB54="","",AB54) -> 2 | S58: － | T58: =IF(Z54="","",Z54) -> 2 | U58: =IF(OR(V58="",X58=""),"",IF(V58>X58,"○",IF(V58<X58,"×",IF(V58=X58,"△")))) -> × | V58: =IF(AB56="","",AB56) -> 0 | W58: － | X58: =IF(Z56="","",Z56) -> 2 | AC58: =IF(OR(AD58="",AF58=""),"",IF(AD58>AF58,"○",IF(AD58<AF58,"×",IF(AD58=AF58,"△")))) -> ○ | AD58: 4 | AE58: － | AF58: 2 | AG58: =IF(OR(AH58="",AJ58=""),"",IF(AH58>AJ58,"○",IF(AH58<AJ58,"×",IF(AH58=AJ58,"△")))) -> × | AH58: 0 | AI58: － | AJ58: 4 | AK58: =IF(OR(AL58="",AN58=""),"",IF(AL58>AN58,"○",IF(AL58<AN58,"×",IF(AL58=AN58,"△")))) -> ○ | AL58: 7 | AM58: － | AN58: 1 | AS58: =COUNTIF(E58:AN59,"○")+COUNTIF(E58:AN59,"×")+COUNTIF(E58:AN59,"△") -> 8 | AT58: =COUNTIF(E58:AN59,"○")*3+COUNTIF(E58:AN59,"△") -> 10 | AU58: =IF(AS58=0,0,AT58/(AS58*3)) -> 0.4166666667 | AV58: =SUM(F58,J58,N58,R58,V58,Z58,AD58,AH58,AL58,AP58)-SUM(H58,L58,P58,T58,X58,AB58,AF58,AJ58,AN58,AR58) -> -4 | AW58: =SUM(F58,J58,N58,R58,V58,Z58,AD58,AH58,AL58,AP58) -> 16 | AX58: =AU58+AV58*0.001+AW58*0.00001 -> 0.4128266667 | AY58: =RANK(AX58,$AX$48:$AX$65) -> 6 | AZ58: =RANK(AX58,$AX$4:$AX$85) -> 23
A59: =INDIRECT("U12組合せ!h"&(ROW()-1)/2-14) -> 宇都宮北部ＦＣトレ
A60: C07 | E60: =IF(OR(F60="",H60=""),"",IF(F60>H60,"○",IF(F60<H60,"×",IF(F60=H60,"△")))) -> × | F60: =IF(AF48="","",AF48) -> 2 | G60: － | H60: =IF(AD48="","",AD48) -> 6 | I60: =IF(OR(J60="",L60=""),"",IF(J60>L60,"○",IF(J60<L60,"×",IF(J60=L60,"△")))) -> × | J60: =IF(AF50="","",AF50) -> 0 | K60: － | L60: =IF(AD50="","",AD50) -> 5 | M60: =IF(OR(N60="",P60=""),"",IF(N60>P60,"○",IF(N60<P60,"×",IF(N60=P60,"△")))) -> × | N60: =IF(AF52="","",AF52) -> 1 | O60: － | P60: =IF(AD52="","",AD52) -> 4 | Q60: =IF(OR(R60="",T60=""),"",IF(R60>T60,"○",IF(R60<T60,"×",IF(R60=T60,"△")))) -> × | R60: =IF(AF54="","",AF54) -> 0 | S60: － | T60: =IF(AD54="","",AD54) -> 5 | U60: =IF(OR(V60="",X60=""),"",IF(V60>X60,"○",IF(V60<X60,"×",IF(V60=X60,"△")))) -> × | V60: =IF(AF56="","",AF56) -> 1 | W60: － | X60: =IF(AD56="","",AD56) -> 3 | Y60: =IF(OR(Z60="",AB60=""),"",IF(Z60>AB60,"○",IF(Z60<AB60,"×",IF(Z60=AB60,"△")))) -> × | Z60: =IF(AF58="","",AF58) -> 2 | AA60: － | AB60: =IF(AD58="","",AD58) -> 4 | AG60: =IF(OR(AH60="",AJ60=""),"",IF(AH60>AJ60,"○",IF(AH60<AJ60,"×",IF(AH60=AJ60,"△")))) -> × | AH60: 0 | AI60: － | AJ60: 7 | AK60: =IF(OR(AL60="",AN60=""),"",IF(AL60>AN60,"○",IF(AL60<AN60,"×",IF(AL60=AN60,"△")))) -> ○ | AL60: 4 | AM60: － | AN60: 0 | AS60: =COUNTIF(E60:AN61,"○")+COUNTIF(E60:AN61,"×")+COUNTIF(E60:AN61,"△") -> 8 | AT60: =COUNTIF(E60:AN61,"○")*3+COUNTIF(E60:AN61,"△") -> 3 | AU60: =IF(AS60=0,0,AT60/(AS60*3)) -> 0.125 | AV60: =SUM(F60,J60,N60,R60,V60,Z60,AD60,AH60,AL60,AP60)-SUM(H60,L60,P60,T60,X60,AB60,AF60,AJ60,AN60,AR60) -> -24 | AW60: =SUM(F60,J60,N60,R60,V60,Z60,AD60,AH60,AL60,AP60) -> 10 | AX60: =AU60+AV60*0.001+AW60*0.00001 -> 0.1011 | AY60: =RANK(AX60,$AX$48:$AX$65) -> 8 | AZ60: =RANK(AX60,$AX$4:$AX$85) -> 32
A61: =INDIRECT("U12組合せ!h"&(ROW()-1)/2-14) -> 上三川ＦＣ
A62: C08 | E62: =IF(OR(F62="",H62=""),"",IF(F62>H62,"○",IF(F62<H62,"×",IF(F62=H62,"△")))) -> △ | F62: =IF(AJ48="","",AJ48) -> 2 | G62: － | H62: =IF(AH48="","",AH48) -> 2 | I62: =IF(OR(J62="",L62=""),"",IF(J62>L62,"○",IF(J62<L62,"×",IF(J62=L62,"△")))) -> ○ | J62: =IF(AJ50="","",AJ50) -> 3 | K62: － | L62: =IF(AH50="","",AH50) -> 1 | M62: =IF(OR(N62="",P62=""),"",IF(N62>P62,"○",IF(N62<P62,"×",IF(N62=P62,"△")))) -> ○ | N62: =IF(AJ52="","",AJ52) -> 5 | O62: － | P62: =IF(AH52="","",AH52) -> 0 | Q62: =IF(OR(R62="",T62=""),"",IF(R62>T62,"○",IF(R62<T62,"×",IF(R62=T62,"△")))) -> ○ | R62: =IF(AJ54="","",AJ54) -> 3 | S62: － | T62: =IF(AH54="","",AH54) -> 0 | U62: =IF(OR(V62="",X62=""),"",IF(V62>X62,"○",IF(V62<X62,"×",IF(V62=X62,"△")))) -> ○ | V62: =IF(AJ56="","",AJ56) -> 3 | W62: － | X62: =IF(AH56="","",AH56) -> 1 | Y62: =IF(OR(Z62="",AB62=""),"",IF(Z62>AB62,"○",IF(Z62<AB62,"×",IF(Z62=AB62,"△")))) -> ○ | Z62: =IF(AJ58="","",AJ58) -> 4 | AA62: － | AB62: =IF(AH58="","",AH58) -> 0 | AC62: =IF(OR(AD62="",AF62=""),"",IF(AD62>AF62,"○",IF(AD62<AF62,"×",IF(AD62=AF62,"△")))) -> ○ | AD62: =IF(AJ60="","",AJ60) -> 7 | AE62: － | AF62: =IF(AH60="","",AH60) -> 0 | AK62: =IF(OR(AL62="",AN62=""),"",IF(AL62>AN62,"○",IF(AL62<AN62,"×",IF(AL62=AN62,"△")))) -> ○ | AL62: 7 | AM62: － | AN62: 0 | AS62: =COUNTIF(E62:AN63,"○")+COUNTIF(E62:AN63,"×")+COUNTIF(E62:AN63,"△") -> 8 | AT62: =COUNTIF(E62:AN63,"○")*3+COUNTIF(E62:AN63,"△") -> 22 | AU62: =IF(AS62=0,0,AT62/(AS62*3)) -> 0.9166666667 | AV62: =SUM(F62,J62,N62,R62,V62,Z62,AD62,AH62,AL62,AP62)-SUM(H62,L62,P62,T62,X62,AB62,AF62,AJ62,AN62,AR62) -> 30 | AW62: =SUM(F62,J62,N62,R62,V62,Z62,AD62,AH62,AL62,AP62) -> 34 | AX62: =AU62+AV62*0.001+AW62*0.00001 -> 0.9470066667 | AY62: =RANK(AX62,$AX$48:$AX$65) -> 1 | AZ62: =RANK(AX62,$AX$4:$AX$85) -> 1
A63: =INDIRECT("U12組合せ!h"&(ROW()-1)/2-14) -> クラブチェルビアット
A64: C09 | E64: =IF(OR(F64="",H64=""),"",IF(F64>H64,"○",IF(F64<H64,"×",IF(F64=H64,"△")))) -> × | F64: =IF(AN48="","",AN48) -> 0 | G64: － | H64: =IF(AL48="","",AL48) -> 9 | I64: =IF(OR(J64="",L64=""),"",IF(J64>L64,"○",IF(J64<L64,"×",IF(J64=L64,"△")))) -> × | J64: =IF(AN50="","",AN50) -> 0 | K64: － | L64: =IF(AL50="","",AL50) -> 9 | M64: =IF(OR(N64="",P64=""),"",IF(N64>P64,"○",IF(N64<P64,"×",IF(N64=P64,"△")))) -> × | N64: =IF(AN52="","",AN52) -> 0 | O64: － | P64: =IF(AL52="","",AL52) -> 3 | Q64: =IF(OR(R64="",T64=""),"",IF(R64>T64,"○",IF(R64<T64,"×",IF(R64=T64,"△")))) -> × | R64: =IF(AN54="","",AN54) -> 0 | S64: － | T64: =IF(AL54="","",AL54) -> 3 | U64: =IF(OR(V64="",X64=""),"",IF(V64>X64,"○",IF(V64<X64,"×",IF(V64=X64,"△")))) -> × | V64: =IF(AN56="","",AN56) -> 0 | W64: － | X64: =IF(AL56="","",AL56) -> 7 | Y64: =IF(OR(Z64="",AB64=""),"",IF(Z64>AB64,"○",IF(Z64<AB64,"×",IF(Z64=AB64,"△")))) -> × | Z64: =IF(AN58="","",AN58) -> 1 | AA64: － | AB64: =IF(AL58="","",AL58) -> 7 | AC64: =IF(OR(AD64="",AF64=""),"",IF(AD64>AF64,"○",IF(AD64<AF64,"×",IF(AD64=AF64,"△")))) -> × | AD64: =IF(AN60="","",AN60) -> 0 | AE64: － | AF64: =IF(AL60="","",AL60) -> 4 | AG64: =IF(OR(AH64="",AJ64=""),"",IF(AH64>AJ64,"○",IF(AH64<AJ64,"×",IF(AH64=AJ64,"△")))) -> × | AH64: =IF(AN62="","",AN62) -> 0 | AI64: － | AJ64: =IF(AL62="","",AL62) -> 7 | AS64: =COUNTIF(E64:AN65,"○")+COUNTIF(E64:AN65,"×")+COUNTIF(E64:AN65,"△") -> 8 | AT64: =COUNTIF(E64:AN65,"○")*3+COUNTIF(E64:AN65,"△") -> 0 | AU64: =IF(AS64=0,0,AT64/(AS64*3)) -> 0 | AV64: =SUM(F64,J64,N64,R64,V64,Z64,AD64,AH64,AL64,AP64)-SUM(H64,L64,P64,T64,X64,AB64,AF64,AJ64,AN64,AR64) -> -48 | AW64: =SUM(F64,J64,N64,R64,V64,Z64,AD64,AH64,AL64,AP64) -> 1 | AX64: =AU64+AV64*0.001+AW64*0.00001 -> -0.04799 | AY64: =RANK(AX64,$AX$48:$AX$65) -> 9 | AZ64: =RANK(AX64,$AX$4:$AX$85) -> 37
A65: =INDIRECT("U12組合せ!h"&(ROW()-1)/2-14) -> ＦＣブロケード
A67: Ｄブロック | E67: =A69 -> 上河内ＪＳＣ | I67: =A71 -> 上三川ＳＣ | M67: =A73 -> 緑が丘ＹＦＣ | Q67: =A75 -> 泉ＦＣ宇都宮 | U67: =A77 -> 国本ＪＳＣ | Y67: =A79 -> 本郷北ＦＣ | AC67: =A81 -> ＦＣペンサーレ | AG67: =A83 -> ブラッドレスＳＳ | AK67: =A85 -> ともぞうＳＣ・Ｂ | AS67: 試合数 | AT67: 勝ち点 | AU67: 勝ち点率 | AV67: 得失差 | AW67: 得点 | AY67: ブロック 順位 | AZ67: 総合 順位
A68: D01 | I68: =IF(OR(J68="",L68=""),"",IF(J68>L68,"○",IF(J68<L68,"×",IF(J68=L68,"△")))) -> ○ | J68: 5 | K68: － | L68: 0 | M68: =IF(OR(N68="",P68=""),"",IF(N68>P68,"○",IF(N68<P68,"×",IF(N68=P68,"△")))) -> ○ | N68: 7 | O68: － | P68: 1 | Q68: =IF(OR(R68="",T68=""),"",IF(R68>T68,"○",IF(R68<T68,"×",IF(R68=T68,"△")))) -> ○ | R68: 5 | S68: － | T68: 0 | U68: =IF(OR(V68="",X68=""),"",IF(V68>X68,"○",IF(V68<X68,"×",IF(V68=X68,"△")))) -> ○ | V68: 2 | W68: － | X68: 1 | Y68: =IF(OR(Z68="",AB68=""),"",IF(Z68>AB68,"○",IF(Z68<AB68,"×",IF(Z68=AB68,"△")))) -> ○ | Z68: 5 | AA68: － | AB68: 0 | AC68: =IF(OR(AD68="",AF68=""),"",IF(AD68>AF68,"○",IF(AD68<AF68,"×",IF(AD68=AF68,"△")))) -> △ | AD68: 1 | AE68: － | AF68: 1 | AG68: =IF(OR(AH68="",AJ68=""),"",IF(AH68>AJ68,"○",IF(AH68<AJ68,"×",IF(AH68=AJ68,"△")))) -> × | AH68: 0 | AI68: － | AJ68: 1 | AK68: =IF(OR(AL68="",AN68=""),"",IF(AL68>AN68,"○",IF(AL68<AN68,"×",IF(AL68=AN68,"△")))) -> ○ | AL68: 1 | AM68: － | AN68: 0 | AS68: =COUNTIF(E68:AN69,"○")+COUNTIF(E68:AN69,"×")+COUNTIF(E68:AN69,"△") -> 8 | AT68: =COUNTIF(E68:AN69,"○")*3+COUNTIF(E68:AN69,"△") -> 19 | AU68: =IF(AS68=0,0,AT68/(AS68*3)) -> 0.7916666667 | AV68: =SUM(F68,J68,N68,R68,V68,Z68,AD68,AH68,AL68,AP68)-SUM(H68,L68,P68,T68,X68,AB68,AF68,AJ68,AN68,AR68) -> 22 | AW68: =SUM(F68,J68,N68,R68,V68,Z68,AD68,AH68,AL68,AP68) -> 26 | AX68: =AU68+AV68*0.001+AW68*0.00001 -> 0.8139266667 | AY68: =RANK(AX68,$AX$68:$AX$85) -> 1 | AZ68: =RANK(AX68,$AX$4:$AX$85) -> 8
A69: =INDIRECT("U12組合せ!j"&(ROW()-1)/2-24) -> 上河内ＪＳＣ
A70: D02 | E70: =IF(OR(F70="",H70=""),"",IF(F70>H70,"○",IF(F70<H70,"×",IF(F70=H70,"△")))) -> × | F70: =IF(L68="","",L68) -> 0 | G70: － | H70: =IF(J68="","",J68) -> 5 | M70: =IF(OR(N70="",P70=""),"",IF(N70>P70,"○",IF(N70<P70,"×",IF(N70=P70,"△")))) -> × | N70: 0 | O70: － | P70: 3 | Q70: =IF(OR(R70="",T70=""),"",IF(R70>T70,"○",IF(R70<T70,"×",IF(R70=T70,"△")))) -> ○ | R70: 4 | S70: － | T70: 0 | U70: =IF(OR(V70="",X70=""),"",IF(V70>X70,"○",IF(V70<X70,"×",IF(V70=X70,"△")))) -> △ | V70: 4 | W70: － | X70: 4 | Y70: =IF(OR(Z70="",AB70=""),"",IF(Z70>AB70,"○",IF(Z70<AB70,"×",IF(Z70=AB70,"△")))) -> × | Z70: 0 | AA70: － | AB70: 1 | AC70: =IF(OR(AD70="",AF70=""),"",IF(AD70>AF70,"○",IF(AD70<AF70,"×",IF(AD70=AF70,"△")))) -> × | AD70: 0 | AE70: － | AF70: 6 | AG70: =IF(OR(AH70="",AJ70=""),"",IF(AH70>AJ70,"○",IF(AH70<AJ70,"×",IF(AH70=AJ70,"△")))) -> × | AH70: 1 | AI70: － | AJ70: 4 | AK70: =IF(OR(AL70="",AN70=""),"",IF(AL70>AN70,"○",IF(AL70<AN70,"×",IF(AL70=AN70,"△")))) -> × | AL70: 0 | AM70: － | AN70: 4 | AS70: =COUNTIF(E70:AN71,"○")+COUNTIF(E70:AN71,"×")+COUNTIF(E70:AN71,"△") -> 8 | AT70: =COUNTIF(E70:AN71,"○")*3+COUNTIF(E70:AN71,"△") -> 4 | AU70: =IF(AS70=0,0,AT70/(AS70*3)) -> 0.1666666667 | AV70: =SUM(F70,J70,N70,R70,V70,Z70,AD70,AH70,AL70,AP70)-SUM(H70,L70,P70,T70,X70,AB70,AF70,AJ70,AN70,AR70) -> -18 | AW70: =SUM(F70,J70,N70,R70,V70,Z70,AD70,AH70,AL70,AP70) -> 9 | AX70: =AU70+AV70*0.001+AW70*0.00001 -> 0.1487566667 | AY70: =RANK(AX70,$AX$68:$AX$85) -> 8 | AZ70: =RANK(AX70,$AX$4:$AX$85) -> 29
A71: =INDIRECT("U12組合せ!j"&(ROW()-1)/2-24) -> 上三川ＳＣ
A72: D03 | E72: =IF(OR(F72="",H72=""),"",IF(F72>H72,"○",IF(F72<H72,"×",IF(F72=H72,"△")))) -> × | F72: =IF(P68="","",P68) -> 1 | G72: － | H72: =IF(N68="","",N68) -> 7 | I72: =IF(OR(J72="",L72=""),"",IF(J72>L72,"○",IF(J72<L72,"×",IF(J72=L72,"△")))) -> ○ | J72: =IF(P70="","",P70) -> 3 | K72: － | L72: =IF(N70="","",N70) -> 0 | Q72: =IF(OR(R72="",T72=""),"",IF(R72>T72,"○",IF(R72<T72,"×",IF(R72=T72,"△")))) -> ○ | R72: 5 | S72: － | T72: 0 | U72: =IF(OR(V72="",X72=""),"",IF(V72>X72,"○",IF(V72<X72,"×",IF(V72=X72,"△")))) -> ○ | V72: 1 | W72: － | X72: 0 | Y72: =IF(OR(Z72="",AB72=""),"",IF(Z72>AB72,"○",IF(Z72<AB72,"×",IF(Z72=AB72,"△")))) -> △ | Z72: 1 | AA72: － | AB72: 1 | AC72: =IF(OR(AD72="",AF72=""),"",IF(AD72>AF72,"○",IF(AD72<AF72,"×",IF(AD72=AF72,"△")))) -> ○ | AD72: 3 | AE72: － | AF72: 0 | AG72: =IF(OR(AH72="",AJ72=""),"",IF(AH72>AJ72,"○",IF(AH72<AJ72,"×",IF(AH72=AJ72,"△")))) -> ○ | AH72: 3 | AI72: － | AJ72: 2 | AK72: =IF(OR(AL72="",AN72=""),"",IF(AL72>AN72,"○",IF(AL72<AN72,"×",IF(AL72=AN72,"△")))) -> ○ | AL72: 1 | AM72: － | AN72: 0 | AS72: =COUNTIF(E72:AN73,"○")+COUNTIF(E72:AN73,"×")+COUNTIF(E72:AN73,"△") -> 8 | AT72: =COUNTIF(E72:AN73,"○")*3+COUNTIF(E72:AN73,"△") -> 19 | AU72: =IF(AS72=0,0,AT72/(AS72*3)) -> 0.7916666667 | AV72: =SUM(F72,J72,N72,R72,V72,Z72,AD72,AH72,AL72,AP72)-SUM(H72,L72,P72,T72,X72,AB72,AF72,AJ72,AN72,AR72) -> 8 | AW72: =SUM(F72,J72,N72,R72,V72,Z72,AD72,AH72,AL72,AP72) -> 18 | AX72: =AU72+AV72*0.001+AW72*0.00001 -> 0.7998466667 | AY72: =RANK(AX72,$AX$68:$AX$85) -> 3 | AZ72: =RANK(AX72,$AX$4:$AX$85) -> 10
A73: =INDIRECT("U12組合せ!j"&(ROW()-1)/2-24) -> 緑が丘ＹＦＣ
A74: D04 | E74: =IF(OR(F74="",H74=""),"",IF(F74>H74,"○",IF(F74<H74,"×",IF(F74=H74,"△")))) -> × | F74: =IF(T68="","",T68) -> 0 | G74: － | H74: =IF(R68="","",R68) -> 5 | I74: =IF(OR(J74="",L74=""),"",IF(J74>L74,"○",IF(J74<L74,"×",IF(J74=L74,"△")))) -> × | J74: =IF(T70="","",T70) -> 0 | K74: － | L74: =IF(R70="","",R70) -> 4 | M74: =IF(OR(N74="",P74=""),"",IF(N74>P74,"○",IF(N74<P74,"×",IF(N74=P74,"△")))) -> × | N74: =IF(T72="","",T72) -> 0 | O74: － | P74: =IF(R72="","",R72) -> 5 | U74: =IF(OR(V74="",X74=""),"",IF(V74>X74,"○",IF(V74<X74,"×",IF(V74=X74,"△")))) -> × | V74: 1 | W74: － | X74: 9 | Y74: =IF(OR(Z74="",AB74=""),"",IF(Z74>AB74,"○",IF(Z74<AB74,"×",IF(Z74=AB74,"△")))) -> × | Z74: 0 | AA74: － | AB74: 7 | AC74: =IF(OR(AD74="",AF74=""),"",IF(AD74>AF74,"○",IF(AD74<AF74,"×",IF(AD74=AF74,"△")))) -> × | AD74: 0 | AE74: － | AF74: 5 | AG74: =IF(OR(AH74="",AJ74=""),"",IF(AH74>AJ74,"○",IF(AH74<AJ74,"×",IF(AH74=AJ74,"△")))) -> × | AH74: 0 | AI74: － | AJ74: 10 | AK74: =IF(OR(AL74="",AN74=""),"",IF(AL74>AN74,"○",IF(AL74<AN74,"×",IF(AL74=AN74,"△")))) -> × | AL74: 0 | AM74: － | AN74: 2 | AS74: =COUNTIF(E74:AN75,"○")+COUNTIF(E74:AN75,"×")+COUNTIF(E74:AN75,"△") -> 8 | AT74: =COUNTIF(E74:AN75,"○")*3+COUNTIF(E74:AN75,"△") -> 0 | AU74: =IF(AS74=0,0,AT74/(AS74*3)) -> 0 | AV74: =SUM(F74,J74,N74,R74,V74,Z74,AD74,AH74,AL74,AP74)-SUM(H74,L74,P74,T74,X74,AB74,AF74,AJ74,AN74,AR74) -> -46 | AW74: =SUM(F74,J74,N74,R74,V74,Z74,AD74,AH74,AL74,AP74) -> 1 | AX74: =AU74+AV74*0.001+AW74*0.00001 -> -0.04599 | AY74: =RANK(AX74,$AX$68:$AX$85) -> 9 | AZ74: =RANK(AX74,$AX$4:$AX$85) -> 36
A75: =INDIRECT("U12組合せ!j"&(ROW()-1)/2-24) -> 泉ＦＣ宇都宮
A76: D05 | E76: =IF(OR(F76="",H76=""),"",IF(F76>H76,"○",IF(F76<H76,"×",IF(F76=H76,"△")))) -> × | F76: =IF(X68="","",X68) -> 1 | G76: － | H76: =IF(V68="","",V68) -> 2 | I76: =IF(OR(J76="",L76=""),"",IF(J76>L76,"○",IF(J76<L76,"×",IF(J76=L76,"△")))) -> △ | J76: =IF(X70="","",X70) -> 4 | K76: － | L76: =IF(V70="","",V70) -> 4 | M76: =IF(OR(N76="",P76=""),"",IF(N76>P76,"○",IF(N76<P76,"×",IF(N76=P76,"△")))) -> × | N76: =IF(X72="","",X72) -> 0 | O76: － | P76: =IF(V72="","",V72) -> 1 | Q76: =IF(OR(R76="",T76=""),"",IF(R76>T76,"○",IF(R76<T76,"×",IF(R76=T76,"△")))) -> ○ | R76: =IF(X74="","",X74) -> 9 | S76: － | T76: =IF(V74="","",V74) -> 1 | Y76: =IF(OR(Z76="",AB76=""),"",IF(Z76>AB76,"○",IF(Z76<AB76,"×",IF(Z76=AB76,"△")))) -> × | Z76: 1 | AA76: － | AB76: 2 | AC76: =IF(OR(AD76="",AF76=""),"",IF(AD76>AF76,"○",IF(AD76<AF76,"×",IF(AD76=AF76,"△")))) -> × | AD76: 1 | AE76: － | AF76: 2 | AG76: =IF(OR(AH76="",AJ76=""),"",IF(AH76>AJ76,"○",IF(AH76<AJ76,"×",IF(AH76=AJ76,"△")))) -> × | AH76: 1 | AI76: － | AJ76: 3 | AK76: =IF(OR(AL76="",AN76=""),"",IF(AL76>AN76,"○",IF(AL76<AN76,"×",IF(AL76=AN76,"△")))) -> × | AL76: 1 | AM76: － | AN76: 3 | AS76: =COUNTIF(E76:AN77,"○")+COUNTIF(E76:AN77,"×")+COUNTIF(E76:AN77,"△") -> 8 | AT76: =COUNTIF(E76:AN77,"○")*3+COUNTIF(E76:AN77,"△") -> 4 | AU76: =IF(AS76=0,0,AT76/(AS76*3)) -> 0.1666666667 | AV76: =SUM(F76,J76,N76,R76,V76,Z76,AD76,AH76,AL76,AP76)-SUM(H76,L76,P76,T76,X76,AB76,AF76,AJ76,AN76,AR76) -> 0 | AW76: =SUM(F76,J76,N76,R76,V76,Z76,AD76,AH76,AL76,AP76) -> 18 | AX76: =AU76+AV76*0.001+AW76*0.00001 -> 0.1668466667 | AY76: =RANK(AX76,$AX$68:$AX$85) -> 7 | AZ76: =RANK(AX76,$AX$4:$AX$85) -> 28
A77: =INDIRECT("U12組合せ!j"&(ROW()-1)/2-24) -> 国本ＪＳＣ
A78: D06 | E78: =IF(OR(F78="",H78=""),"",IF(F78>H78,"○",IF(F78<H78,"×",IF(F78=H78,"△")))) -> × | F78: =IF(AB68="","",AB68) -> 0 | G78: － | H78: =IF(Z68="","",Z68) -> 5 | I78: =IF(OR(J78="",L78=""),"",IF(J78>L78,"○",IF(J78<L78,"×",IF(J78=L78,"△")))) -> ○ | J78: =IF(AB70="","",AB70) -> 1 | K78: － | L78: =IF(Z70="","",Z70) -> 0 | M78: =IF(OR(N78="",P78=""),"",IF(N78>P78,"○",IF(N78<P78,"×",IF(N78=P78,"△")))) -> △ | N78: =IF(AB72="","",AB72) -> 1 | O78: － | P78: =IF(Z72="","",Z72) -> 1 | Q78: =IF(OR(R78="",T78=""),"",IF(R78>T78,"○",IF(R78<T78,"×",IF(R78=T78,"△")))) -> ○ | R78: =IF(AB74="","",AB74) -> 7 | S78: － | T78: =IF(Z74="","",Z74) -> 0 | U78: =IF(OR(V78="",X78=""),"",IF(V78>X78,"○",IF(V78<X78,"×",IF(V78=X78,"△")))) -> ○ | V78: =IF(AB76="","",AB76) -> 2 | W78: － | X78: =IF(Z76="","",Z76) -> 1 | AC78: =IF(OR(AD78="",AF78=""),"",IF(AD78>AF78,"○",IF(AD78<AF78,"×",IF(AD78=AF78,"△")))) -> ○ | AD78: 1 | AE78: － | AF78: 0 | AG78: =IF(OR(AH78="",AJ78=""),"",IF(AH78>AJ78,"○",IF(AH78<AJ78,"×",IF(AH78=AJ78,"△")))) -> × | AH78: 0 | AI78: － | AJ78: 2 | AK78: =IF(OR(AL78="",AN78=""),"",IF(AL78>AN78,"○",IF(AL78<AN78,"×",IF(AL78=AN78,"△")))) -> ○ | AL78: 1 | AM78: － | AN78: 0 | AS78: =COUNTIF(E78:AN79,"○")+COUNTIF(E78:AN79,"×")+COUNTIF(E78:AN79,"△") -> 8 | AT78: =COUNTIF(E78:AN79,"○")*3+COUNTIF(E78:AN79,"△") -> 16 | AU78: =IF(AS78=0,0,AT78/(AS78*3)) -> 0.6666666667 | AV78: =SUM(F78,J78,N78,R78,V78,Z78,AD78,AH78,AL78,AP78)-SUM(H78,L78,P78,T78,X78,AB78,AF78,AJ78,AN78,AR78) -> 4 | AW78: =SUM(F78,J78,N78,R78,V78,Z78,AD78,AH78,AL78,AP78) -> 13 | AX78: =AU78+AV78*0.001+AW78*0.00001 -> 0.6707966667 | AY78: =RANK(AX78,$AX$68:$AX$85) -> 4 | AZ78: =RANK(AX78,$AX$4:$AX$85) -> 13
A79: =INDIRECT("U12組合せ!j"&(ROW()-1)/2-24) -> 本郷北ＦＣ
A80: D07 | E80: =IF(OR(F80="",H80=""),"",IF(F80>H80,"○",IF(F80<H80,"×",IF(F80=H80,"△")))) -> △ | F80: =IF(AF68="","",AF68) -> 1 | G80: － | H80: =IF(AD68="","",AD68) -> 1 | I80: =IF(OR(J80="",L80=""),"",IF(J80>L80,"○",IF(J80<L80,"×",IF(J80=L80,"△")))) -> ○ | J80: =IF(AF70="","",AF70) -> 6 | K80: － | L80: =IF(AD70="","",AD70) -> 0 | M80: =IF(OR(N80="",P80=""),"",IF(N80>P80,"○",IF(N80<P80,"×",IF(N80=P80,"△")))) -> × | N80: =IF(AF72="","",AF72) -> 0 | O80: － | P80: =IF(AD72="","",AD72) -> 3 | Q80: =IF(OR(R80="",T80=""),"",IF(R80>T80,"○",IF(R80<T80,"×",IF(R80=T80,"△")))) -> ○ | R80: =IF(AF74="","",AF74) -> 5 | S80: － | T80: =IF(AD74="","",AD74) -> 0 | U80: =IF(OR(V80="",X80=""),"",IF(V80>X80,"○",IF(V80<X80,"×",IF(V80=X80,"△")))) -> ○ | V80: =IF(AF76="","",AF76) -> 2 | W80: － | X80: =IF(AD76="","",AD76) -> 1 | Y80: =IF(OR(Z80="",AB80=""),"",IF(Z80>AB80,"○",IF(Z80<AB80,"×",IF(Z80=AB80,"△")))) -> × | Z80: =IF(AF78="","",AF78) -> 0 | AA80: － | AB80: =IF(AD78="","",AD78) -> 1 | AG80: =IF(OR(AH80="",AJ80=""),"",IF(AH80>AJ80,"○",IF(AH80<AJ80,"×",IF(AH80=AJ80,"△")))) -> × | AH80: 1 | AI80: － | AJ80: 5 | AK80: =IF(OR(AL80="",AN80=""),"",IF(AL80>AN80,"○",IF(AL80<AN80,"×",IF(AL80=AN80,"△")))) -> × | AL80: 0 | AM80: － | AN80: 4 | AS80: =COUNTIF(E80:AN81,"○")+COUNTIF(E80:AN81,"×")+COUNTIF(E80:AN81,"△") -> 8 | AT80: =COUNTIF(E80:AN81,"○")*3+COUNTIF(E80:AN81,"△") -> 10 | AU80: =IF(AS80=0,0,AT80/(AS80*3)) -> 0.4166666667 | AV80: =SUM(F80,J80,N80,R80,V80,Z80,AD80,AH80,AL80,AP80)-SUM(H80,L80,P80,T80,X80,AB80,AF80,AJ80,AN80,AR80) -> 0 | AW80: =SUM(F80,J80,N80,R80,V80,Z80,AD80,AH80,AL80,AP80) -> 15 | AX80: =AU80+AV80*0.001+AW80*0.00001 -> 0.4168166667 | AY80: =RANK(AX80,$AX$68:$AX$85) -> 6 | AZ80: =RANK(AX80,$AX$4:$AX$85) -> 22
A81: =INDIRECT("U12組合せ!j"&(ROW()-1)/2-24) -> ＦＣペンサーレ
A82: D08 | E82: =IF(OR(F82="",H82=""),"",IF(F82>H82,"○",IF(F82<H82,"×",IF(F82=H82,"△")))) -> ○ | F82: =IF(AJ68="","",AJ68) -> 1 | G82: － | H82: =IF(AH68="","",AH68) -> 0 | I82: =IF(OR(J82="",L82=""),"",IF(J82>L82,"○",IF(J82<L82,"×",IF(J82=L82,"△")))) -> ○ | J82: =IF(AJ70="","",AJ70) -> 4 | K82: － | L82: =IF(AH70="","",AH70) -> 1 | M82: =IF(OR(N82="",P82=""),"",IF(N82>P82,"○",IF(N82<P82,"×",IF(N82=P82,"△")))) -> × | N82: =IF(AJ72="","",AJ72) -> 2 | O82: － | P82: =IF(AH72="","",AH72) -> 3 | Q82: =IF(OR(R82="",T82=""),"",IF(R82>T82,"○",IF(R82<T82,"×",IF(R82=T82,"△")))) -> ○ | R82: =IF(AJ74="","",AJ74) -> 10 | S82: － | T82: =IF(AH74="","",AH74) -> 0 | U82: =IF(OR(V82="",X82=""),"",IF(V82>X82,"○",IF(V82<X82,"×",IF(V82=X82,"△")))) -> ○ | V82: =IF(AJ76="","",AJ76) -> 3 | W82: － | X82: =IF(AH76="","",AH76) -> 1 | Y82: =IF(OR(Z82="",AB82=""),"",IF(Z82>AB82,"○",IF(Z82<AB82,"×",IF(Z82=AB82,"△")))) -> ○ | Z82: =IF(AJ78="","",AJ78) -> 2 | AA82: － | AB82: =IF(AH78="","",AH78) -> 0 | AC82: =IF(OR(AD82="",AF82=""),"",IF(AD82>AF82,"○",IF(AD82<AF82,"×",IF(AD82=AF82,"△")))) -> ○ | AD82: =IF(AJ80="","",AJ80) -> 5 | AE82: － | AF82: =IF(AH80="","",AH80) -> 1 | AK82: =IF(OR(AL82="",AN82=""),"",IF(AL82>AN82,"○",IF(AL82<AN82,"×",IF(AL82=AN82,"△")))) -> △ | AL82: 0 | AM82: － | AN82: 0 | AS82: =COUNTIF(E82:AN83,"○")+COUNTIF(E82:AN83,"×")+COUNTIF(E82:AN83,"△") -> 8 | AT82: =COUNTIF(E82:AN83,"○")*3+COUNTIF(E82:AN83,"△") -> 19 | AU82: =IF(AS82=0,0,AT82/(AS82*3)) -> 0.7916666667 | AV82: =SUM(F82,J82,N82,R82,V82,Z82,AD82,AH82,AL82,AP82)-SUM(H82,L82,P82,T82,X82,AB82,AF82,AJ82,AN82,AR82) -> 21 | AW82: =SUM(F82,J82,N82,R82,V82,Z82,AD82,AH82,AL82,AP82) -> 27 | AX82: =AU82+AV82*0.001+AW82*0.00001 -> 0.8129366667 | AY82: =RANK(AX82,$AX$68:$AX$85) -> 2 | AZ82: =RANK(AX82,$AX$4:$AX$85) -> 9
A83: =INDIRECT("U12組合せ!j"&(ROW()-1)/2-24) -> ブラッドレスＳＳ
A84: D09 | E84: =IF(OR(F84="",H84=""),"",IF(F84>H84,"○",IF(F84<H84,"×",IF(F84=H84,"△")))) -> × | F84: =IF(AN68="","",AN68) -> 0 | G84: － | H84: =IF(AL68="","",AL68) -> 1 | I84: =IF(OR(J84="",L84=""),"",IF(J84>L84,"○",IF(J84<L84,"×",IF(J84=L84,"△")))) -> ○ | J84: =IF(AN70="","",AN70) -> 4 | K84: － | L84: =IF(AL70="","",AL70) -> 0 | M84: =IF(OR(N84="",P84=""),"",IF(N84>P84,"○",IF(N84<P84,"×",IF(N84=P84,"△")))) -> × | N84: =IF(AN72="","",AN72) -> 0 | O84: － | P84: =IF(AL72="","",AL72) -> 1 | Q84: =IF(OR(R84="",T84=""),"",IF(R84>T84,"○",IF(R84<T84,"×",IF(R84=T84,"△")))) -> ○ | R84: =IF(AN74="","",AN74) -> 2 | S84: － | T84: =IF(AL74="","",AL74) -> 0 | U84: =IF(OR(V84="",X84=""),"",IF(V84>X84,"○",IF(V84<X84,"×",IF(V84=X84,"△")))) -> ○ | V84: =IF(AN76="","",AN76) -> 3 | W84: － | X84: =IF(AL76="","",AL76) -> 1 | Y84: =IF(OR(Z84="",AB84=""),"",IF(Z84>AB84,"○",IF(Z84<AB84,"×",IF(Z84=AB84,"△")))) -> × | Z84: =IF(AN78="","",AN78) -> 0 | AA84: － | AB84: =IF(AL78="","",AL78) -> 1 | AC84: =IF(OR(AD84="",AF84=""),"",IF(AD84>AF84,"○",IF(AD84<AF84,"×",IF(AD84=AF84,"△")))) -> ○ | AD84: =IF(AN80="","",AN80) -> 4 | AE84: － | AF84: =IF(AL80="","",AL80) -> 0 | AG84: =IF(OR(AH84="",AJ84=""),"",IF(AH84>AJ84,"○",IF(AH84<AJ84,"×",IF(AH84=AJ84,"△")))) -> △ | AH84: =IF(AN82="","",AN82) -> 0 | AI84: － | AJ84: =IF(AL82="","",AL82) -> 0 | AS84: =COUNTIF(E84:AN85,"○")+COUNTIF(E84:AN85,"×")+COUNTIF(E84:AN85,"△") -> 8 | AT84: =COUNTIF(E84:AN85,"○")*3+COUNTIF(E84:AN85,"△") -> 13 | AU84: =IF(AS84=0,0,AT84/(AS84*3)) -> 0.5416666667 | AV84: =SUM(F84,J84,N84,R84,V84,Z84,AD84,AH84,AL84,AP84)-SUM(H84,L84,P84,T84,X84,AB84,AF84,AJ84,AN84,AR84) -> 9 | AW84: =SUM(F84,J84,N84,R84,V84,Z84,AD84,AH84,AL84,AP84) -> 13 | AX84: =AU84+AV84*0.001+AW84*0.00001 -> 0.5507966667 | AY84: =RANK(AX84,$AX$68:$AX$85) -> 5 | AZ84: =RANK(AX84,$AX$4:$AX$85) -> 18
A85: =INDIRECT("U12組合せ!j"&(ROW()-1)/2-24) -> ともぞうＳＣ・Ｂ

Sheet U１2順位
A1: ＪＦＡ U-12サッカーリーグ2018（in栃木） 宇河地域リーグ戦（後期）
A2: 順位表 （９/１７ 全節終了時）
A4: 順位 ＝（ 勝ち点率 ＋ 得失差×0.0001 ＋ 得点×0.000001 ） の降順 ※勝ち点率＝勝ち点÷（試合数×３）
B5: チーム | D5: 勝ち点 | E5: 試合数 | F5: 勝ち点率 | G5: 得失差 | H5: 得点 | J5: 順位 | L5: =IF(J$17<>J$18,"",IF(J5=J$17,"出場候補","")) -> 
A6: 1 | B6: =■!A28 -> C08 | C6: =■!B28 -> クラブチェルビアット | D6: =■!C28 -> 22 | E6: =■!D28 -> 8 | F6: =IF(E6=0,0,D6/(E6*3)) -> 0.9166666667 | G6: =■!F28 -> 30 | H6: =■!G28 -> 34 | I6: =F6+G6*0.0001+H6*0.000001 -> 0.9197006667 | J6: =RANK(I6,$I$6:$I$42,0)&"位" -> 1位 | K6: 県大会出場 | L6: =IF(J$16<>J$17,"",IF(J6=J$16,"出場候補","")) -> 
A7: 2 | B7: =■!A20 -> B09 | C7: =■!B20 -> 豊郷ＪＦＣ宇都宮 | D7: =■!C20 -> 22 | E7: =■!D20 -> 8 | F7: 0.9166666667 | G7: =■!F20 -> 30 | H7: =■!G20 -> 31 | I7: 0.9196976667 | J7: 2位 | L7: =IF(J$16<>J$17,"",IF(J7=J$16,"出場候補","")) -> 
A8: 3 | B8: =■!A10 -> A09 | C8: =■!B10 -> カテット白沢ＳＳ | D8: =■!C10 -> 24 | E8: =■!D10 -> 9 | F8: 0.8888888889 | G8: =■!F10 -> 34 | H8: =■!G10 -> 39 | I8: 0.8923278889 | J8: 3位
A9: 4 | B9: =■!A18 -> B07 | C9: =■!B18 -> ＦＣ Ｒｉｓｏ | D9: =■!C18 -> 21 | E9: =■!D18 -> 8 | F9: 0.875 | G9: =■!F18 -> 20 | H9: =■!G18 -> 22 | I9: 0.877022 | J9: 4位
A10: 5 | B10: =■!A21 -> C01 | C10: =■!B21 -> 清原ＳＳＳ | D10: =■!C21 -> 20 | E10: =■!D21 -> 8 | F10: 0.8333333333 | G10: =■!F21 -> 19 | H10: =■!G21 -> 29 | I10: 0.8352623333 | J10: 5位
A11: 6 | B11: =■!A3 -> A02 | C11: =■!B3 -> 細谷ＳＣ | D11: =■!C3 -> 22 | E11: =■!D3 -> 9 | F11: 0.8148148148 | G11: =■!F3 -> 43 | H11: =■!G3 -> 50 | I11: 0.8191648148 | J11: 6位
A12: 7 | B12: =■!A2 -> A01 | C12: =■!B2 -> 石井ＦＣ | D12: =■!C2 -> 22 | E12: =■!D2 -> 9 | F12: 0.8148148148 | G12: =■!F2 -> 25 | H12: =■!G2 -> 31 | I12: 0.8173458148 | J12: 7位
A13: 8 | B13: =■!A30 -> D01 | C13: =■!B30 -> 上河内ＪＳＣ | D13: =■!C30 -> 19 | E13: =■!D30 -> 8 | F13: 0.7916666667 | G13: =■!F30 -> 22 | H13: =■!G30 -> 26 | I13: 0.7938926667 | J13: 8位
A14: 9 | B14: =■!A37 -> D08 | C14: =■!B37 -> ブラッドレスＳＳ | D14: =■!C37 -> 19 | E14: =■!D37 -> 8 | F14: 0.7916666667 | G14: =■!F37 -> 21 | H14: =■!G37 -> 27 | I14: 0.7937936667 | J14: 9位
A15: 10 | B15: =■!A32 -> D03 | C15: =■!B32 -> 緑が丘ＹＦＣ | D15: =■!C32 -> 19 | E15: =■!D32 -> 8 | F15: 0.7916666667 | G15: =■!F32 -> 8 | H15: =■!G32 -> 18 | I15: 0.7924846667 | J15: 10位
A16: 11 | B16: =■!A22 -> C02 | C16: =■!B22 -> ＦＣみらい Ｐ | D16: =■!C22 -> 18 | E16: =■!D22 -> 8 | F16: 0.75 | G16: =■!F22 -> 20 | H16: =■!G22 -> 28 | I16: 0.752028 | J16: 11位
A17: 12 | B17: =■!A7 -> A06 | C17: =■!B7 -> ＦＣグラシアス | D17: =■!C7 -> 18 | E17: =■!D7 -> 9 | F17: 0.6666666667 | G17: =■!F7 -> 16 | H17: =■!G7 -> 33 | I17: 0.6682996667 | J17: 12位
A18: 13 | B18: =■!A35 -> D06 | C18: =■!B35 -> 本郷北ＦＣ | D18: =■!C35 -> 16 | E18: =■!D35 -> 8 | F18: 0.6666666667 | G18: =■!F35 -> 4 | H18: =■!G35 -> 13 | I18: 0.6670796667 | J18: 13位
A19: 14 | B19: =■!A14 -> B03 | C19: =■!B14 -> ｕｎｉｏｎ ｓｃ | D19: =■!C14 -> 15 | E19: =■!D14 -> 8 | F19: 0.625 | G19: =■!F14 -> 6 | H19: =■!G14 -> 16 | I19: 0.625616 | J19: 14位
A20: 15 | B20: =■!A11 -> A10 | C20: =■!B11 -> ＦＣアリーバ | D20: =■!C11 -> 16 | E20: =■!D11 -> 9 | F20: 0.5925925926 | G20: =■!F11 -> 17 | H20: =■!G11 -> 27 | I20: 0.5943195926 | J20: 15位
A21: 16 | B21: =■!A16 -> B05 | C21: =■!B16 -> 昭和・戸祭ＳＣ | D21: =■!C16 -> 14 | E21: =■!D16 -> 8 | F21: 0.5833333333 | G21: =■!F16 -> 1 | H21: =■!G16 -> 11 | I21: 0.5834443333 | J21: 16位
A22: 17 | B22: =■!A25 -> C05 | C22: =■!B25 -> Ｓ４スペランツァ | D22: =■!C25 -> 13 | E22: =■!D25 -> 8 | F22: 0.5416666667 | G22: =■!F25 -> 9 | H22: =■!G25 -> 24 | I22: 0.5425906667 | J22: 17位
A23: 18 | B23: =■!A38 -> D09 | C23: =■!B38 -> ともぞうＳＣ・Ｂ | D23: =■!C38 -> 13 | E23: =■!D38 -> 8 | F23: 0.5416666667 | G23: =■!F38 -> 9 | H23: =■!G38 -> 13 | I23: 0.5425796667 | J23: 18位
A24: 19 | B24: =■!A24 -> C04 | C24: =■!B24 -> ＳＵＧＡＯ ＳＣ | D24: =■!C24 -> 13 | E24: =■!D24 -> 8 | F24: 0.5416666667 | G24: =■!F24 -> 6 | H24: =■!G24 -> 18 | I24: 0.5422846667 | J24: 19位
A25: 20 | B25: =■!A6 -> A05 | C25: =■!B6 -> ＦＣグランディール宇都宮 | D25: =■!C6 -> 13 | E25: =■!D6 -> 9 | F25: 0.4814814815 | G25: =■!F6 -> 1 | H25: =■!G6 -> 19 | I25: 0.4816004815 | J25: 20位
A26: 21 | B26: =■!A17 -> B06 | C26: =■!B17 -> サウス宇都宮ＳＣ | D26: =■!C17 -> 10 | E26: =■!D17 -> 8 | F26: 0.4166666667 | G26: =■!F17 -> 1 | H26: =■!G17 -> 12 | I26: 0.4167786667 | J26: 21位
A27: 22 | B27: =■!A36 -> D07 | C27: =■!B36 -> ＦＣペンサーレ | D27: =■!C36 -> 10 | E27: =■!D36 -> 8 | F27: 0.4166666667 | G27: =■!F36 -> 0 | H27: =■!G36 -> 15 | I27: 0.4166816667 | J27: 22位
A28: 23 | B28: =■!A26 -> C06 | C28: =■!B26 -> 宇都宮北部ＦＣトレ | D28: =■!C26 -> 10 | E28: =■!D26 -> 8 | F28: 0.4166666667 | G28: =■!F26 -> -4 | H28: =■!G26 -> 16 | I28: 0.4162826667 | J28: 23位
A29: 24 | B29: =■!A13 -> B02 | C29: =■!B13 -> 宝木キッカーズ | D29: =■!C13 -> 10 | E29: =■!D13 -> 8 | F29: 0.4166666667 | G29: =■!F13 -> -7 | H29: =■!G13 -> 10 | I29: 0.4159766667 | J29: 24位
A30: 25 | B30: =■!A9 -> A08 | C30: =■!B9 -> シャルムグランツＳＣ | D30: =■!C9 -> 9 | E30: =■!D9 -> 9 | F30: 0.3333333333 | G30: =■!F9 -> -18 | H30: =■!G9 -> 14 | I30: 0.3315473333 | J30: 25位
A31: 26 | B31: =■!A12 -> B01 | C31: =■!B12 -> 姿川第一ＦＣ | D31: =■!C12 -> 7 | E31: =■!D12 -> 8 | F31: 0.2916666667 | G31: =■!F12 -> -7 | H31: =■!G12 -> 5 | I31: 0.2909716667 | J31: 26位
A32: 27 | B32: =■!A23 -> C03 | C32: =■!B23 -> 雀宮ＦＣ | D32: =■!C23 -> 6 | E32: =■!D23 -> 8 | F32: 0.25 | G32: =■!F23 -> -8 | H32: =■!G23 -> 10 | I32: 0.24921 | J32: 27位
A33: 28 | B33: =■!A34 -> D05 | C33: =■!B34 -> 国本ＪＳＣ | D33: =■!C34 -> 4 | E33: =■!D34 -> 8 | F33: 0.1666666667 | G33: =■!F34 -> 0 | H33: =■!G34 -> 18 | I33: 0.1666846667 | J33: 28位
A34: 29 | B34: =■!A31 -> D02 | C34: =■!B31 -> 上三川ＳＣ | D34: =■!C31 -> 4 | E34: =■!D31 -> 8 | F34: 0.1666666667 | G34: =■!F31 -> -18 | H34: =■!G31 -> 9 | I34: 0.1648756667 | J34: 29位
A35: 30 | B35: =■!A19 -> B08 | C35: =■!B19 -> 富士見ＳＳＳ | D35: =■!C19 -> 4 | E35: =■!D19 -> 8 | F35: 0.1666666667 | G35: =■!F19 -> -22 | H35: =■!G19 -> 3 | I35: 0.1644696667 | J35: 30位
A36: 31 | B36: =■!A8 -> A07 | C36: =■!B8 -> 岡本ＦＣ | D36: =■!C8 -> 4 | E36: =■!D8 -> 9 | F36: 0.1481481481 | G36: =■!F8 -> -22 | H36: =■!G8 -> 7 | I36: 0.1459551481 | J36: 31位
A37: 32 | B37: =■!A5 -> A04 | C37: =■!B5 -> 岡西ＦＣ | D37: =■!C5 -> 4 | E37: =■!D5 -> 9 | F37: 0.1481481481 | G37: =■!F5 -> -53 | H37: =■!G5 -> 9 | I37: 0.1428571481 | J37: 32位
A38: 33 | B38: =■!A27 -> C07 | C38: =■!B27 -> 上三川ＦＣ | D38: =■!C27 -> 3 | E38: =■!D27 -> 8 | F38: 0.125 | G38: =■!F27 -> -24 | H38: =■!G27 -> 10 | I38: 0.12261 | J38: 33位
A39: 34 | B39: =■!A15 -> B04 | C39: =■!B15 -> 河内ＳＣジュベニール | D39: =■!C15 -> 1 | E39: =■!D15 -> 8 | F39: 0.04166666667 | G39: =■!F15 -> -18 | H39: =■!G15 -> 1 | I39: 0.03986766667 | J39: 34位
A40: 35 | B40: =■!A4 -> A03 | C40: =■!B4 -> ＦＣみらい Ｖ | D40: =■!C4 -> 0 | E40: =■!D4 -> 9 | F40: 0 | G40: =■!F4 -> -43 | H40: =■!G4 -> 2 | I40: -0.004298 | J40: 35位
A41: 36 | B41: =■!A33 -> D04 | C41: =■!B33 -> 泉ＦＣ宇都宮 | D41: =■!C33 -> 0 | E41: =■!D33 -> 8 | F41: 0 | G41: =■!F33 -> -46 | H41: =■!G33 -> 1 | I41: -0.004599 | J41: 36位
A42: 37 | B42: =■!A29 -> C09 | C42: =■!B29 -> ＦＣブロケード | D42: =■!C29 -> 0 | E42: =■!D29 -> 8 | F42: 0 | G42: =■!F29 -> -48 | H42: =■!G29 -> 1 | I42: -0.004799 | J42: 37位
